Workbook

Sheet Январь
P1: Январь | T1: 2 | X1: Экономия | Y1: Базовая норма расхода на 100 км | Z1: Базовая норма расхода на 1 мото/час
A2: Общество с ограниченной ответственностью "Втормет Царицыно" | R2: 1-я половина | S2: 2018-01-01 | T2: 2018-01-18 | U2: =ТС!E5 -> 500 | V2: =SUMIFS(Январь[Выдано топливо, литр],Январь[Дата],">="&$S$2,Январь[Дата],"<="&$T$2)+IF(MONTH(T2)<>MONTH(S2),INDIRECT(TEXT(A7-1,"ММММ")&"!F38")-SUM(INDIRECT(TEXT(A7-1,"ММММ")&"!V1:V2"))) -> 330 | W2: =IF(V2=0,0,(SUMIFS($N$7:$N$37,$A$7:$A$37,">="&$S$2,$A$7:$A$37,"<="&$T$2))/(V2-U2+G7)) -> 1.0985 | X2: =SUMIFS(Январь[Отклонение от нормы (Перерасход(+), экономия(-)), литр],Январь[Дата],">="&$S$2,Январь[Дата],"<="&$T$2) -> -32.505 | Y2: =IF(Y4="Зима",VLOOKUP(Z4,Расчет[[Номер гос.регистрации / Заводской номер]:[Итога норма а/м "ЛЕТО"]],8,FALSE),VLOOKUP(Z4,Расчет[[Номер гос.регистрации / Заводской номер]:[Итога норма а/м "ЛЕТО"]],9,FALSE)) -> 51.546 | Z2: =IF(Y4="Зима",VLOOKUP(Z4,Расчет[[Номер гос.регистрации / Заводской номер]:[Итога норма а/м "ЛЕТО"]],13,FALSE),VLOOKUP(Z4,Расчет[[Номер гос.регистрации / Заводской номер]:[Итога норма а/м "ЛЕТО"]],14,FALSE)) -> 6.05
A3: Отчет водителя ломовоза с манипулятором | R3: 2-я половина | S3: =T2+1 -> 2018-01-19 | T3: =INDEX(Январь[Дата],COUNT(Январь[Дата]))-T1 -> 2018-01-29 | U3: =ТС!E6 -> 500 | V3: =SUMIFS(Январь[Выдано топливо, литр],Январь[Дата],">="&$S$3,Январь[Дата],"<="&$T$3)+IF(MONTH(T3)<>MONTH(S3),INDIRECT(TEXT(A7-1,"ММММ")&"!F38")-SUM(INDIRECT(TEXT(A7-1,"ММММ")&"!V1:V2"))) -> 502 | W3: =IF(V3=0,0,(SUMIFS($N$7:$N$37,$A$7:$A$37,">="&$S$3,$A$7:$A$37,"<="&$T$3))/(V3-U3+U3)) -> 1.444083665 | X3: =SUMIFS(Январь[Отклонение от нормы (Перерасход(+), экономия(-)), литр],Январь[Дата],">="&$S$3,Январь[Дата],"<="&$T$3) -> -221.93
H4: за | I4: 2018 | O4: т056вв 197 | S4: =T3+1 -> 2018-01-30 | W4: =IFERROR(INDIRECT(TEXT(A7+40,"ММММ")&"!W2"),) -> 0.9058331415 | Y4: Зима | Z4: Норма 1
A6: Дата | B6: ФИО водителя | C6: Показание одометра машины на начало дня, км | D6: Показание одометра машины на конец дня, км | E6: Пройдено за день, км | F6: Выдано топливо, литр | G6: Остаток топлива в баке на начало дня, литр | H6: Показание счетчика моточасов спецоборудования на начало дня, м/ч | I6: Показание счетчика моточасов спецоборудования на конец дня, м/ч | J6: Работа спецоборудования за день, м/ч | K6: Количество ходок | L6: Расход топлива на работу спецоборудования, литр | M6: Остаток топлива в баке на конец дня, литр | N6: Расход топлива по норме, литр | O6: Фактический расход топлива, литр | P6: Отклонение от нормы (Перерасход(+), экономия(-)), литр | R6: Выдано топливо, литр | S6: Пройдено за день, км | T6: Фактический расход топлива, литр | U6: Работа спецоборудования за день, м/ч | V6: Расход топлива по норме, литр | W6: Дата
A7: =IFERROR(DATEVALUE((COUNT($A$6:A6)+1)&$P$1&$I$4),"") -> 2018-01-01 | C7: =ТС!C5 -> 209024 | D7: 209024 | E7: =Январь[[#This Row],[Показание одометра машины на конец дня, км]]-Январь[[#This Row],[Показание одометра машины на начало дня, км]]+S7 -> 0 | G7: =ТС!E5 -> 500 | H7: =ТС!D5 -> 620 | I7: 620 | J7: =IF(U7="",Январь[[#This Row],[Показание счетчика моточасов спецоборудования на конец дня, м/ч]],Январь[[#This Row],[Показание счетчика моточасов спецоборудования на конец дня, м/ч]]+1)-Январь[[#This Row],[Показание счетчика моточасов спецоборудования на начало дня, м/ч]] -> 0 | L7: =IF(Январь[[#This Row],[Работа спецоборудования за день, м/ч]]="","",Январь[[#This Row],[Работа спецоборудования за день, м/ч]]*$Z$2) -> 0 | M7: =IF(VLOOKUP(Январь[Дата],S$2:U$3,3),IFERROR(IF(R7="",Январь[[#This Row],[Выдано топливо, литр]],Январь[[#This Row],[Выдано топливо, литр]]+R7)+Январь[[#This Row],[Остаток топлива в баке на начало дня, литр]]-Январь[[#This Row],[Фактический расход топлива, литр]],""),"") -> 500 | N7: =ROUND((Январь[[#This Row],[Пройдено за день, км]]*0.01*$Y$2+Январь[[#This Row],[Расход топлива на работу спецоборудования, литр]]),3)+V7 -> 0 | O7: =ROUND(Январь[[#This Row],[Расход топлива по норме, литр]]/VLOOKUP(Январь[Дата],S$2:W$4,5),0)+T7 -> 0 | P7: =IFERROR(Январь[[#This Row],[Фактический расход топлива, литр]]-Январь[[#This Row],[Расход топлива по норме, литр]],"") -> 0 | W7: =Январь[[#This Row],[Дата]] -> 2018-01-01
A8: =IFERROR(DATEVALUE((COUNT($A$6:A7)+1)&$P$1&$I$4),"") -> 2018-01-02 | C8: =IF(D7="","",D7) -> 209024 | D8: 209024 | E8: =Январь[[#This Row],[Показание одометра машины на конец дня, км]]-Январь[[#This Row],[Показание одометра машины на начало дня, км]]+S8 -> 0 | G8: =IF(Январь[[#This Row],[Дата]]="","",M7) -> 500 | H8: =I7 -> 620 | I8: 620 | J8: =IF(U8="",Январь[[#This Row],[Показание счетчика моточасов спецоборудования на конец дня, м/ч]],Январь[[#This Row],[Показание счетчика моточасов спецоборудования на конец дня, м/ч]]+1)-Январь[[#This Row],[Показание счетчика моточасов спецоборудования на начало дня, м/ч]] -> 0 | L8: =IF(Январь[[#This Row],[Работа спецоборудования за день, м/ч]]="","",Январь[[#This Row],[Работа спецоборудования за день, м/ч]]*$Z$2) -> 0 | M8: =IF(VLOOKUP(Январь[Дата],S$2:U$3,3),IFERROR(IF(R8="",Январь[[#This Row],[Выдано топливо, литр]],Январь[[#This Row],[Выдано топливо, литр]]+R8)+Январь[[#This Row],[Остаток топлива в баке на начало дня, литр]]-Январь[[#This Row],[Фактический расход топлива, литр]],""),"") -> 500 | N8: =ROUND((Январь[[#This Row],[Пройдено за день, км]]*0.01*$Y$2+Январь[[#This Row],[Расход топлива на работу спецоборудования, литр]]),3)+V8 -> 0 | O8: =ROUND(Январь[[#This Row],[Расход топлива по норме, литр]]/VLOOKUP(Январь[Дата],S$2:W$4,5),0)+T8 -> 0 | P8: =IFERROR(Январь[[#This Row],[Фактический расход топлива, литр]]-Январь[[#This Row],[Расход топлива по норме, литр]],"") -> 0 | W8: =Январь[[#This Row],[Дата]] -> 2018-01-02
A9: =IFERROR(DATEVALUE((COUNT($A$6:A8)+1)&$P$1&$I$4),"") -> 2018-01-03 | C9: =IF(D8="","",D8) -> 209024 | D9: 209024 | E9: =Январь[[#This Row],[Показание одометра машины на конец дня, км]]-Январь[[#This Row],[Показание одометра машины на начало дня, км]]+S9 -> 0 | G9: =IF(Январь[[#This Row],[Дата]]="","",M8) -> 500 | H9: =I8 -> 620 | I9: 620 | J9: =IF(U9="",Январь[[#This Row],[Показание счетчика моточасов спецоборудования на конец дня, м/ч]],Январь[[#This Row],[Показание счетчика моточасов спецоборудования на конец дня, м/ч]]+1)-Январь[[#This Row],[Показание счетчика моточасов спецоборудования на начало дня, м/ч]] -> 0 | L9: =IF(Январь[[#This Row],[Работа спецоборудования за день, м/ч]]="","",Январь[[#This Row],[Работа спецоборудования за день, м/ч]]*$Z$2) -> 0 | M9: =IF(VLOOKUP(Январь[Дата],S$2:U$3,3),IFERROR(IF(R9="",Январь[[#This Row],[Выдано топливо, литр]],Январь[[#This Row],[Выдано топливо, литр]]+R9)+Январь[[#This Row],[Остаток топлива в баке на начало дня, литр]]-Январь[[#This Row],[Фактический расход топлива, литр]],""),"") -> 500 | N9: =ROUND((Январь[[#This Row],[Пройдено за день, км]]*0.01*$Y$2+Январь[[#This Row],[Расход топлива на работу спецоборудования, литр]]),3)+V9 -> 0 | O9: =ROUND(Январь[[#This Row],[Расход топлива по норме, литр]]/VLOOKUP(Январь[Дата],S$2:W$4,5),0)+T9 -> 0 | P9: =IFERROR(Январь[[#This Row],[Фактический расход топлива, литр]]-Январь[[#This Row],[Расход топлива по норме, литр]],"") -> 0 | W9: =Январь[[#This Row],[Дата]] -> 2018-01-03
A10: =IFERROR(DATEVALUE((COUNT($A$6:A9)+1)&$P$1&$I$4),"") -> 2018-01-04 | C10: 209024 | D10: 209024 | E10: =Январь[[#This Row],[Показание одометра машины на конец дня, км]]-Январь[[#This Row],[Показание одометра машины на начало дня, км]]+S10 -> 0 | G10: =IF(Январь[[#This Row],[Дата]]="","",M9) -> 500 | H10: 620 | I10: 620 | J10: =IF(U10="",Январь[[#This Row],[Показание счетчика моточасов спецоборудования на конец дня, м/ч]],Январь[[#This Row],[Показание счетчика моточасов спецоборудования на конец дня, м/ч]]+1)-Январь[[#This Row],[Показание счетчика моточасов спецоборудования на начало дня, м/ч]] -> 0 | L10: =IF(Январь[[#This Row],[Работа спецоборудования за день, м/ч]]="","",Январь[[#This Row],[Работа спецоборудования за день, м/ч]]*$Z$2) -> 0 | M10: =IF(VLOOKUP(Январь[Дата],S$2:U$3,3),IFERROR(IF(R10="",Январь[[#This Row],[Выдано топливо, литр]],Январь[[#This Row],[Выдано топливо, литр]]+R10)+Январь[[#This Row],[Остаток топлива в баке на начало дня, литр]]-Январь[[#This Row],[Фактический расход топлива, литр]],""),"") -> 500 | N10: =ROUND((Январь[[#This Row],[Пройдено за день, км]]*0.01*$Y$2+Январь[[#This Row],[Расход топлива на работу спецоборудования, литр]]),3)+V10 -> 0 | O10: =ROUND(Январь[[#This Row],[Расход топлива по норме, литр]]/VLOOKUP(Январь[Дата],S$2:W$4,5),0)+T10 -> 0 | P10: =IFERROR(Январь[[#This Row],[Фактический расход топлива, литр]]-Январь[[#This Row],[Расход топлива по норме, литр]],"") -> 0 | W10: =Январь[[#This Row],[Дата]] -> 2018-01-04
A11: =IFERROR(DATEVALUE((COUNT($A$6:A10)+1)&$P$1&$I$4),"") -> 2018-01-05 | C11: 209024 | D11: 209024 | E11: =Январь[[#This Row],[Показание одометра машины на конец дня, км]]-Январь[[#This Row],[Показание одометра машины на начало дня, км]]+S11 -> 0 | G11: =IF(Январь[[#This Row],[Дата]]="","",M10) -> 500 | H11: 620 | I11: 620 | J11: =IF(U11="",Январь[[#This Row],[Показание счетчика моточасов спецоборудования на конец дня, м/ч]],Январь[[#This Row],[Показание счетчика моточасов спецоборудования на конец дня, м/ч]]+1)-Январь[[#This Row],[Показание счетчика моточасов спецоборудования на начало дня, м/ч]] -> 0 | L11: =IF(Январь[[#This Row],[Работа спецоборудования за день, м/ч]]="","",Январь[[#This Row],[Работа спецоборудования за день, м/ч]]*$Z$2) -> 0 | M11: =IF(VLOOKUP(Январь[Дата],S$2:U$3,3),IFERROR(IF(R11="",Январь[[#This Row],[Выдано топливо, литр]],Январь[[#This Row],[Выдано топливо, литр]]+R11)+Январь[[#This Row],[Остаток топлива в баке на начало дня, литр]]-Январь[[#This Row],[Фактический расход топлива, литр]],""),"") -> 500 | N11: =ROUND((Январь[[#This Row],[Пройдено за день, км]]*0.01*$Y$2+Январь[[#This Row],[Расход топлива на работу спецоборудования, литр]]),3)+V11 -> 0 | O11: =ROUND(Январь[[#This Row],[Расход топлива по норме, литр]]/VLOOKUP(Январь[Дата],S$2:W$4,5),0)+T11 -> 0 | P11: =IFERROR(Январь[[#This Row],[Фактический расход топлива, литр]]-Январь[[#This Row],[Расход топлива по норме, литр]],"") -> 0 | W11: =Январь[[#This Row],[Дата]] -> 2018-01-05
A12: =IFERROR(DATEVALUE((COUNT($A$6:A11)+1)&$P$1&$I$4),"") -> 2018-01-06 | C12: 209024 | D12: 209024 | E12: =Январь[[#This Row],[Показание одометра машины на конец дня, км]]-Январь[[#This Row],[Показание одометра машины на начало дня, км]]+S12 -> 0 | G12: =IF(Январь[[#This Row],[Дата]]="","",M11) -> 500 | H12: 620 | I12: 620 | J12: =IF(U12="",Январь[[#This Row],[Показание счетчика моточасов спецоборудования на конец дня, м/ч]],Январь[[#This Row],[Показание счетчика моточасов спецоборудования на конец дня, м/ч]]+1)-Январь[[#This Row],[Показание счетчика моточасов спецоборудования на начало дня, м/ч]] -> 0 | L12: =IF(Январь[[#This Row],[Работа спецоборудования за день, м/ч]]="","",Январь[[#This Row],[Работа спецоборудования за день, м/ч]]*$Z$2) -> 0 | M12: =IF(VLOOKUP(Январь[Дата],S$2:U$3,3),IFERROR(IF(R12="",Январь[[#This Row],[Выдано топливо, литр]],Январь[[#This Row],[Выдано топливо, литр]]+R12)+Январь[[#This Row],[Остаток топлива в баке на начало дня, литр]]-Январь[[#This Row],[Фактический расход топлива, литр]],""),"") -> 500 | N12: =ROUND((Январь[[#This Row],[Пройдено за день, км]]*0.01*$Y$2+Январь[[#This Row],[Расход топлива на работу спецоборудования, литр]]),3)+V12 -> 0 | O12: =ROUND(Январь[[#This Row],[Расход топлива по норме, литр]]/VLOOKUP(Январь[Дата],S$2:W$4,5),0)+T12 -> 0 | P12: =IFERROR(Январь[[#This Row],[Фактический расход топлива, литр]]-Январь[[#This Row],[Расход топлива по норме, литр]],"") -> 0 | W12: =Январь[[#This Row],[Дата]] -> 2018-01-06
A13: =IFERROR(DATEVALUE((COUNT($A$6:A12)+1)&$P$1&$I$4),"") -> 2018-01-07 | C13: 209024 | D13: 209024 | E13: =Январь[[#This Row],[Показание одометра машины на конец дня, км]]-Январь[[#This Row],[Показание одометра машины на начало дня, км]]+S13 -> 0 | G13: =IF(Январь[[#This Row],[Дата]]="","",M12) -> 500 | H13: 620 | I13: 620 | J13: =IF(U13="",Январь[[#This Row],[Показание счетчика моточасов спецоборудования на конец дня, м/ч]],Январь[[#This Row],[Показание счетчика моточасов спецоборудования на конец дня, м/ч]]+1)-Январь[[#This Row],[Показание счетчика моточасов спецоборудования на начало дня, м/ч]] -> 0 | L13: =IF(Январь[[#This Row],[Работа спецоборудования за день, м/ч]]="","",Январь[[#This Row],[Работа спецоборудования за день, м/ч]]*$Z$2) -> 0 | M13: =IF(VLOOKUP(Январь[Дата],S$2:U$3,3),IFERROR(IF(R13="",Январь[[#This Row],[Выдано топливо, литр]],Январь[[#This Row],[Выдано топливо, литр]]+R13)+Январь[[#This Row],[Остаток топлива в баке на начало дня, литр]]-Январь[[#This Row],[Фактический расход топлива, литр]],""),"") -> 500 | N13: =ROUND((Январь[[#This Row],[Пройдено за день, км]]*0.01*$Y$2+Январь[[#This Row],[Расход топлива на работу спецоборудования, литр]]),3)+V13 -> 0 | O13: =ROUND(Январь[[#This Row],[Расход топлива по норме, литр]]/VLOOKUP(Январь[Дата],S$2:W$4,5),0)+T13 -> 0 | P13: =IFERROR(Январь[[#This Row],[Фактический расход топлива, литр]]-Январь[[#This Row],[Расход топлива по норме, литр]],"") -> 0 | W13: =Январь[[#This Row],[Дата]] -> 2018-01-07
A14: =IFERROR(DATEVALUE((COUNT($A$6:A13)+1)&$P$1&$I$4),"") -> 2018-01-08 | C14: 209024 | D14: 209024 | E14: =Январь[[#This Row],[Показание одометра машины на конец дня, км]]-Январь[[#This Row],[Показание одометра машины на начало дня, км]]+S14 -> 0 | G14: =IF(Январь[[#This Row],[Дата]]="","",M13) -> 500 | H14: 620 | I14: 620 | J14: =IF(U14="",Январь[[#This Row],[Показание счетчика моточасов спецоборудования на конец дня, м/ч]],Январь[[#This Row],[Показание счетчика моточасов спецоборудования на конец дня, м/ч]]+1)-Январь[[#This Row],[Показание счетчика моточасов спецоборудования на начало дня, м/ч]] -> 0 | L14: =IF(Январь[[#This Row],[Работа спецоборудования за день, м/ч]]="","",Январь[[#This Row],[Работа спецоборудования за день, м/ч]]*$Z$2) -> 0 | M14: =IF(VLOOKUP(Январь[Дата],S$2:U$3,3),IFERROR(IF(R14="",Январь[[#This Row],[Выдано топливо, литр]],Январь[[#This Row],[Выдано топливо, литр]]+R14)+Январь[[#This Row],[Остаток топлива в баке на начало дня, литр]]-Январь[[#This Row],[Фактический расход топлива, литр]],""),"") -> 500 | N14: =ROUND((Январь[[#This Row],[Пройдено за день, км]]*0.01*$Y$2+Январь[[#This Row],[Расход топлива на работу спецоборудования, литр]]),3)+V14 -> 0 | O14: =ROUND(Январь[[#This Row],[Расход топлива по норме, литр]]/VLOOKUP(Январь[Дата],S$2:W$4,5),0)+T14 -> 0 | P14: =IFERROR(Январь[[#This Row],[Фактический расход топлива, литр]]-Январь[[#This Row],[Расход топлива по норме, литр]],"") -> 0 | W14: =Январь[[#This Row],[Дата]] -> 2018-01-08
A15: =IFERROR(DATEVALUE((COUNT($A$6:A14)+1)&$P$1&$I$4),"") -> 2018-01-09 | C15: 209024 | D15: 209024 | E15: =Январь[[#This Row],[Показание одометра машины на конец дня, км]]-Январь[[#This Row],[Показание одометра машины на начало дня, км]]+S15 -> 0 | G15: =IF(Январь[[#This Row],[Дата]]="","",M14) -> 500 | H15: 620 | I15: 620 | J15: =IF(U15="",Январь[[#This Row],[Показание счетчика моточасов спецоборудования на конец дня, м/ч]],Январь[[#This Row],[Показание счетчика моточасов спецоборудования на конец дня, м/ч]]+1)-Январь[[#This Row],[Показание счетчика моточасов спецоборудования на начало дня, м/ч]] -> 0 | K15: 0 | L15: =IF(Январь[[#This Row],[Работа спецоборудования за день, м/ч]]="","",Январь[[#This Row],[Работа спецоборудования за день, м/ч]]*$Z$2) -> 0 | M15: =IF(VLOOKUP(Январь[Дата],S$2:U$3,3),IFERROR(IF(R15="",Январь[[#This Row],[Выдано топливо, литр]],Январь[[#This Row],[Выдано топливо, литр]]+R15)+Январь[[#This Row],[Остаток топлива в баке на начало дня, литр]]-Январь[[#This Row],[Фактический расход топлива, литр]],""),"") -> 500 | N15: =ROUND((Январь[[#This Row],[Пройдено за день, км]]*0.01*$Y$2+Январь[[#This Row],[Расход топлива на работу спецоборудования, литр]]),3)+V15 -> 0 | O15: =ROUND(Январь[[#This Row],[Расход топлива по норме, литр]]/VLOOKUP(Январь[Дата],S$2:W$4,5),0)+T15 -> 0 | P15: =IFERROR(Январь[[#This Row],[Фактический расход топлива, литр]]-Январь[[#This Row],[Расход топлива по норме, литр]],"") -> 0 | W15: =Январь[[#This Row],[Дата]] -> 2018-01-09
A16: =IFERROR(DATEVALUE((COUNT($A$6:A15)+1)&$P$1&$I$4),"") -> 2018-01-10 | B16: Никляев В.А. | C16: 209024 | D16: 209059 | E16: =Январь[[#This Row],[Показание одометра машины на конец дня, км]]-Январь[[#This Row],[Показание одометра машины на начало дня, км]]+S16 -> 35 | G16: =IF(Январь[[#This Row],[Дата]]="","",M15) -> 500 | H16: 620 | I16: 620 | J16: =IF(U16="",Январь[[#This Row],[Показание счетчика моточасов спецоборудования на конец дня, м/ч]],Январь[[#This Row],[Показание счетчика моточасов спецоборудования на конец дня, м/ч]]+1)-Январь[[#This Row],[Показание счетчика моточасов спецоборудования на начало дня, м/ч]] -> 0 | K16: 1 | L16: =IF(Январь[[#This Row],[Работа спецоборудования за день, м/ч]]="","",Январь[[#This Row],[Работа спецоборудования за день, м/ч]]*$Z$2) -> 0 | M16: =IF(VLOOKUP(Январь[Дата],S$2:U$3,3),IFERROR(IF(R16="",Январь[[#This Row],[Выдано топливо, литр]],Январь[[#This Row],[Выдано топливо, литр]]+R16)+Январь[[#This Row],[Остаток топлива в баке на начало дня, литр]]-Январь[[#This Row],[Фактический расход топлива, литр]],""),"") -> 484 | N16: =ROUND((Январь[[#This Row],[Пройдено за день, км]]*0.01*$Y$2+Январь[[#This Row],[Расход топлива на работу спецоборудования, литр]]),3)+V16 -> 18.041 | O16: =ROUND(Январь[[#This Row],[Расход топлива по норме, литр]]/VLOOKUP(Январь[Дата],S$2:W$4,5),0)+T16 -> 16 | P16: =IFERROR(Январь[[#This Row],[Фактический расход топлива, литр]]-Январь[[#This Row],[Расход топлива по норме, литр]],"") -> -2.041 | W16: =Январь[[#This Row],[Дата]] -> 2018-01-10
A17: =IFERROR(DATEVALUE((COUNT($A$6:A16)+1)&$P$1&$I$4),"") -> 2018-01-11 | B17: Никляев В.А. | C17: 209059 | D17: 209084 | E17: =Январь[[#This Row],[Показание одометра машины на конец дня, км]]-Январь[[#This Row],[Показание одометра машины на начало дня, км]]+S17 -> 25 | G17: =IF(Январь[[#This Row],[Дата]]="","",M16) -> 484 | H17: 620 | I17: 622 | J17: =IF(U17="",Январь[[#This Row],[Показание счетчика моточасов спецоборудования на конец дня, м/ч]],Январь[[#This Row],[Показание счетчика моточасов спецоборудования на конец дня, м/ч]]+1)-Январь[[#This Row],[Показание счетчика моточасов спецоборудования на начало дня, м/ч]] -> 2 | K17: 1 | L17: =IF(Январь[[#This Row],[Работа спецоборудования за день, м/ч]]="","",Январь[[#This Row],[Работа спецоборудования за день, м/ч]]*$Z$2) -> 12.1 | M17: =IF(VLOOKUP(Январь[Дата],S$2:U$3,3),IFERROR(IF(R17="",Январь[[#This Row],[Выдано топливо, литр]],Январь[[#This Row],[Выдано топливо, литр]]+R17)+Январь[[#This Row],[Остаток топлива в баке на начало дня, литр]]-Январь[[#This Row],[Фактический расход топлива, литр]],""),"") -> 461 | N17: =ROUND((Январь[[#This Row],[Пройдено за день, км]]*0.01*$Y$2+Январь[[#This Row],[Расход топлива на работу спецоборудования, литр]]),3)+V17 -> 24.987 | O17: =ROUND(Январь[[#This Row],[Расход топлива по норме, литр]]/VLOOKUP(Январь[Дата],S$2:W$4,5),0)+T17 -> 23 | P17: =IFERROR(Январь[[#This Row],[Фактический расход топлива, литр]]-Январь[[#This Row],[Расход топлива по норме, литр]],"") -> -1.987 | W17: =Январь[[#This Row],[Дата]] -> 2018-01-11
A18: =IFERROR(DATEVALUE((COUNT($A$6:A17)+1)&$P$1&$I$4),"") -> 2018-01-12 | B18: Никляев В.А. | C18: 209084 | D18: 209111 | E18: =Январь[[#This Row],[Показание одометра машины на конец дня, км]]-Январь[[#This Row],[Показание одометра машины на начало дня, км]]+S18 -> 27 | G18: =IF(Январь[[#This Row],[Дата]]="","",M17) -> 461 | H18: 622 | I18: 624 | J18: =IF(U18="",Январь[[#This Row],[Показание счетчика моточасов спецоборудования на конец дня, м/ч]],Январь[[#This Row],[Показание счетчика моточасов спецоборудования на конец дня, м/ч]]+1)-Январь[[#This Row],[Показание счетчика моточасов спецоборудования на начало дня, м/ч]] -> 2 | K18: 1 | L18: =IF(Январь[[#This Row],[Работа спецоборудования за день, м/ч]]="","",Январь[[#This Row],[Работа спецоборудования за день, м/ч]]*$Z$2) -> 12.1 | M18: =IF(VLOOKUP(Январь[Дата],S$2:U$3,3),IFERROR(IF(R18="",Январь[[#This Row],[Выдано топливо, литр]],Январь[[#This Row],[Выдано топливо, литр]]+R18)+Январь[[#This Row],[Остаток топлива в баке на начало дня, литр]]-Январь[[#This Row],[Фактический расход топлива, литр]],""),"") -> 437 | N18: =ROUND((Январь[[#This Row],[Пройдено за день, км]]*0.01*$Y$2+Январь[[#This Row],[Расход топлива на работу спецоборудования, литр]]),3)+V18 -> 26.017 | O18: =ROUND(Январь[[#This Row],[Расход топлива по норме, литр]]/VLOOKUP(Январь[Дата],S$2:W$4,5),0)+T18 -> 24 | P18: =IFERROR(Январь[[#This Row],[Фактический расход топлива, литр]]-Январь[[#This Row],[Расход топлива по норме, литр]],"") -> -2.017 | W18: =Январь[[#This Row],[Дата]] -> 2018-01-12
A19: =IFERROR(DATEVALUE((COUNT($A$6:A18)+1)&$P$1&$I$4),"") -> 2018-01-13 | B19: Никляев В.А. | C19: 209111 | D19: 209168 | E19: =Январь[[#This Row],[Показание одометра машины на конец дня, км]]-Январь[[#This Row],[Показание одометра машины на начало дня, км]]+S19 -> 57 | G19: =IF(Январь[[#This Row],[Дата]]="","",M18) -> 437 | H19: 624 | I19: 626 | J19: =IF(U19="",Январь[[#This Row],[Показание счетчика моточасов спецоборудования на конец дня, м/ч]],Январь[[#This Row],[Показание счетчика моточасов спецоборудования на конец дня, м/ч]]+1)-Январь[[#This Row],[Показание счетчика моточасов спецоборудования на начало дня, м/ч]] -> 2 | K19: 1 | L19: =IF(Январь[[#This Row],[Работа спецоборудования за день, м/ч]]="","",Январь[[#This Row],[Работа спецоборудования за день, м/ч]]*$Z$2) -> 12.1 | M19: =IF(VLOOKUP(Январь[Дата],S$2:U$3,3),IFERROR(IF(R19="",Январь[[#This Row],[Выдано топливо, литр]],Январь[[#This Row],[Выдано топливо, литр]]+R19)+Январь[[#This Row],[Остаток топлива в баке на начало дня, литр]]-Январь[[#This Row],[Фактический расход топлива, литр]],""),"") -> 399 | N19: =ROUND((Январь[[#This Row],[Пройдено за день, км]]*0.01*$Y$2+Январь[[#This Row],[Расход топлива на работу спецоборудования, литр]]),3)+V19 -> 41.481 | O19: =ROUND(Январь[[#This Row],[Расход топлива по норме, литр]]/VLOOKUP(Январь[Дата],S$2:W$4,5),0)+T19 -> 38 | P19: =IFERROR(Январь[[#This Row],[Фактический расход топлива, литр]]-Январь[[#This Row],[Расход топлива по норме, литр]],"") -> -3.481 | W19: =Январь[[#This Row],[Дата]] -> 2018-01-13
A20: =IFERROR(DATEVALUE((COUNT($A$6:A19)+1)&$P$1&$I$4),"") -> 2018-01-14 | B20: Никляев В.А. | C20: 209168 | D20: 209208 | E20: =Январь[[#This Row],[Показание одометра машины на конец дня, км]]-Январь[[#This Row],[Показание одометра машины на начало дня, км]]+S20 -> 40 | G20: =IF(Январь[[#This Row],[Дата]]="","",M19) -> 399 | H20: 626 | I20: 628 | J20: =IF(U20="",Январь[[#This Row],[Показание счетчика моточасов спецоборудования на конец дня, м/ч]],Январь[[#This Row],[Показание счетчика моточасов спецоборудования на конец дня, м/ч]]+1)-Январь[[#This Row],[Показание счетчика моточасов спецоборудования на начало дня, м/ч]] -> 2 | K20: 1 | L20: =IF(Январь[[#This Row],[Работа спецоборудования за день, м/ч]]="","",Январь[[#This Row],[Работа спецоборудования за день, м/ч]]*$Z$2) -> 12.1 | M20: =IF(VLOOKUP(Январь[Дата],S$2:U$3,3),IFERROR(IF(R20="",Январь[[#This Row],[Выдано топливо, литр]],Январь[[#This Row],[Выдано топливо, литр]]+R20)+Январь[[#This Row],[Остаток топлива в баке на начало дня, литр]]-Январь[[#This Row],[Фактический расход топлива, литр]],""),"") -> 369 | N20: =ROUND((Январь[[#This Row],[Пройдено за день, км]]*0.01*$Y$2+Январь[[#This Row],[Расход топлива на работу спецоборудования, литр]]),3)+V20 -> 32.718 | O20: =ROUND(Январь[[#This Row],[Расход топлива по норме, литр]]/VLOOKUP(Январь[Дата],S$2:W$4,5),0)+T20 -> 30 | P20: =IFERROR(Январь[[#This Row],[Фактический расход топлива, литр]]-Январь[[#This Row],[Расход топлива по норме, литр]],"") -> -2.718 | W20: =Январь[[#This Row],[Дата]] -> 2018-01-14
A21: =IFERROR(DATEVALUE((COUNT($A$6:A20)+1)&$P$1&$I$4),"") -> 2018-01-15 | B21: Никляев В.А. | C21: 209208 | D21: 209221 | E21: =Январь[[#This Row],[Показание одометра машины на конец дня, км]]-Январь[[#This Row],[Показание одометра машины на начало дня, км]]+S21 -> 13 | G21: =IF(Январь[[#This Row],[Дата]]="","",M20) -> 369 | H21: 628 | I21: 630 | J21: =IF(U21="",Январь[[#This Row],[Показание счетчика моточасов спецоборудования на конец дня, м/ч]],Январь[[#This Row],[Показание счетчика моточасов спецоборудования на конец дня, м/ч]]+1)-Январь[[#This Row],[Показание счетчика моточасов спецоборудования на начало дня, м/ч]] -> 2 | K21: 1 | L21: =IF(Январь[[#This Row],[Работа спецоборудования за день, м/ч]]="","",Январь[[#This Row],[Работа спецоборудования за день, м/ч]]*$Z$2) -> 12.1 | M21: =IF(VLOOKUP(Январь[Дата],S$2:U$3,3),IFERROR(IF(R21="",Январь[[#This Row],[Выдано топливо, литр]],Январь[[#This Row],[Выдано топливо, литр]]+R21)+Январь[[#This Row],[Остаток топлива в баке на начало дня, литр]]-Январь[[#This Row],[Фактический расход топлива, литр]],""),"") -> 352 | N21: =ROUND((Январь[[#This Row],[Пройдено за день, км]]*0.01*$Y$2+Январь[[#This Row],[Расход топлива на работу спецоборудования, литр]]),3)+V21 -> 18.801 | O21: =ROUND(Январь[[#This Row],[Расход топлива по норме, литр]]/VLOOKUP(Январь[Дата],S$2:W$4,5),0)+T21 -> 17 | P21: =IFERROR(Январь[[#This Row],[Фактический расход топлива, литр]]-Январь[[#This Row],[Расход топлива по норме, литр]],"") -> -1.801 | W21: =Январь[[#This Row],[Дата]] -> 2018-01-15
A22: =IFERROR(DATEVALUE((COUNT($A$6:A21)+1)&$P$1&$I$4),"") -> 2018-01-16 | B22: Никляев В.А. | C22: 209221 | D22: 209236 | E22: =Январь[[#This Row],[Показание одометра машины на конец дня, км]]-Январь[[#This Row],[Показание одометра машины на начало дня, км]]+S22 -> 15 | G22: =IF(Январь[[#This Row],[Дата]]="","",M21) -> 352 | H22: 630 | I22: 633 | J22: =IF(U22="",Январь[[#This Row],[Показание счетчика моточасов спецоборудования на конец дня, м/ч]],Январь[[#This Row],[Показание счетчика моточасов спецоборудования на конец дня, м/ч]]+1)-Январь[[#This Row],[Показание счетчика моточасов спецоборудования на начало дня, м/ч]] -> 3 | K22: 2 | L22: =IF(Январь[[#This Row],[Работа спецоборудования за день, м/ч]]="","",Январь[[#This Row],[Работа спецоборудования за день, м/ч]]*$Z$2) -> 18.15 | M22: =IF(VLOOKUP(Январь[Дата],S$2:U$3,3),IFERROR(IF(R22="",Январь[[#This Row],[Выдано топливо, литр]],Январь[[#This Row],[Выдано топливо, литр]]+R22)+Январь[[#This Row],[Остаток топлива в баке на начало дня, литр]]-Январь[[#This Row],[Фактический расход топлива, литр]],""),"") -> 328 | N22: =ROUND((Январь[[#This Row],[Пройдено за день, км]]*0.01*$Y$2+Январь[[#This Row],[Расход топлива на работу спецоборудования, литр]]),3)+V22 -> 25.882 | O22: =ROUND(Январь[[#This Row],[Расход топлива по норме, литр]]/VLOOKUP(Январь[Дата],S$2:W$4,5),0)+T22 -> 24 | P22: =IFERROR(Январь[[#This Row],[Фактический расход топлива, литр]]-Январь[[#This Row],[Расход топлива по норме, литр]],"") -> -1.882 | W22: =Январь[[#This Row],[Дата]] -> 2018-01-16
A23: =IFERROR(DATEVALUE((COUNT($A$6:A22)+1)&$P$1&$I$4),"") -> 2018-01-17 | B23: Никляев В.А. | C23: 209236 | D23: 209489 | E23: =Январь[[#This Row],[Показание одометра машины на конец дня, км]]-Январь[[#This Row],[Показание одометра машины на начало дня, км]]+S23 -> 253 | G23: =IF(Январь[[#This Row],[Дата]]="","",M22) -> 328 | H23: 633 | I23: 636 | J23: =IF(U23="",Январь[[#This Row],[Показание счетчика моточасов спецоборудования на конец дня, м/ч]],Январь[[#This Row],[Показание счетчика моточасов спецоборудования на конец дня, м/ч]]+1)-Январь[[#This Row],[Показание счетчика моточасов спецоборудования на начало дня, м/ч]] -> 3 | K23: 3 | L23: =IF(Январь[[#This Row],[Работа спецоборудования за день, м/ч]]="","",Январь[[#This Row],[Работа спецоборудования за день, м/ч]]*$Z$2) -> 18.15 | M23: =IF(VLOOKUP(Январь[Дата],S$2:U$3,3),IFERROR(IF(R23="",Январь[[#This Row],[Выдано топливо, литр]],Январь[[#This Row],[Выдано топливо, литр]]+R23)+Январь[[#This Row],[Остаток топлива в баке на начало дня, литр]]-Январь[[#This Row],[Фактический расход топлива, литр]],""),"") -> 192 | N23: =ROUND((Январь[[#This Row],[Пройдено за день, км]]*0.01*$Y$2+Январь[[#This Row],[Расход топлива на работу спецоборудования, литр]]),3)+V23 -> 148.561 | O23: =ROUND(Январь[[#This Row],[Расход топлива по норме, литр]]/VLOOKUP(Январь[Дата],S$2:W$4,5),0)+T23 -> 136 | P23: =IFERROR(Январь[[#This Row],[Фактический расход топлива, литр]]-Январь[[#This Row],[Расход топлива по норме, литр]],"") -> -12.561 | T23: 1 | W23: =Январь[[#This Row],[Дата]] -> 2018-01-17
A24: =IFERROR(DATEVALUE((COUNT($A$6:A23)+1)&$P$1&$I$4),"") -> 2018-01-18 | B24: Никляев В.А. | C24: 209489 | D24: 209516 | E24: =Январь[[#This Row],[Показание одометра машины на конец дня, км]]-Январь[[#This Row],[Показание одометра машины на начало дня, км]]+S24 -> 27 | F24: =380-50 -> 330 | G24: =IF(Январь[[#This Row],[Дата]]="","",M23) -> 192 | H24: 636 | I24: 638 | J24: =IF(U24="",Январь[[#This Row],[Показание счетчика моточасов спецоборудования на конец дня, м/ч]],Январь[[#This Row],[Показание счетчика моточасов спецоборудования на конец дня, м/ч]]+1)-Январь[[#This Row],[Показание счетчика моточасов спецоборудования на начало дня, м/ч]] -> 2 | K24: 1 | L24: =IF(Январь[[#This Row],[Работа спецоборудования за день, м/ч]]="","",Январь[[#This Row],[Работа спецоборудования за день, м/ч]]*$Z$2) -> 12.1 | M24: =IF(VLOOKUP(Январь[Дата],S$2:U$3,3),IFERROR(IF(R24="",Январь[[#This Row],[Выдано топливо, литр]],Январь[[#This Row],[Выдано топливо, литр]]+R24)+Январь[[#This Row],[Остаток топлива в баке на начало дня, литр]]-Январь[[#This Row],[Фактический расход топлива, литр]],""),"") -> 500 | N24: =ROUND((Январь[[#This Row],[Пройдено за день, км]]*0.01*$Y$2+Январь[[#This Row],[Расход топлива на работу спецоборудования, литр]]),3)+V24 -> 26.017 | O24: =ROUND(Январь[[#This Row],[Расход топлива по норме, литр]]/VLOOKUP(Январь[Дата],S$2:W$4,5),0)+T24 -> 22 | P24: =IFERROR(Январь[[#This Row],[Фактический расход топлива, литр]]-Январь[[#This Row],[Расход топлива по норме, литр]],"") -> -4.017 | T24: -2 | W24: =Январь[[#This Row],[Дата]] -> 2018-01-18
A25: =IFERROR(DATEVALUE((COUNT($A$6:A24)+1)&$P$1&$I$4),"") -> 2018-01-19 | B25: Никляев В.А. | C25: 209516 | D25: 209618 | E25: =Январь[[#This Row],[Показание одометра машины на конец дня, км]]-Январь[[#This Row],[Показание одометра машины на начало дня, км]]+S25 -> 102 | G25: =IF(Январь[[#This Row],[Дата]]="","",M24) -> 500 | H25: 638 | I25: 640 | J25: =IF(U25="",Январь[[#This Row],[Показание счетчика моточасов спецоборудования на конец дня, м/ч]],Январь[[#This Row],[Показание счетчика моточасов спецоборудования на конец дня, м/ч]]+1)-Январь[[#This Row],[Показание счетчика моточасов спецоборудования на начало дня, м/ч]] -> 2 | K25: 1 | L25: =IF(Январь[[#This Row],[Работа спецоборудования за день, м/ч]]="","",Январь[[#This Row],[Работа спецоборудования за день, м/ч]]*$Z$2) -> 12.1 | M25: =IF(VLOOKUP(Январь[Дата],S$2:U$3,3),IFERROR(IF(R25="",Январь[[#This Row],[Выдано топливо, литр]],Январь[[#This Row],[Выдано топливо, литр]]+R25)+Январь[[#This Row],[Остаток топлива в баке на начало дня, литр]]-Январь[[#This Row],[Фактический расход топлива, литр]],""),"") -> 455 | N25: =ROUND((Январь[[#This Row],[Пройдено за день, км]]*0.01*$Y$2+Январь[[#This Row],[Расход топлива на работу спецоборудования, литр]]),3)+V25 -> 64.677 | O25: =ROUND(Январь[[#This Row],[Расход топлива по норме, литр]]/VLOOKUP(Январь[Дата],S$2:W$4,5),0)+T25 -> 45 | P25: =IFERROR(Январь[[#This Row],[Фактический расход топлива, литр]]-Январь[[#This Row],[Расход топлива по норме, литр]],"") -> -19.677 | W25: =Январь[[#This Row],[Дата]] -> 2018-01-19
A26: =IFERROR(DATEVALUE((COUNT($A$6:A25)+1)&$P$1&$I$4),"") -> 2018-01-20 | C26: 209618 | D26: 209618 | E26: =Январь[[#This Row],[Показание одометра машины на конец дня, км]]-Январь[[#This Row],[Показание одометра машины на начало дня, км]]+S26 -> 0 | G26: =IF(Январь[[#This Row],[Дата]]="","",M25) -> 455 | H26: 640 | I26: 640 | J26: =IF(U26="",Январь[[#This Row],[Показание счетчика моточасов спецоборудования на конец дня, м/ч]],Январь[[#This Row],[Показание счетчика моточасов спецоборудования на конец дня, м/ч]]+1)-Январь[[#This Row],[Показание счетчика моточасов спецоборудования на начало дня, м/ч]] -> 0 | K26: 0 | L26: =IF(Январь[[#This Row],[Работа спецоборудования за день, м/ч]]="","",Январь[[#This Row],[Работа спецоборудования за день, м/ч]]*$Z$2) -> 0 | M26: =IF(VLOOKUP(Январь[Дата],S$2:U$3,3),IFERROR(IF(R26="",Январь[[#This Row],[Выдано топливо, литр]],Январь[[#This Row],[Выдано топливо, литр]]+R26)+Январь[[#This Row],[Остаток топлива в баке на начало дня, литр]]-Январь[[#This Row],[Фактический расход топлива, литр]],""),"") -> 455 | N26: =ROUND((Январь[[#This Row],[Пройдено за день, км]]*0.01*$Y$2+Январь[[#This Row],[Расход топлива на работу спецоборудования, литр]]),3)+V26 -> 0 | O26: =ROUND(Январь[[#This Row],[Расход топлива по норме, литр]]/VLOOKUP(Январь[Дата],S$2:W$4,5),0)+T26 -> 0 | P26: =IFERROR(Январь[[#This Row],[Фактический расход топлива, литр]]-Январь[[#This Row],[Расход топлива по норме, литр]],"") -> 0 | W26: =Январь[[#This Row],[Дата]] -> 2018-01-20
A27: =IFERROR(DATEVALUE((COUNT($A$6:A26)+1)&$P$1&$I$4),"") -> 2018-01-21 | B27: Никляев В.А. | C27: 209618 | D27: 209646 | E27: =Январь[[#This Row],[Показание одометра машины на конец дня, км]]-Январь[[#This Row],[Показание одометра машины на начало дня, км]]+S27 -> 28 | G27: =IF(Январь[[#This Row],[Дата]]="","",M26) -> 455 | H27: 640 | I27: 643 | J27: =IF(U27="",Январь[[#This Row],[Показание счетчика моточасов спецоборудования на конец дня, м/ч]],Январь[[#This Row],[Показание счетчика моточасов спецоборудования на конец дня, м/ч]]+1)-Январь[[#This Row],[Показание счетчика моточасов спецоборудования на начало дня, м/ч]] -> 3 | K27: 2 | L27: =IF(Январь[[#This Row],[Работа спецоборудования за день, м/ч]]="","",Январь[[#This Row],[Работа спецоборудования за день, м/ч]]*$Z$2) -> 18.15 | M27: =IF(VLOOKUP(Январь[Дата],S$2:U$3,3),IFERROR(IF(R27="",Январь[[#This Row],[Выдано топливо, литр]],Январь[[#This Row],[Выдано топливо, литр]]+R27)+Январь[[#This Row],[Остаток топлива в баке на начало дня, литр]]-Январь[[#This Row],[Фактический расход топлива, литр]],""),"") -> 432 | N27: =ROUND((Январь[[#This Row],[Пройдено за день, км]]*0.01*$Y$2+Январь[[#This Row],[Расход топлива на работу спецоборудования, литр]]),3)+V27 -> 32.583 | O27: =ROUND(Январь[[#This Row],[Расход топлива по норме, литр]]/VLOOKUP(Январь[Дата],S$2:W$4,5),0)+T27 -> 23 | P27: =IFERROR(Январь[[#This Row],[Фактический расход топлива, литр]]-Январь[[#This Row],[Расход топлива по норме, литр]],"") -> -9.583 | W27: =Январь[[#This Row],[Дата]] -> 2018-01-21
A28: =IFERROR(DATEVALUE((COUNT($A$6:A27)+1)&$P$1&$I$4),"") -> 2018-01-22 | B28: Никляев В.А. | C28: 209646 | D28: 209695 | E28: =Январь[[#This Row],[Показание одометра машины на конец дня, км]]-Январь[[#This Row],[Показание одометра машины на начало дня, км]]+S28 -> 49 | G28: =IF(Январь[[#This Row],[Дата]]="","",M27) -> 432 | H28: 643 | I28: 645 | J28: =IF(U28="",Январь[[#This Row],[Показание счетчика моточасов спецоборудования на конец дня, м/ч]],Январь[[#This Row],[Показание счетчика моточасов спецоборудования на конец дня, м/ч]]+1)-Январь[[#This Row],[Показание счетчика моточасов спецоборудования на начало дня, м/ч]] -> 2 | K28: 1 | L28: =IF(Январь[[#This Row],[Работа спецоборудования за день, м/ч]]="","",Январь[[#This Row],[Работа спецоборудования за день, м/ч]]*$Z$2) -> 12.1 | M28: =IF(VLOOKUP(Январь[Дата],S$2:U$3,3),IFERROR(IF(R28="",Январь[[#This Row],[Выдано топливо, литр]],Январь[[#This Row],[Выдано топливо, литр]]+R28)+Январь[[#This Row],[Остаток топлива в баке на начало дня, литр]]-Январь[[#This Row],[Фактический расход топлива, литр]],""),"") -> 406 | N28: =ROUND((Январь[[#This Row],[Пройдено за день, км]]*0.01*$Y$2+Январь[[#This Row],[Расход топлива на работу спецоборудования, литр]]),3)+V28 -> 37.358 | O28: =ROUND(Январь[[#This Row],[Расход топлива по норме, литр]]/VLOOKUP(Январь[Дата],S$2:W$4,5),0)+T28 -> 26 | P28: =IFERROR(Январь[[#This Row],[Фактический расход топлива, литр]]-Январь[[#This Row],[Расход топлива по норме, литр]],"") -> -11.358 | W28: =Январь[[#This Row],[Дата]] -> 2018-01-22
A29: =IFERROR(DATEVALUE((COUNT($A$6:A28)+1)&$P$1&$I$4),"") -> 2018-01-23 | B29: Никляев В.А. | C29: 209695 | D29: 209719 | E29: =Январь[[#This Row],[Показание одометра машины на конец дня, км]]-Январь[[#This Row],[Показание одометра машины на начало дня, км]]+S29 -> 24 | G29: =IF(Январь[[#This Row],[Дата]]="","",M28) -> 406 | H29: 645 | I29: 647 | J29: =IF(U29="",Январь[[#This Row],[Показание счетчика моточасов спецоборудования на конец дня, м/ч]],Январь[[#This Row],[Показание счетчика моточасов спецоборудования на конец дня, м/ч]]+1)-Январь[[#This Row],[Показание счетчика моточасов спецоборудования на начало дня, м/ч]] -> 2 | K29: 1 | L29: =IF(Январь[[#This Row],[Работа спецоборудования за день, м/ч]]="","",Январь[[#This Row],[Работа спецоборудования за день, м/ч]]*$Z$2) -> 12.1 | M29: =IF(VLOOKUP(Январь[Дата],S$2:U$3,3),IFERROR(IF(R29="",Январь[[#This Row],[Выдано топливо, литр]],Январь[[#This Row],[Выдано топливо, литр]]+R29)+Январь[[#This Row],[Остаток топлива в баке на начало дня, литр]]-Январь[[#This Row],[Фактический расход топлива, литр]],""),"") -> 389 | N29: =ROUND((Январь[[#This Row],[Пройдено за день, км]]*0.01*$Y$2+Январь[[#This Row],[Расход топлива на работу спецоборудования, литр]]),3)+V29 -> 24.471 | O29: =ROUND(Январь[[#This Row],[Расход топлива по норме, литр]]/VLOOKUP(Январь[Дата],S$2:W$4,5),0)+T29 -> 17 | P29: =IFERROR(Январь[[#This Row],[Фактический расход топлива, литр]]-Январь[[#This Row],[Расход топлива по норме, литр]],"") -> -7.471 | W29: =Январь[[#This Row],[Дата]] -> 2018-01-23
A30: =IFERROR(DATEVALUE((COUNT($A$6:A29)+1)&$P$1&$I$4),"") -> 2018-01-24 | B30: Никляев В.А. | C30: 209719 | D30: 210061 | E30: =Январь[[#This Row],[Показание одометра машины на конец дня, км]]-Январь[[#This Row],[Показание одометра машины на начало дня, км]]+S30 -> 342 | G30: =IF(Январь[[#This Row],[Дата]]="","",M29) -> 389 | H30: 647 | I30: 651 | J30: =IF(U30="",Январь[[#This Row],[Показание счетчика моточасов спецоборудования на конец дня, м/ч]],Январь[[#This Row],[Показание счетчика моточасов спецоборудования на конец дня, м/ч]]+1)-Январь[[#This Row],[Показание счетчика моточасов спецоборудования на начало дня, м/ч]] -> 4 | K30: 2 | L30: =IF(Январь[[#This Row],[Работа спецоборудования за день, м/ч]]="","",Январь[[#This Row],[Работа спецоборудования за день, м/ч]]*$Z$2) -> 24.2 | M30: =IF(VLOOKUP(Январь[Дата],S$2:U$3,3),IFERROR(IF(R30="",Январь[[#This Row],[Выдано топливо, литр]],Январь[[#This Row],[Выдано топливо, литр]]+R30)+Январь[[#This Row],[Остаток топлива в баке на начало дня, литр]]-Январь[[#This Row],[Фактический расход топлива, литр]],""),"") -> 250 | N30: =ROUND((Январь[[#This Row],[Пройдено за день, км]]*0.01*$Y$2+Январь[[#This Row],[Расход топлива на работу спецоборудования, литр]]),3)+V30 -> 200.487 | O30: =ROUND(Январь[[#This Row],[Расход топлива по норме, литр]]/VLOOKUP(Январь[Дата],S$2:W$4,5),0)+T30 -> 139 | P30: =IFERROR(Январь[[#This Row],[Фактический расход топлива, литр]]-Январь[[#This Row],[Расход топлива по норме, литр]],"") -> -61.487 | W30: =Январь[[#This Row],[Дата]] -> 2018-01-24
A31: =IFERROR(DATEVALUE((COUNT($A$6:A30)+1)&$P$1&$I$4),"") -> 2018-01-25 | B31: Никляев В.А. | C31: 210061 | D31: 210300 | E31: =Январь[[#This Row],[Показание одометра машины на конец дня, км]]-Январь[[#This Row],[Показание одометра машины на начало дня, км]]+S31 -> 239 | F31: 300 | G31: =IF(Январь[[#This Row],[Дата]]="","",M30) -> 250 | H31: 651 | I31: 656 | J31: =IF(U31="",Январь[[#This Row],[Показание счетчика моточасов спецоборудования на конец дня, м/ч]],Январь[[#This Row],[Показание счетчика моточасов спецоборудования на конец дня, м/ч]]+1)-Январь[[#This Row],[Показание счетчика моточасов спецоборудования на начало дня, м/ч]] -> 5 | K31: 3 | L31: =IF(Январь[[#This Row],[Работа спецоборудования за день, м/ч]]="","",Январь[[#This Row],[Работа спецоборудования за день, м/ч]]*$Z$2) -> 30.25 | M31: =IF(VLOOKUP(Январь[Дата],S$2:U$3,3),IFERROR(IF(R31="",Январь[[#This Row],[Выдано топливо, литр]],Январь[[#This Row],[Выдано топливо, литр]]+R31)+Январь[[#This Row],[Остаток топлива в баке на начало дня, литр]]-Январь[[#This Row],[Фактический расход топлива, литр]],""),"") -> 444 | N31: =ROUND((Январь[[#This Row],[Пройдено за день, км]]*0.01*$Y$2+Январь[[#This Row],[Расход топлива на работу спецоборудования, литр]]),3)+V31 -> 153.445 | O31: =ROUND(Январь[[#This Row],[Расход топлива по норме, литр]]/VLOOKUP(Январь[Дата],S$2:W$4,5),0)+T31 -> 106 | P31: =IFERROR(Январь[[#This Row],[Фактический расход топлива, литр]]-Январь[[#This Row],[Расход топлива по норме, литр]],"") -> -47.445 | W31: =Январь[[#This Row],[Дата]] -> 2018-01-25
A32: =IFERROR(DATEVALUE((COUNT($A$6:A31)+1)&$P$1&$I$4),"") -> 2018-01-26 | B32: Никляев В.А. | C32: 210300 | D32: 210327 | E32: =Январь[[#This Row],[Показание одометра машины на конец дня, км]]-Январь[[#This Row],[Показание одометра машины на начало дня, км]]+S32 -> 27 | G32: =IF(Январь[[#This Row],[Дата]]="","",M31) -> 444 | H32: 656 | I32: 658 | J32: =IF(U32="",Январь[[#This Row],[Показание счетчика моточасов спецоборудования на конец дня, м/ч]],Январь[[#This Row],[Показание счетчика моточасов спецоборудования на конец дня, м/ч]]+1)-Январь[[#This Row],[Показание счетчика моточасов спецоборудования на начало дня, м/ч]] -> 2 | K32: 1 | L32: =IF(Январь[[#This Row],[Работа спецоборудования за день, м/ч]]="","",Январь[[#This Row],[Работа спецоборудования за день, м/ч]]*$Z$2) -> 12.1 | M32: =IF(VLOOKUP(Январь[Дата],S$2:U$3,3),IFERROR(IF(R32="",Январь[[#This Row],[Выдано топливо, литр]],Январь[[#This Row],[Выдано топливо, литр]]+R32)+Январь[[#This Row],[Остаток топлива в баке на начало дня, литр]]-Январь[[#This Row],[Фактический расход топлива, литр]],""),"") -> 426 | N32: =ROUND((Январь[[#This Row],[Пройдено за день, км]]*0.01*$Y$2+Январь[[#This Row],[Расход топлива на работу спецоборудования, литр]]),3)+V32 -> 26.017 | O32: =ROUND(Январь[[#This Row],[Расход топлива по норме, литр]]/VLOOKUP(Январь[Дата],S$2:W$4,5),0)+T32 -> 18 | P32: =IFERROR(Январь[[#This Row],[Фактический расход топлива, литр]]-Январь[[#This Row],[Расход топлива по норме, литр]],"") -> -8.017 | W32: =Январь[[#This Row],[Дата]] -> 2018-01-26
A33: =IFERROR(DATEVALUE((COUNT($A$6:A32)+1)&$P$1&$I$4),"") -> 2018-01-27 | B33: Никляев В.А. | C33: 210327 | D33: 210354 | E33: =Январь[[#This Row],[Показание одометра машины на конец дня, км]]-Январь[[#This Row],[Показание одометра машины на начало дня, км]]+S33 -> 27 | G33: =IF(Январь[[#This Row],[Дата]]="","",M32) -> 426 | H33: 658 | I33: 660 | J33: =IF(U33="",Январь[[#This Row],[Показание счетчика моточасов спецоборудования на конец дня, м/ч]],Январь[[#This Row],[Показание счетчика моточасов спецоборудования на конец дня, м/ч]]+1)-Январь[[#This Row],[Показание счетчика моточасов спецоборудования на начало дня, м/ч]] -> 2 | K33: 1 | L33: =IF(Январь[[#This Row],[Работа спецоборудования за день, м/ч]]="","",Январь[[#This Row],[Работа спецоборудования за день, м/ч]]*$Z$2) -> 12.1 | M33: =IF(VLOOKUP(Январь[Дата],S$2:U$3,3),IFERROR(IF(R33="",Январь[[#This Row],[Выдано топливо, литр]],Январь[[#This Row],[Выдано топливо, литр]]+R33)+Январь[[#This Row],[Остаток топлива в баке на начало дня, литр]]-Январь[[#This Row],[Фактический расход топлива, литр]],""),"") -> 408 | N33: =ROUND((Январь[[#This Row],[Пройдено за день, км]]*0.01*$Y$2+Январь[[#This Row],[Расход топлива на работу спецоборудования, литр]]),3)+V33 -> 26.017 | O33: =ROUND(Январь[[#This Row],[Расход топлива по норме, литр]]/VLOOKUP(Январь[Дата],S$2:W$4,5),0)+T33 -> 18 | P33: =IFERROR(Январь[[#This Row],[Фактический расход топлива, литр]]-Январь[[#This Row],[Расход топлива по норме, литр]],"") -> -8.017 | W33: =Январь[[#This Row],[Дата]] -> 2018-01-27
A34: =IFERROR(DATEVALUE((COUNT($A$6:A33)+1)&$P$1&$I$4),"") -> 2018-01-28 | B34: Никляев В.А. | C34: 210354 | D34: 210448 | E34: =Январь[[#This Row],[Показание одометра машины на конец дня, км]]-Январь[[#This Row],[Показание одометра машины на начало дня, км]]+S34 -> 94 | G34: =IF(Январь[[#This Row],[Дата]]="","",M33) -> 408 | H34: 660 | I34: 665 | J34: =IF(U34="",Январь[[#This Row],[Показание счетчика моточасов спецоборудования на конец дня, м/ч]],Январь[[#This Row],[Показание счетчика моточасов спецоборудования на конец дня, м/ч]]+1)-Январь[[#This Row],[Показание счетчика моточасов спецоборудования на начало дня, м/ч]] -> 5 | K34: 3 | L34: =IF(Январь[[#This Row],[Работа спецоборудования за день, м/ч]]="","",Январь[[#This Row],[Работа спецоборудования за день, м/ч]]*$Z$2) -> 30.25 | M34: =IF(VLOOKUP(Январь[Дата],S$2:U$3,3),IFERROR(IF(R34="",Январь[[#This Row],[Выдано топливо, литр]],Январь[[#This Row],[Выдано топливо, литр]]+R34)+Январь[[#This Row],[Остаток топлива в баке на начало дня, литр]]-Январь[[#This Row],[Фактический расход топлива, литр]],""),"") -> 353 | N34: =ROUND((Январь[[#This Row],[Пройдено за день, км]]*0.01*$Y$2+Январь[[#This Row],[Расход топлива на работу спецоборудования, литр]]),3)+V34 -> 78.703 | O34: =ROUND(Январь[[#This Row],[Расход топлива по норме, литр]]/VLOOKUP(Январь[Дата],S$2:W$4,5),0)+T34 -> 55 | P34: =IFERROR(Январь[[#This Row],[Фактический расход топлива, литр]]-Январь[[#This Row],[Расход топлива по норме, литр]],"") -> -23.703 | W34: =Январь[[#This Row],[Дата]] -> 2018-01-28
A35: =IFERROR(DATEVALUE((COUNT($A$6:A34)+1)&$P$1&$I$4),"") -> 2018-01-29 | B35: Никляев В.А. | C35: 210448 | D35: 210582 | E35: =Январь[[#This Row],[Показание одометра машины на конец дня, км]]-Январь[[#This Row],[Показание одометра машины на начало дня, км]]+S35 -> 134 | F35: =370-168 -> 202 | G35: =IF(Январь[[#This Row],[Дата]]="","",M34) -> 353 | H35: 665 | I35: 667 | J35: =IF(U35="",Январь[[#This Row],[Показание счетчика моточасов спецоборудования на конец дня, м/ч]],Январь[[#This Row],[Показание счетчика моточасов спецоборудования на конец дня, м/ч]]+1)-Январь[[#This Row],[Показание счетчика моточасов спецоборудования на начало дня, м/ч]] -> 2 | K35: 3 | L35: =IF(Январь[[#This Row],[Работа спецоборудования за день, м/ч]]="","",Январь[[#This Row],[Работа спецоборудования за день, м/ч]]*$Z$2) -> 12.1 | M35: =IF(VLOOKUP(Январь[Дата],S$2:U$3,3),IFERROR(IF(R35="",Январь[[#This Row],[Выдано топливо, литр]],Январь[[#This Row],[Выдано топливо, литр]]+R35)+Январь[[#This Row],[Остаток топлива в баке на начало дня, литр]]-Январь[[#This Row],[Фактический расход топлива, литр]],""),"") -> 499 | N35: =ROUND((Январь[[#This Row],[Пройдено за день, км]]*0.01*$Y$2+Январь[[#This Row],[Расход топлива на работу спецоборудования, литр]]),3)+V35 -> 81.172 | O35: =ROUND(Январь[[#This Row],[Расход топлива по норме, литр]]/VLOOKUP(Январь[Дата],S$2:W$4,5),0)+T35 -> 56 | P35: =IFERROR(Январь[[#This Row],[Фактический расход топлива, литр]]-Январь[[#This Row],[Расход топлива по норме, литр]],"") -> -25.172 | W35: =Январь[[#This Row],[Дата]] -> 2018-01-29
A36: =IFERROR(DATEVALUE((COUNT($A$6:A35)+1)&$P$1&$I$4),"") -> 2018-01-30 | B36: Никляев В.А. | C36: 210582 | D36: 210696 | E36: =Январь[[#This Row],[Показание одометра машины на конец дня, км]]-Январь[[#This Row],[Показание одометра машины на начало дня, км]]+S36 -> 126 | G36: =IF(Январь[[#This Row],[Дата]]="","",M35) -> 499 | H36: 667 | I36: 670 | J36: =IF(U36="",Январь[[#This Row],[Показание счетчика моточасов спецоборудования на конец дня, м/ч]],Январь[[#This Row],[Показание счетчика моточасов спецоборудования на конец дня, м/ч]]+1)-Январь[[#This Row],[Показание счетчика моточасов спецоборудования на начало дня, м/ч]] -> 3 | K36: 2 | L36: =IF(Январь[[#This Row],[Работа спецоборудования за день, м/ч]]="","",Январь[[#This Row],[Работа спецоборудования за день, м/ч]]*$Z$2) -> 18.15 | M36: =IF(VLOOKUP(Январь[Дата],S$2:U$3,3),IFERROR(IF(R36="",Январь[[#This Row],[Выдано топливо, литр]],Январь[[#This Row],[Выдано топливо, литр]]+R36)+Январь[[#This Row],[Остаток топлива в баке на начало дня, литр]]-Январь[[#This Row],[Фактический расход топлива, литр]],""),"") -> 406 | N36: =ROUND((Январь[[#This Row],[Пройдено за день, км]]*0.01*$Y$2+Январь[[#This Row],[Расход топлива на работу спецоборудования, литр]]),3)+V36 -> 83.098 | O36: =ROUND(Январь[[#This Row],[Расход топлива по норме, литр]]/VLOOKUP(Январь[Дата],S$2:W$4,5),0)+T36 -> 93 | P36: =IFERROR(Январь[[#This Row],[Фактический расход топлива, литр]]-Январь[[#This Row],[Расход топлива по норме, литр]],"") -> 9.902 | S36: 12 | T36: 1 | W36: =Январь[[#This Row],[Дата]] -> 2018-01-30
A37: =IFERROR(DATEVALUE((COUNT($A$6:A36)+1)&$P$1&$I$4),"") -> 2018-01-31 | B37: Никляев В.А. | C37: 210696 | D37: 210723 | E37: =Январь[[#This Row],[Показание одометра машины на конец дня, км]]-Январь[[#This Row],[Показание одометра машины на начало дня, км]]+S37 -> 27 | F37: 250 | G37: =IF(Январь[[#This Row],[Дата]]="","",M36) -> 406 | H37: 670 | I37: 671 | J37: =IF(U37="",Январь[[#This Row],[Показание счетчика моточасов спецоборудования на конец дня, м/ч]],Январь[[#This Row],[Показание счетчика моточасов спецоборудования на конец дня, м/ч]]+1)-Январь[[#This Row],[Показание счетчика моточасов спецоборудования на начало дня, м/ч]] -> 1 | K37: 1 | L37: =IF(Январь[[#This Row],[Работа спецоборудования за день, м/ч]]="","",Январь[[#This Row],[Работа спецоборудования за день, м/ч]]*$Z$2) -> 6.05 | M37: =IF(VLOOKUP(Январь[Дата],S$2:U$3,3),IFERROR(IF(R37="",Январь[[#This Row],[Выдано топливо, литр]],Январь[[#This Row],[Выдано топливо, литр]]+R37)+Январь[[#This Row],[Остаток топлива в баке на начало дня, литр]]-Январь[[#This Row],[Фактический расход топлива, литр]],""),"") -> 635 | N37: =ROUND((Январь[[#This Row],[Пройдено за день, км]]*0.01*$Y$2+Январь[[#This Row],[Расход топлива на работу спецоборудования, литр]]),3)+V37 -> 19.97 | O37: =ROUND(Январь[[#This Row],[Расход топлива по норме, литр]]/VLOOKUP(Январь[Дата],S$2:W$4,5),0)+T37 -> 21 | P37: =IFERROR(Январь[[#This Row],[Фактический расход топлива, литр]]-Январь[[#This Row],[Расход топлива по норме, литр]],"") -> 1.03 | T37: -1 | V37: 0.003 | W37: =Январь[[#This Row],[Дата]] -> 2018-01-31
A38: Итог | E38: =SUBTOTAL(109,Январь[Пройдено за день, км]) -> 1711 | F38: =SUBTOTAL(109,Январь[Выдано топливо, литр]) -> 1082 | J38: =SUBTOTAL(109,Январь[Работа спецоборудования за день, м/ч]) -> 51 | K38: =SUBTOTAL(109,Январь[Количество ходок]) -> 33 | L38: =SUBTOTAL(109,Январь[Расход топлива на работу спецоборудования, литр]) -> 308.55 | N38: =SUBTOTAL(109,Январь[Расход топлива по норме, литр]) -> 1190.503 | O38: =SUBTOTAL(109,Январь[Фактический расход топлива, литр]) -> 947 | P38: =SUBTOTAL(109,Январь[Отклонение от нормы (Перерасход(+), экономия(-)), литр]) -> -243.503
K39: =SUMIFS(K7:K37,A7:A37,">="&$S$2,A7:A37,"<="&$T$2) -> 12
K40: =SUMIFS(K7:K37,A7:A37,">="&$S$3,A7:A37,"<="&$T$3) -> 18 | O40: =ROUND(N36/Февраль!W2,0)+T36 -> 93
O41: =ROUND(N37/Февраль!W2,0)+T37 -> 21

Sheet Февраль
P1: Февраль | T1: -3 | X1: Экономия | Y1: Базовая норма расхода на 100 км | Z1: Базовая норма расхода на 1 мото/час
A2: Общество с ограниченной ответственностью "Втормет Царицыно" | R2: 1-я половина | S2: =INDIRECT(TEXT(A7-1,"ММММ")&"!t3")+1 -> 2018-01-30 | T2: 2018-02-15 | U2: =ТС!E5 -> 500 | V2: =SUMIFS(Февраль[Выдано топливо, литр],Февраль[Дата],">="&$S$2,Февраль[Дата],"<="&$T$2)+IF(MONTH(T2)<>MONTH(S2),INDIRECT(TEXT(A7-1,"ММММ")&"!F38")-SUM(INDIRECT(TEXT(A7-1,"ММММ")&"!V3:V2"))) -> 870 | W2: =IF(V2=0,0,(SUMIFS(N7:N37,A7:A37,">="&S2,A7:A37,"<="&T2)+SUMIFS(INDIRECT(TEXT(A7-1,"ММММ")&"!N7:N37"),INDIRECT(TEXT(A7-1,"ММММ")&"!A7:A37"),">="&S2))/(V2-U2+IF(MONTH(T2)=MONTH(S2),G7,INDEX(INDIRECT(TEXT(A7-1,"ММММ")&"!G7:G37"),DAY(S2))))) -> 0.9058331415 | X2: =SUMIFS(Февраль[Отклонение от нормы (Перерасход(+), экономия(-)), литр],Февраль[Дата],">="&$S$2,Февраль[Дата],"<="&$T$2) -> 73.899 | Y2: =IF(Y4="Зима",VLOOKUP(Z4,Расчет[[Номер гос.регистрации / Заводской номер]:[Итога норма а/м "ЛЕТО"]],8,FALSE),VLOOKUP(Z4,Расчет[[Номер гос.регистрации / Заводской номер]:[Итога норма а/м "ЛЕТО"]],9,FALSE)) -> 51.546 | Z2: =IF(Y4="Зима",VLOOKUP(Z4,Расчет[[Номер гос.регистрации / Заводской номер]:[Итога норма а/м "ЛЕТО"]],13,FALSE),VLOOKUP(Z4,Расчет[[Номер гос.регистрации / Заводской номер]:[Итога норма а/м "ЛЕТО"]],14,FALSE)) -> 6.05
A3: Отчет водителя ломовоза с манипулятором | R3: 2-я половина | S3: =T2+1 -> 2018-02-16 | T3: =INDEX(Февраль[Дата],COUNT(Февраль[Дата]))-T1 -> 2018-03-03 | U3: =ТС!E6 -> 500 | V3: =SUMIFS(Февраль[Выдано топливо, литр],Февраль[Дата],">="&$S$3,Февраль[Дата],"<="&$T$3)+IF(MONTH(T3)<>MONTH(S3),SUMIFS(INDIRECT(TEXT(T3,"ММММ")&"[Выдано топливо, литр]"),INDIRECT(TEXT(T3,"ММММ")&"[Дата]"),">="&$S$3,INDIRECT(TEXT(T3,"ММММ")&"[Дата]"),"<="&$T$3)) -> 450 | W3: =IF(V3=0,0,(SUMIFS(N7:N37,A7:A37,">="&S3,A7:A37,"<="&T3)+SUMIFS(INDIRECT(TEXT(A7-1,"ММММ")&"!N7:N37"),INDIRECT(TEXT(A7-1,"ММММ")&"!A7:A37"),">="&S3))/(V3-U3+IF(MONTH(T3)=MONTH(S3),G7,INDEX(INDIRECT(TEXT(A7-1,"ММММ")&"!G7:G37"),DAY(S3))))) -> 1.085721854 | X3: =SUMIFS(Февраль[Отклонение от нормы (Перерасход(+), экономия(-)), литр],Февраль[Дата],">="&$S$3,Февраль[Дата],"<="&$T$3) -> -25.888
H4: за | I4: 2018 | O4: т056вв 197 | S4: =T3+1 -> 2018-03-04 | W4: =IFERROR(INDIRECT(TEXT(A7+40,"ММММ")&"!W2"),) -> 1.029220968 | Y4: Зима | Z4: Норма 1
A6: Дата | B6: ФИО водителя | C6: Показание одометра машины на начало дня, км | D6: Показание одометра машины на конец дня, км | E6: Пройдено за день, км | F6: Выдано топливо, литр | G6: Остаток топлива в баке на начало дня, литр | H6: Показание счетчика моточасов спецоборудования на начало дня, м/ч | I6: Показание счетчика моточасов спецоборудования на конец дня, м/ч | J6: Работа спецоборудования за день, м/ч | K6: Количество ходок | L6: Расход топлива на работу спецоборудования, литр | M6: Остаток топлива в баке на конец дня, литр | N6: Расход топлива по норме, литр | O6: Фактический расход топлива, литр | P6: Отклонение от нормы (Перерасход(+), экономия(-)), литр | R6: Выдано топливо, литр | S6: Пройдено за день, км | T6: Фактический расход топлива, литр | U6: Работа спецоборудования за день, м/ч | V6: Расход топлива по норме, литр | W6: Дата
A7: =IFERROR(DATEVALUE((COUNT($A$6:A6)+1)&$P$1&$I$4),"") -> 2018-02-01 | C7: =INDEX(Январь!D7:D37,COUNT(Январь!D7:D37)) -> 210723 | D7: 210723 | E7: =IFERROR(Февраль[[#This Row],[Показание одометра машины на конец дня, км]]-Февраль[[#This Row],[Показание одометра машины на начало дня, км]]+S7,"") -> 0 | G7: =U2 -> 500 | H7: =INDEX(Январь!I7:I37,COUNT(Январь!I7:I37)) -> 671 | I7: 671 | J7: =IFERROR(IF(U7="",Февраль[[#This Row],[Показание счетчика моточасов спецоборудования на конец дня, м/ч]],Февраль[[#This Row],[Показание счетчика моточасов спецоборудования на конец дня, м/ч]]+1)-Февраль[[#This Row],[Показание счетчика моточасов спецоборудования на начало дня, м/ч]],"") -> 0 | K7: 0 | L7: =IF(Февраль[[#This Row],[Работа спецоборудования за день, м/ч]]="","",Февраль[[#This Row],[Работа спецоборудования за день, м/ч]]*$Z$2) -> 0 | M7: =IFERROR(IF(VLOOKUP(Февраль[Дата],S$2:U$3,3),IFERROR(IF(R7="",Февраль[[#This Row],[Выдано топливо, литр]],Февраль[[#This Row],[Выдано топливо, литр]]+R7)+Февраль[[#This Row],[Остаток топлива в баке на начало дня, литр]]-Февраль[[#This Row],[Фактический расход топлива, литр]],""),""),"") -> 500 | N7: =IFERROR(ROUND((Февраль[[#This Row],[Пройдено за день, км]]*0.01*$Y$2+Февраль[[#This Row],[Расход топлива на работу спецоборудования, литр]]),3)+V7,"") -> 0 | O7: =IFERROR(IF(Февраль[[#Totals],[Выдано топливо, литр]]=0,0,(ROUND(Февраль[[#This Row],[Расход топлива по норме, литр]]/IF(DAY(Февраль[Дата])<=18,$W$2,$W$3),0)))+T7,"") -> 0 | P7: =IFERROR(Февраль[[#This Row],[Фактический расход топлива, литр]]-Февраль[[#This Row],[Расход топлива по норме, литр]],"") -> 0 | W7: =Февраль[[#This Row],[Дата]] -> 2018-02-01
A8: =IFERROR(DATEVALUE((COUNT($A$6:A7)+1)&$P$1&$I$4),"") -> 2018-02-02 | B8: Никляев В.А. | C8: =IF(Февраль[[#This Row],[Дата]]="","",D7) -> 210723 | D8: 210735 | E8: =IFERROR(Февраль[[#This Row],[Показание одометра машины на конец дня, км]]-Февраль[[#This Row],[Показание одометра машины на начало дня, км]]+S8,"") -> 12 | G8: =IF(Февраль[[#This Row],[Дата]]="","",M7) -> 500 | H8: =IF(Февраль[[#This Row],[Дата]]="","",I7) -> 671 | I8: 672 | J8: =IFERROR(IF(U8="",Февраль[[#This Row],[Показание счетчика моточасов спецоборудования на конец дня, м/ч]],Февраль[[#This Row],[Показание счетчика моточасов спецоборудования на конец дня, м/ч]]+1)-Февраль[[#This Row],[Показание счетчика моточасов спецоборудования на начало дня, м/ч]],"") -> 1 | K8: 1 | L8: =IF(Февраль[[#This Row],[Работа спецоборудования за день, м/ч]]="","",Февраль[[#This Row],[Работа спецоборудования за день, м/ч]]*$Z$2) -> 6.05 | M8: =IFERROR(IF(VLOOKUP(Февраль[Дата],S$2:U$3,3),IFERROR(IF(R8="",Февраль[[#This Row],[Выдано топливо, литр]],Февраль[[#This Row],[Выдано топливо, литр]]+R8)+Февраль[[#This Row],[Остаток топлива в баке на начало дня, литр]]-Февраль[[#This Row],[Фактический расход топлива, литр]],""),""),"") -> 486 | N8: =IFERROR(ROUND((Февраль[[#This Row],[Пройдено за день, км]]*0.01*$Y$2+Февраль[[#This Row],[Расход топлива на работу спецоборудования, литр]]),3)+V8,"") -> 12.236 | O8: =IFERROR(IF(Февраль[[#Totals],[Выдано топливо, литр]]=0,0,(ROUND(Февраль[[#This Row],[Расход топлива по норме, литр]]/IF(DAY(Февраль[Дата])<=18,$W$2,$W$3),0)))+T8,"") -> 14 | P8: =IFERROR(Февраль[[#This Row],[Фактический расход топлива, литр]]-Февраль[[#This Row],[Расход топлива по норме, литр]],"") -> 1.764 | W8: =Февраль[[#This Row],[Дата]] -> 2018-02-02
A9: =IFERROR(DATEVALUE((COUNT($A$6:A8)+1)&$P$1&$I$4),"") -> 2018-02-03 | B9: Никляев В.А. | C9: =IF(Февраль[[#This Row],[Дата]]="","",D8) -> 210735 | D9: 210777 | E9: =IFERROR(Февраль[[#This Row],[Показание одометра машины на конец дня, км]]-Февраль[[#This Row],[Показание одометра машины на начало дня, км]]+S9,"") -> 42 | G9: =IF(Февраль[[#This Row],[Дата]]="","",M8) -> 486 | H9: =IF(Февраль[[#This Row],[Дата]]="","",I8) -> 672 | I9: 674 | J9: =IFERROR(IF(U9="",Февраль[[#This Row],[Показание счетчика моточасов спецоборудования на конец дня, м/ч]],Февраль[[#This Row],[Показание счетчика моточасов спецоборудования на конец дня, м/ч]]+1)-Февраль[[#This Row],[Показание счетчика моточасов спецоборудования на начало дня, м/ч]],"") -> 2 | K9: 1 | L9: =IF(Февраль[[#This Row],[Работа спецоборудования за день, м/ч]]="","",Февраль[[#This Row],[Работа спецоборудования за день, м/ч]]*$Z$2) -> 12.1 | M9: =IFERROR(IF(VLOOKUP(Февраль[Дата],S$2:U$3,3),IFERROR(IF(R9="",Февраль[[#This Row],[Выдано топливо, литр]],Февраль[[#This Row],[Выдано топливо, литр]]+R9)+Февраль[[#This Row],[Остаток топлива в баке на начало дня, литр]]-Февраль[[#This Row],[Фактический расход топлива, литр]],""),""),"") -> 449 | N9: =IFERROR(ROUND((Февраль[[#This Row],[Пройдено за день, км]]*0.01*$Y$2+Февраль[[#This Row],[Расход топлива на работу спецоборудования, литр]]),3)+V9,"") -> 33.748 | O9: =IFERROR(IF(Февраль[[#Totals],[Выдано топливо, литр]]=0,0,(ROUND(Февраль[[#This Row],[Расход топлива по норме, литр]]/IF(DAY(Февраль[Дата])<=18,$W$2,$W$3),0)))+T9,"") -> 37 | P9: =IFERROR(Февраль[[#This Row],[Фактический расход топлива, литр]]-Февраль[[#This Row],[Расход топлива по норме, литр]],"") -> 3.252 | V9: -0.001 | W9: =Февраль[[#This Row],[Дата]] -> 2018-02-03
A10: =IFERROR(DATEVALUE((COUNT($A$6:A9)+1)&$P$1&$I$4),"") -> 2018-02-04 | B10: Никляев В.А. | C10: =IF(Февраль[[#This Row],[Дата]]="","",D9) -> 210777 | D10: 210864 | E10: =IFERROR(Февраль[[#This Row],[Показание одометра машины на конец дня, км]]-Февраль[[#This Row],[Показание одометра машины на начало дня, км]]+S10,"") -> 87 | G10: =IF(Февраль[[#This Row],[Дата]]="","",M9) -> 449 | H10: =IF(Февраль[[#This Row],[Дата]]="","",I9) -> 674 | I10: 676 | J10: =IFERROR(IF(U10="",Февраль[[#This Row],[Показание счетчика моточасов спецоборудования на конец дня, м/ч]],Февраль[[#This Row],[Показание счетчика моточасов спецоборудования на конец дня, м/ч]]+1)-Февраль[[#This Row],[Показание счетчика моточасов спецоборудования на начало дня, м/ч]],"") -> 2 | K10: 2 | L10: =IF(Февраль[[#This Row],[Работа спецоборудования за день, м/ч]]="","",Февраль[[#This Row],[Работа спецоборудования за день, м/ч]]*$Z$2) -> 12.1 | M10: =IFERROR(IF(VLOOKUP(Февраль[Дата],S$2:U$3,3),IFERROR(IF(R10="",Февраль[[#This Row],[Выдано топливо, литр]],Февраль[[#This Row],[Выдано топливо, литр]]+R10)+Февраль[[#This Row],[Остаток топлива в баке на начало дня, литр]]-Февраль[[#This Row],[Фактический расход топлива, литр]],""),""),"") -> 386 | N10: =IFERROR(ROUND((Февраль[[#This Row],[Пройдено за день, км]]*0.01*$Y$2+Февраль[[#This Row],[Расход топлива на работу спецоборудования, литр]]),3)+V10,"") -> 56.945 | O10: =IFERROR(IF(Февраль[[#Totals],[Выдано топливо, литр]]=0,0,(ROUND(Февраль[[#This Row],[Расход топлива по норме, литр]]/IF(DAY(Февраль[Дата])<=18,$W$2,$W$3),0)))+T10,"") -> 63 | P10: =IFERROR(Февраль[[#This Row],[Фактический расход топлива, литр]]-Февраль[[#This Row],[Расход топлива по норме, литр]],"") -> 6.055 | W10: =Февраль[[#This Row],[Дата]] -> 2018-02-04
A11: =IFERROR(DATEVALUE((COUNT($A$6:A10)+1)&$P$1&$I$4),"") -> 2018-02-05 | C11: =IF(Февраль[[#This Row],[Дата]]="","",D10) -> 210864 | D11: 210864 | E11: =IFERROR(Февраль[[#This Row],[Показание одометра машины на конец дня, км]]-Февраль[[#This Row],[Показание одометра машины на начало дня, км]]+S11,"") -> 0 | G11: =IF(Февраль[[#This Row],[Дата]]="","",M10) -> 386 | H11: =IF(Февраль[[#This Row],[Дата]]="","",I10) -> 676 | I11: 676 | J11: =IFERROR(IF(U11="",Февраль[[#This Row],[Показание счетчика моточасов спецоборудования на конец дня, м/ч]],Февраль[[#This Row],[Показание счетчика моточасов спецоборудования на конец дня, м/ч]]+1)-Февраль[[#This Row],[Показание счетчика моточасов спецоборудования на начало дня, м/ч]],"") -> 0 | K11: 0 | L11: =IF(Февраль[[#This Row],[Работа спецоборудования за день, м/ч]]="","",Февраль[[#This Row],[Работа спецоборудования за день, м/ч]]*$Z$2) -> 0 | M11: =IFERROR(IF(VLOOKUP(Февраль[Дата],S$2:U$3,3),IFERROR(IF(R11="",Февраль[[#This Row],[Выдано топливо, литр]],Февраль[[#This Row],[Выдано топливо, литр]]+R11)+Февраль[[#This Row],[Остаток топлива в баке на начало дня, литр]]-Февраль[[#This Row],[Фактический расход топлива, литр]],""),""),"") -> 386 | N11: =IFERROR(ROUND((Февраль[[#This Row],[Пройдено за день, км]]*0.01*$Y$2+Февраль[[#This Row],[Расход топлива на работу спецоборудования, литр]]),3)+V11,"") -> 0 | O11: =IFERROR(IF(Февраль[[#Totals],[Выдано топливо, литр]]=0,0,(ROUND(Февраль[[#This Row],[Расход топлива по норме, литр]]/IF(DAY(Февраль[Дата])<=18,$W$2,$W$3),0)))+T11,"") -> 0 | P11: =IFERROR(Февраль[[#This Row],[Фактический расход топлива, литр]]-Февраль[[#This Row],[Расход топлива по норме, литр]],"") -> 0 | W11: =Февраль[[#This Row],[Дата]] -> 2018-02-05
A12: =IFERROR(DATEVALUE((COUNT($A$6:A11)+1)&$P$1&$I$4),"") -> 2018-02-06 | B12: Никляев В.А. | C12: =IF(Февраль[[#This Row],[Дата]]="","",D11) -> 210864 | D12: 210888 | E12: =IFERROR(Февраль[[#This Row],[Показание одометра машины на конец дня, км]]-Февраль[[#This Row],[Показание одометра машины на начало дня, км]]+S12,"") -> 24 | G12: =IF(Февраль[[#This Row],[Дата]]="","",M11) -> 386 | H12: =IF(Февраль[[#This Row],[Дата]]="","",I11) -> 676 | I12: 678 | J12: =IFERROR(IF(U12="",Февраль[[#This Row],[Показание счетчика моточасов спецоборудования на конец дня, м/ч]],Февраль[[#This Row],[Показание счетчика моточасов спецоборудования на конец дня, м/ч]]+1)-Февраль[[#This Row],[Показание счетчика моточасов спецоборудования на начало дня, м/ч]],"") -> 2 | K12: 1 | L12: =IF(Февраль[[#This Row],[Работа спецоборудования за день, м/ч]]="","",Февраль[[#This Row],[Работа спецоборудования за день, м/ч]]*$Z$2) -> 12.1 | M12: =IFERROR(IF(VLOOKUP(Февраль[Дата],S$2:U$3,3),IFERROR(IF(R12="",Февраль[[#This Row],[Выдано топливо, литр]],Февраль[[#This Row],[Выдано топливо, литр]]+R12)+Февраль[[#This Row],[Остаток топлива в баке на начало дня, литр]]-Февраль[[#This Row],[Фактический расход топлива, литр]],""),""),"") -> 359 | N12: =IFERROR(ROUND((Февраль[[#This Row],[Пройдено за день, км]]*0.01*$Y$2+Февраль[[#This Row],[Расход топлива на работу спецоборудования, литр]]),3)+V12,"") -> 24.471 | O12: =IFERROR(IF(Февраль[[#Totals],[Выдано топливо, литр]]=0,0,(ROUND(Февраль[[#This Row],[Расход топлива по норме, литр]]/IF(DAY(Февраль[Дата])<=18,$W$2,$W$3),0)))+T12,"") -> 27 | P12: =IFERROR(Февраль[[#This Row],[Фактический расход топлива, литр]]-Февраль[[#This Row],[Расход топлива по норме, литр]],"") -> 2.529 | W12: =Февраль[[#This Row],[Дата]] -> 2018-02-06
A13: =IFERROR(DATEVALUE((COUNT($A$6:A12)+1)&$P$1&$I$4),"") -> 2018-02-07 | B13: Никляев В.А. | C13: =IF(Февраль[[#This Row],[Дата]]="","",D12) -> 210888 | D13: 210900 | E13: =IFERROR(Февраль[[#This Row],[Показание одометра машины на конец дня, км]]-Февраль[[#This Row],[Показание одометра машины на начало дня, км]]+S13,"") -> 12 | G13: =IF(Февраль[[#This Row],[Дата]]="","",M12) -> 359 | H13: =IF(Февраль[[#This Row],[Дата]]="","",I12) -> 678 | I13: 679 | J13: =IFERROR(IF(U13="",Февраль[[#This Row],[Показание счетчика моточасов спецоборудования на конец дня, м/ч]],Февраль[[#This Row],[Показание счетчика моточасов спецоборудования на конец дня, м/ч]]+1)-Февраль[[#This Row],[Показание счетчика моточасов спецоборудования на начало дня, м/ч]],"") -> 1 | K13: 1 | L13: =IF(Февраль[[#This Row],[Работа спецоборудования за день, м/ч]]="","",Февраль[[#This Row],[Работа спецоборудования за день, м/ч]]*$Z$2) -> 6.05 | M13: =IFERROR(IF(VLOOKUP(Февраль[Дата],S$2:U$3,3),IFERROR(IF(R13="",Февраль[[#This Row],[Выдано топливо, литр]],Февраль[[#This Row],[Выдано топливо, литр]]+R13)+Февраль[[#This Row],[Остаток топлива в баке на начало дня, литр]]-Февраль[[#This Row],[Фактический расход топлива, литр]],""),""),"") -> 345 | N13: =IFERROR(ROUND((Февраль[[#This Row],[Пройдено за день, км]]*0.01*$Y$2+Февраль[[#This Row],[Расход топлива на работу спецоборудования, литр]]),3)+V13,"") -> 12.236 | O13: =IFERROR(IF(Февраль[[#Totals],[Выдано топливо, литр]]=0,0,(ROUND(Февраль[[#This Row],[Расход топлива по норме, литр]]/IF(DAY(Февраль[Дата])<=18,$W$2,$W$3),0)))+T13,"") -> 14 | P13: =IFERROR(Февраль[[#This Row],[Фактический расход топлива, литр]]-Февраль[[#This Row],[Расход топлива по норме, литр]],"") -> 1.764 | W13: =Февраль[[#This Row],[Дата]] -> 2018-02-07
A14: =IFERROR(DATEVALUE((COUNT($A$6:A13)+1)&$P$1&$I$4),"") -> 2018-02-08 | B14: Никляев В.А. | C14: =IF(Февраль[[#This Row],[Дата]]="","",D13) -> 210900 | D14: 211028 | E14: =IFERROR(Февраль[[#This Row],[Показание одометра машины на конец дня, км]]-Февраль[[#This Row],[Показание одометра машины на начало дня, км]]+S14,"") -> 128 | G14: =IF(Февраль[[#This Row],[Дата]]="","",M13) -> 345 | H14: =IF(Февраль[[#This Row],[Дата]]="","",I13) -> 679 | I14: 683 | J14: =IFERROR(IF(U14="",Февраль[[#This Row],[Показание счетчика моточасов спецоборудования на конец дня, м/ч]],Февраль[[#This Row],[Показание счетчика моточасов спецоборудования на конец дня, м/ч]]+1)-Февраль[[#This Row],[Показание счетчика моточасов спецоборудования на начало дня, м/ч]],"") -> 4 | K14: 2 | L14: =IF(Февраль[[#This Row],[Работа спецоборудования за день, м/ч]]="","",Февраль[[#This Row],[Работа спецоборудования за день, м/ч]]*$Z$2) -> 24.2 | M14: =IFERROR(IF(VLOOKUP(Февраль[Дата],S$2:U$3,3),IFERROR(IF(R14="",Февраль[[#This Row],[Выдано топливо, литр]],Февраль[[#This Row],[Выдано топливо, литр]]+R14)+Февраль[[#This Row],[Остаток топлива в баке на начало дня, литр]]-Февраль[[#This Row],[Фактический расход топлива, литр]],""),""),"") -> 245 | N14: =IFERROR(ROUND((Февраль[[#This Row],[Пройдено за день, км]]*0.01*$Y$2+Февраль[[#This Row],[Расход топлива на работу спецоборудования, литр]]),3)+V14,"") -> 90.179 | O14: =IFERROR(IF(Февраль[[#Totals],[Выдано топливо, литр]]=0,0,(ROUND(Февраль[[#This Row],[Расход топлива по норме, литр]]/IF(DAY(Февраль[Дата])<=18,$W$2,$W$3),0)))+T14,"") -> 100 | P14: =IFERROR(Февраль[[#This Row],[Фактический расход топлива, литр]]-Февраль[[#This Row],[Расход топлива по норме, литр]],"") -> 9.821 | W14: =Февраль[[#This Row],[Дата]] -> 2018-02-08
A15: =IFERROR(DATEVALUE((COUNT($A$6:A14)+1)&$P$1&$I$4),"") -> 2018-02-09 | B15: Никляев В.А. | C15: =IF(Февраль[[#This Row],[Дата]]="","",D14) -> 211028 | D15: 211140 | E15: =IFERROR(Февраль[[#This Row],[Показание одометра машины на конец дня, км]]-Февраль[[#This Row],[Показание одометра машины на начало дня, км]]+S15,"") -> 112 | G15: =IF(Февраль[[#This Row],[Дата]]="","",M14) -> 245 | H15: =IF(Февраль[[#This Row],[Дата]]="","",I14) -> 683 | I15: 685 | J15: =IFERROR(IF(U15="",Февраль[[#This Row],[Показание счетчика моточасов спецоборудования на конец дня, м/ч]],Февраль[[#This Row],[Показание счетчика моточасов спецоборудования на конец дня, м/ч]]+1)-Февраль[[#This Row],[Показание счетчика моточасов спецоборудования на начало дня, м/ч]],"") -> 2 | K15: 2 | L15: =IF(Февраль[[#This Row],[Работа спецоборудования за день, м/ч]]="","",Февраль[[#This Row],[Работа спецоборудования за день, м/ч]]*$Z$2) -> 12.1 | M15: =IFERROR(IF(VLOOKUP(Февраль[Дата],S$2:U$3,3),IFERROR(IF(R15="",Февраль[[#This Row],[Выдано топливо, литр]],Февраль[[#This Row],[Выдано топливо, литр]]+R15)+Февраль[[#This Row],[Остаток топлива в баке на начало дня, литр]]-Февраль[[#This Row],[Фактический расход топлива, литр]],""),""),"") -> 168 | N15: =IFERROR(ROUND((Февраль[[#This Row],[Пройдено за день, км]]*0.01*$Y$2+Февраль[[#This Row],[Расход топлива на работу спецоборудования, литр]]),3)+V15,"") -> 69.832 | O15: =IFERROR(IF(Февраль[[#Totals],[Выдано топливо, литр]]=0,0,(ROUND(Февраль[[#This Row],[Расход топлива по норме, литр]]/IF(DAY(Февраль[Дата])<=18,$W$2,$W$3),0)))+T15,"") -> 77 | P15: =IFERROR(Февраль[[#This Row],[Фактический расход топлива, литр]]-Февраль[[#This Row],[Расход топлива по норме, литр]],"") -> 7.168 | W15: =Февраль[[#This Row],[Дата]] -> 2018-02-09
A16: =IFERROR(DATEVALUE((COUNT($A$6:A15)+1)&$P$1&$I$4),"") -> 2018-02-10 | B16: Никляев В.А. | C16: =IF(Февраль[[#This Row],[Дата]]="","",D15) -> 211140 | D16: 211246 | E16: =IFERROR(Февраль[[#This Row],[Показание одометра машины на конец дня, км]]-Февраль[[#This Row],[Показание одометра машины на начало дня, км]]+S16,"") -> 106 | G16: =IF(Февраль[[#This Row],[Дата]]="","",M15) -> 168 | H16: =IF(Февраль[[#This Row],[Дата]]="","",I15) -> 685 | I16: 687 | J16: =IFERROR(IF(U16="",Февраль[[#This Row],[Показание счетчика моточасов спецоборудования на конец дня, м/ч]],Февраль[[#This Row],[Показание счетчика моточасов спецоборудования на конец дня, м/ч]]+1)-Февраль[[#This Row],[Показание счетчика моточасов спецоборудования на начало дня, м/ч]],"") -> 2 | K16: 1 | L16: =IF(Февраль[[#This Row],[Работа спецоборудования за день, м/ч]]="","",Февраль[[#This Row],[Работа спецоборудования за день, м/ч]]*$Z$2) -> 12.1 | M16: =IFERROR(IF(VLOOKUP(Февраль[Дата],S$2:U$3,3),IFERROR(IF(R16="",Февраль[[#This Row],[Выдано топливо, литр]],Февраль[[#This Row],[Выдано топливо, литр]]+R16)+Февраль[[#This Row],[Остаток топлива в баке на начало дня, литр]]-Февраль[[#This Row],[Фактический расход топлива, литр]],""),""),"") -> 94 | N16: =IFERROR(ROUND((Февраль[[#This Row],[Пройдено за день, км]]*0.01*$Y$2+Февраль[[#This Row],[Расход топлива на работу спецоборудования, литр]]),3)+V16,"") -> 66.739 | O16: =IFERROR(IF(Февраль[[#Totals],[Выдано топливо, литр]]=0,0,(ROUND(Февраль[[#This Row],[Расход топлива по норме, литр]]/IF(DAY(Февраль[Дата])<=18,$W$2,$W$3),0)))+T16,"") -> 74 | P16: =IFERROR(Февраль[[#This Row],[Фактический расход топлива, литр]]-Февраль[[#This Row],[Расход топлива по норме, литр]],"") -> 7.261 | W16: =Февраль[[#This Row],[Дата]] -> 2018-02-10
A17: =IFERROR(DATEVALUE((COUNT($A$6:A16)+1)&$P$1&$I$4),"") -> 2018-02-11 | C17: =IF(Февраль[[#This Row],[Дата]]="","",D16) -> 211246 | D17: 211246 | E17: =IFERROR(Февраль[[#This Row],[Показание одометра машины на конец дня, км]]-Февраль[[#This Row],[Показание одометра машины на начало дня, км]]+S17,"") -> 0 | G17: =IF(Февраль[[#This Row],[Дата]]="","",M16) -> 94 | H17: =IF(Февраль[[#This Row],[Дата]]="","",I16) -> 687 | I17: 687 | J17: =IFERROR(IF(U17="",Февраль[[#This Row],[Показание счетчика моточасов спецоборудования на конец дня, м/ч]],Февраль[[#This Row],[Показание счетчика моточасов спецоборудования на конец дня, м/ч]]+1)-Февраль[[#This Row],[Показание счетчика моточасов спецоборудования на начало дня, м/ч]],"") -> 0 | K17: 0 | L17: =IF(Февраль[[#This Row],[Работа спецоборудования за день, м/ч]]="","",Февраль[[#This Row],[Работа спецоборудования за день, м/ч]]*$Z$2) -> 0 | M17: =IFERROR(IF(VLOOKUP(Февраль[Дата],S$2:U$3,3),IFERROR(IF(R17="",Февраль[[#This Row],[Выдано топливо, литр]],Февраль[[#This Row],[Выдано топливо, литр]]+R17)+Февраль[[#This Row],[Остаток топлива в баке на начало дня, литр]]-Февраль[[#This Row],[Фактический расход топлива, литр]],""),""),"") -> 94 | N17: =IFERROR(ROUND((Февраль[[#This Row],[Пройдено за день, км]]*0.01*$Y$2+Февраль[[#This Row],[Расход топлива на работу спецоборудования, литр]]),3)+V17,"") -> 0 | O17: =IFERROR(IF(Февраль[[#Totals],[Выдано топливо, литр]]=0,0,(ROUND(Февраль[[#This Row],[Расход топлива по норме, литр]]/IF(DAY(Февраль[Дата])<=18,$W$2,$W$3),0)))+T17,"") -> 0 | P17: =IFERROR(Февраль[[#This Row],[Фактический расход топлива, литр]]-Февраль[[#This Row],[Расход топлива по норме, литр]],"") -> 0 | W17: =Февраль[[#This Row],[Дата]] -> 2018-02-11
A18: =IFERROR(DATEVALUE((COUNT($A$6:A17)+1)&$P$1&$I$4),"") -> 2018-02-12 | B18: Никляев В.А. | C18: =IF(Февраль[[#This Row],[Дата]]="","",D17) -> 211246 | D18: 211429 | E18: =IFERROR(Февраль[[#This Row],[Показание одометра машины на конец дня, км]]-Февраль[[#This Row],[Показание одометра машины на начало дня, км]]+S18,"") -> 183 | F18: 320 | G18: =IF(Февраль[[#This Row],[Дата]]="","",M17) -> 94 | H18: =IF(Февраль[[#This Row],[Дата]]="","",I17) -> 687 | I18: 691 | J18: =IFERROR(IF(U18="",Февраль[[#This Row],[Показание счетчика моточасов спецоборудования на конец дня, м/ч]],Февраль[[#This Row],[Показание счетчика моточасов спецоборудования на конец дня, м/ч]]+1)-Февраль[[#This Row],[Показание счетчика моточасов спецоборудования на начало дня, м/ч]],"") -> 4 | K18: 3 | L18: =IF(Февраль[[#This Row],[Работа спецоборудования за день, м/ч]]="","",Февраль[[#This Row],[Работа спецоборудования за день, м/ч]]*$Z$2) -> 24.2 | M18: =IFERROR(IF(VLOOKUP(Февраль[Дата],S$2:U$3,3),IFERROR(IF(R18="",Февраль[[#This Row],[Выдано топливо, литр]],Февраль[[#This Row],[Выдано топливо, литр]]+R18)+Февраль[[#This Row],[Остаток топлива в баке на начало дня, литр]]-Февраль[[#This Row],[Фактический расход топлива, литр]],""),""),"") -> 283 | N18: =IFERROR(ROUND((Февраль[[#This Row],[Пройдено за день, км]]*0.01*$Y$2+Февраль[[#This Row],[Расход топлива на работу спецоборудования, литр]]),3)+V18,"") -> 118.529 | O18: =IFERROR(IF(Февраль[[#Totals],[Выдано топливо, литр]]=0,0,(ROUND(Февраль[[#This Row],[Расход топлива по норме, литр]]/IF(DAY(Февраль[Дата])<=18,$W$2,$W$3),0)))+T18,"") -> 131 | P18: =IFERROR(Февраль[[#This Row],[Фактический расход топлива, литр]]-Февраль[[#This Row],[Расход топлива по норме, литр]],"") -> 12.471 | W18: =Февраль[[#This Row],[Дата]] -> 2018-02-12
A19: =IFERROR(DATEVALUE((COUNT($A$6:A18)+1)&$P$1&$I$4),"") -> 2018-02-13 | C19: =IF(Февраль[[#This Row],[Дата]]="","",D18) -> 211429 | D19: 211429 | E19: =IFERROR(Февраль[[#This Row],[Показание одометра машины на конец дня, км]]-Февраль[[#This Row],[Показание одометра машины на начало дня, км]]+S19,"") -> 0 | G19: =IF(Февраль[[#This Row],[Дата]]="","",M18) -> 283 | H19: =IF(Февраль[[#This Row],[Дата]]="","",I18) -> 691 | I19: 691 | J19: =IFERROR(IF(U19="",Февраль[[#This Row],[Показание счетчика моточасов спецоборудования на конец дня, м/ч]],Февраль[[#This Row],[Показание счетчика моточасов спецоборудования на конец дня, м/ч]]+1)-Февраль[[#This Row],[Показание счетчика моточасов спецоборудования на начало дня, м/ч]],"") -> 0 | K19: 0 | L19: =IF(Февраль[[#This Row],[Работа спецоборудования за день, м/ч]]="","",Февраль[[#This Row],[Работа спецоборудования за день, м/ч]]*$Z$2) -> 0 | M19: =IFERROR(IF(VLOOKUP(Февраль[Дата],S$2:U$3,3),IFERROR(IF(R19="",Февраль[[#This Row],[Выдано топливо, литр]],Февраль[[#This Row],[Выдано топливо, литр]]+R19)+Февраль[[#This Row],[Остаток топлива в баке на начало дня, литр]]-Февраль[[#This Row],[Фактический расход топлива, литр]],""),""),"") -> 283 | N19: =IFERROR(ROUND((Февраль[[#This Row],[Пройдено за день, км]]*0.01*$Y$2+Февраль[[#This Row],[Расход топлива на работу спецоборудования, литр]]),3)+V19,"") -> 0 | O19: =IFERROR(IF(Февраль[[#Totals],[Выдано топливо, литр]]=0,0,(ROUND(Февраль[[#This Row],[Расход топлива по норме, литр]]/IF(DAY(Февраль[Дата])<=18,$W$2,$W$3),0)))+T19,"") -> 0 | P19: =IFERROR(Февраль[[#This Row],[Фактический расход топлива, литр]]-Февраль[[#This Row],[Расход топлива по норме, литр]],"") -> 0 | W19: =Февраль[[#This Row],[Дата]] -> 2018-02-13
A20: =IFERROR(DATEVALUE((COUNT($A$6:A19)+1)&$P$1&$I$4),"") -> 2018-02-14 | B20: Никляев В.А. | C20: =IF(Февраль[[#This Row],[Дата]]="","",D19) -> 211429 | D20: 211665 | E20: =IFERROR(Февраль[[#This Row],[Показание одометра машины на конец дня, км]]-Февраль[[#This Row],[Показание одометра машины на начало дня, км]]+S20,"") -> 236 | G20: =IF(Февраль[[#This Row],[Дата]]="","",M19) -> 283 | H20: =IF(Февраль[[#This Row],[Дата]]="","",I19) -> 691 | I20: 695 | J20: =IFERROR(IF(U20="",Февраль[[#This Row],[Показание счетчика моточасов спецоборудования на конец дня, м/ч]],Февраль[[#This Row],[Показание счетчика моточасов спецоборудования на конец дня, м/ч]]+1)-Февраль[[#This Row],[Показание счетчика моточасов спецоборудования на начало дня, м/ч]],"") -> 4 | K20: 2 | L20: =IF(Февраль[[#This Row],[Работа спецоборудования за день, м/ч]]="","",Февраль[[#This Row],[Работа спецоборудования за день, м/ч]]*$Z$2) -> 24.2 | M20: =IFERROR(IF(VLOOKUP(Февраль[Дата],S$2:U$3,3),IFERROR(IF(R20="",Февраль[[#This Row],[Выдано топливо, литр]],Февраль[[#This Row],[Выдано топливо, литр]]+R20)+Февраль[[#This Row],[Остаток топлива в баке на начало дня, литр]]-Февраль[[#This Row],[Фактический расход топлива, литр]],""),""),"") -> 122 | N20: =IFERROR(ROUND((Февраль[[#This Row],[Пройдено за день, км]]*0.01*$Y$2+Февраль[[#This Row],[Расход топлива на работу спецоборудования, литр]]),3)+V20,"") -> 145.849 | O20: =IFERROR(IF(Февраль[[#Totals],[Выдано топливо, литр]]=0,0,(ROUND(Февраль[[#This Row],[Расход топлива по норме, литр]]/IF(DAY(Февраль[Дата])<=18,$W$2,$W$3),0)))+T20,"") -> 161 | P20: =IFERROR(Февраль[[#This Row],[Фактический расход топлива, литр]]-Февраль[[#This Row],[Расход топлива по норме, литр]],"") -> 15.151 | W20: =Февраль[[#This Row],[Дата]] -> 2018-02-14
A21: =IFERROR(DATEVALUE((COUNT($A$6:A20)+1)&$P$1&$I$4),"") -> 2018-02-15 | B21: Никляев В.А. | C21: =IF(Февраль[[#This Row],[Дата]]="","",D20) -> 211665 | D21: 211745 | E21: =IFERROR(Февраль[[#This Row],[Показание одометра машины на конец дня, км]]-Февраль[[#This Row],[Показание одометра машины на начало дня, км]]+S21,"") -> 80 | F21: 300 | G21: =IF(Февраль[[#This Row],[Дата]]="","",M20) -> 122 | H21: =IF(Февраль[[#This Row],[Дата]]="","",I20) -> 695 | I21: 697 | J21: =IFERROR(IF(U21="",Февраль[[#This Row],[Показание счетчика моточасов спецоборудования на конец дня, м/ч]],Февраль[[#This Row],[Показание счетчика моточасов спецоборудования на конец дня, м/ч]]+1)-Февраль[[#This Row],[Показание счетчика моточасов спецоборудования на начало дня, м/ч]],"") -> 2 | K21: 2 | L21: =IF(Февраль[[#This Row],[Работа спецоборудования за день, м/ч]]="","",Февраль[[#This Row],[Работа спецоборудования за день, м/ч]]*$Z$2) -> 12.1 | M21: =IFERROR(IF(VLOOKUP(Февраль[Дата],S$2:U$3,3),IFERROR(IF(R21="",Февраль[[#This Row],[Выдано топливо, литр]],Февраль[[#This Row],[Выдано топливо, литр]]+R21)+Февраль[[#This Row],[Остаток топлива в баке на начало дня, литр]]-Февраль[[#This Row],[Фактический расход топлива, литр]],""),""),"") -> 362 | N21: =IFERROR(ROUND((Февраль[[#This Row],[Пройдено за день, км]]*0.01*$Y$2+Февраль[[#This Row],[Расход топлива на работу спецоборудования, литр]]),3)+V21,"") -> 53.337 | O21: =IFERROR(IF(Февраль[[#Totals],[Выдано топливо, литр]]=0,0,(ROUND(Февраль[[#This Row],[Расход топлива по норме, литр]]/IF(DAY(Февраль[Дата])<=18,$W$2,$W$3),0)))+T21,"") -> 60 | P21: =IFERROR(Февраль[[#This Row],[Фактический расход топлива, литр]]-Февраль[[#This Row],[Расход топлива по норме, литр]],"") -> 6.663 | T21: 1 | W21: =Февраль[[#This Row],[Дата]] -> 2018-02-15
A22: =IFERROR(DATEVALUE((COUNT($A$6:A21)+1)&$P$1&$I$4),"") -> 2018-02-16 | C22: =IF(Февраль[[#This Row],[Дата]]="","",D21) -> 211745 | D22: 211745 | E22: =IFERROR(Февраль[[#This Row],[Показание одометра машины на конец дня, км]]-Февраль[[#This Row],[Показание одометра машины на начало дня, км]]+S22,"") -> 0 | G22: =IF(Февраль[[#This Row],[Дата]]="","",M21) -> 362 | H22: =IF(Февраль[[#This Row],[Дата]]="","",I21) -> 697 | I22: 697 | J22: =IFERROR(IF(U22="",Февраль[[#This Row],[Показание счетчика моточасов спецоборудования на конец дня, м/ч]],Февраль[[#This Row],[Показание счетчика моточасов спецоборудования на конец дня, м/ч]]+1)-Февраль[[#This Row],[Показание счетчика моточасов спецоборудования на начало дня, м/ч]],"") -> 0 | L22: =IF(Февраль[[#This Row],[Работа спецоборудования за день, м/ч]]="","",Февраль[[#This Row],[Работа спецоборудования за день, м/ч]]*$Z$2) -> 0 | M22: =IFERROR(IF(VLOOKUP(Февраль[Дата],S$2:U$3,3),IFERROR(IF(R22="",Февраль[[#This Row],[Выдано топливо, литр]],Февраль[[#This Row],[Выдано топливо, литр]]+R22)+Февраль[[#This Row],[Остаток топлива в баке на начало дня, литр]]-Февраль[[#This Row],[Фактический расход топлива, литр]],""),""),"") -> 362 | N22: =IFERROR(ROUND((Февраль[[#This Row],[Пройдено за день, км]]*0.01*$Y$2+Февраль[[#This Row],[Расход топлива на работу спецоборудования, литр]]),3)+V22,"") -> 0 | O22: =IFERROR(IF(Февраль[[#Totals],[Выдано топливо, литр]]=0,0,(ROUND(Февраль[[#This Row],[Расход топлива по норме, литр]]/IF(DAY(Февраль[Дата])<=18,$W$2,$W$3),0)))+T22,"") -> 0 | P22: =IFERROR(Февраль[[#This Row],[Фактический расход топлива, литр]]-Февраль[[#This Row],[Расход топлива по норме, литр]],"") -> 0 | W22: =Февраль[[#This Row],[Дата]] -> 2018-02-16
A23: =IFERROR(DATEVALUE((COUNT($A$6:A22)+1)&$P$1&$I$4),"") -> 2018-02-17 | C23: =IF(Февраль[[#This Row],[Дата]]="","",D22) -> 211745 | D23: 211745 | E23: =IFERROR(Февраль[[#This Row],[Показание одометра машины на конец дня, км]]-Февраль[[#This Row],[Показание одометра машины на начало дня, км]]+S23,"") -> 0 | G23: =IF(Февраль[[#This Row],[Дата]]="","",M22) -> 362 | H23: =IF(Февраль[[#This Row],[Дата]]="","",I22) -> 697 | I23: 697 | J23: =IFERROR(IF(U23="",Февраль[[#This Row],[Показание счетчика моточасов спецоборудования на конец дня, м/ч]],Февраль[[#This Row],[Показание счетчика моточасов спецоборудования на конец дня, м/ч]]+1)-Февраль[[#This Row],[Показание счетчика моточасов спецоборудования на начало дня, м/ч]],"") -> 0 | L23: =IF(Февраль[[#This Row],[Работа спецоборудования за день, м/ч]]="","",Февраль[[#This Row],[Работа спецоборудования за день, м/ч]]*$Z$2) -> 0 | M23: =IFERROR(IF(VLOOKUP(Февраль[Дата],S$2:U$3,3),IFERROR(IF(R23="",Февраль[[#This Row],[Выдано топливо, литр]],Февраль[[#This Row],[Выдано топливо, литр]]+R23)+Февраль[[#This Row],[Остаток топлива в баке на начало дня, литр]]-Февраль[[#This Row],[Фактический расход топлива, литр]],""),""),"") -> 362 | N23: =IFERROR(ROUND((Февраль[[#This Row],[Пройдено за день, км]]*0.01*$Y$2+Февраль[[#This Row],[Расход топлива на работу спецоборудования, литр]]),3)+V23,"") -> 0 | O23: =IFERROR(IF(Февраль[[#Totals],[Выдано топливо, литр]]=0,0,(ROUND(Февраль[[#This Row],[Расход топлива по норме, литр]]/IF(DAY(Февраль[Дата])<=18,$W$2,$W$3),0)))+T23,"") -> 0 | P23: =IFERROR(Февраль[[#This Row],[Фактический расход топлива, литр]]-Февраль[[#This Row],[Расход топлива по норме, литр]],"") -> 0 | W23: =Февраль[[#This Row],[Дата]] -> 2018-02-17
A24: =IFERROR(DATEVALUE((COUNT($A$6:A23)+1)&$P$1&$I$4),"") -> 2018-02-18 | C24: =IF(Февраль[[#This Row],[Дата]]="","",D23) -> 211745 | D24: 211745 | E24: =IFERROR(Февраль[[#This Row],[Показание одометра машины на конец дня, км]]-Февраль[[#This Row],[Показание одометра машины на начало дня, км]]+S24,"") -> 0 | G24: =IF(Февраль[[#This Row],[Дата]]="","",M23) -> 362 | H24: =IF(Февраль[[#This Row],[Дата]]="","",I23) -> 697 | I24: 697 | J24: =IFERROR(IF(U24="",Февраль[[#This Row],[Показание счетчика моточасов спецоборудования на конец дня, м/ч]],Февраль[[#This Row],[Показание счетчика моточасов спецоборудования на конец дня, м/ч]]+1)-Февраль[[#This Row],[Показание счетчика моточасов спецоборудования на начало дня, м/ч]],"") -> 0 | L24: =IF(Февраль[[#This Row],[Работа спецоборудования за день, м/ч]]="","",Февраль[[#This Row],[Работа спецоборудования за день, м/ч]]*$Z$2) -> 0 | M24: =IFERROR(IF(VLOOKUP(Февраль[Дата],S$2:U$3,3),IFERROR(IF(R24="",Февраль[[#This Row],[Выдано топливо, литр]],Февраль[[#This Row],[Выдано топливо, литр]]+R24)+Февраль[[#This Row],[Остаток топлива в баке на начало дня, литр]]-Февраль[[#This Row],[Фактический расход топлива, литр]],""),""),"") -> 362 | N24: =IFERROR(ROUND((Февраль[[#This Row],[Пройдено за день, км]]*0.01*$Y$2+Февраль[[#This Row],[Расход топлива на работу спецоборудования, литр]]),3)+V24,"") -> 0 | O24: =IFERROR(IF(Февраль[[#Totals],[Выдано топливо, литр]]=0,0,(ROUND(Февраль[[#This Row],[Расход топлива по норме, литр]]/IF(DAY(Февраль[Дата])<=18,$W$2,$W$3),0)))+T24,"") -> 0 | P24: =IFERROR(Февраль[[#This Row],[Фактический расход топлива, литр]]-Февраль[[#This Row],[Расход топлива по норме, литр]],"") -> 0 | W24: =Февраль[[#This Row],[Дата]] -> 2018-02-18
A25: =IFERROR(DATEVALUE((COUNT($A$6:A24)+1)&$P$1&$I$4),"") -> 2018-02-19 | C25: =IF(Февраль[[#This Row],[Дата]]="","",D24) -> 211745 | D25: 211745 | E25: =IFERROR(Февраль[[#This Row],[Показание одометра машины на конец дня, км]]-Февраль[[#This Row],[Показание одометра машины на начало дня, км]]+S25,"") -> 0 | G25: =IF(Февраль[[#This Row],[Дата]]="","",M24) -> 362 | H25: =IF(Февраль[[#This Row],[Дата]]="","",I24) -> 697 | I25: 697 | J25: =IFERROR(IF(U25="",Февраль[[#This Row],[Показание счетчика моточасов спецоборудования на конец дня, м/ч]],Февраль[[#This Row],[Показание счетчика моточасов спецоборудования на конец дня, м/ч]]+1)-Февраль[[#This Row],[Показание счетчика моточасов спецоборудования на начало дня, м/ч]],"") -> 0 | L25: =IF(Февраль[[#This Row],[Работа спецоборудования за день, м/ч]]="","",Февраль[[#This Row],[Работа спецоборудования за день, м/ч]]*$Z$2) -> 0 | M25: =IFERROR(IF(VLOOKUP(Февраль[Дата],S$2:U$3,3),IFERROR(IF(R25="",Февраль[[#This Row],[Выдано топливо, литр]],Февраль[[#This Row],[Выдано топливо, литр]]+R25)+Февраль[[#This Row],[Остаток топлива в баке на начало дня, литр]]-Февраль[[#This Row],[Фактический расход топлива, литр]],""),""),"") -> 362 | N25: =IFERROR(ROUND((Февраль[[#This Row],[Пройдено за день, км]]*0.01*$Y$2+Февраль[[#This Row],[Расход топлива на работу спецоборудования, литр]]),3)+V25,"") -> 0 | O25: =IFERROR(IF(Февраль[[#Totals],[Выдано топливо, литр]]=0,0,(ROUND(Февраль[[#This Row],[Расход топлива по норме, литр]]/IF(DAY(Февраль[Дата])<=18,$W$2,$W$3),0)))+T25,"") -> 0 | P25: =IFERROR(Февраль[[#This Row],[Фактический расход топлива, литр]]-Февраль[[#This Row],[Расход топлива по норме, литр]],"") -> 0 | W25: =Февраль[[#This Row],[Дата]] -> 2018-02-19
A26: =IFERROR(DATEVALUE((COUNT($A$6:A25)+1)&$P$1&$I$4),"") -> 2018-02-20 | C26: =IF(Февраль[[#This Row],[Дата]]="","",D25) -> 211745 | D26: 211745 | E26: =IFERROR(Февраль[[#This Row],[Показание одометра машины на конец дня, км]]-Февраль[[#This Row],[Показание одометра машины на начало дня, км]]+S26,"") -> 0 | G26: =IF(Февраль[[#This Row],[Дата]]="","",M25) -> 362 | H26: =IF(Февраль[[#This Row],[Дата]]="","",I25) -> 697 | I26: 697 | J26: =IFERROR(IF(U26="",Февраль[[#This Row],[Показание счетчика моточасов спецоборудования на конец дня, м/ч]],Февраль[[#This Row],[Показание счетчика моточасов спецоборудования на конец дня, м/ч]]+1)-Февраль[[#This Row],[Показание счетчика моточасов спецоборудования на начало дня, м/ч]],"") -> 0 | L26: =IF(Февраль[[#This Row],[Работа спецоборудования за день, м/ч]]="","",Февраль[[#This Row],[Работа спецоборудования за день, м/ч]]*$Z$2) -> 0 | M26: =IFERROR(IF(VLOOKUP(Февраль[Дата],S$2:U$3,3),IFERROR(IF(R26="",Февраль[[#This Row],[Выдано топливо, литр]],Февраль[[#This Row],[Выдано топливо, литр]]+R26)+Февраль[[#This Row],[Остаток топлива в баке на начало дня, литр]]-Февраль[[#This Row],[Фактический расход топлива, литр]],""),""),"") -> 362 | N26: =IFERROR(ROUND((Февраль[[#This Row],[Пройдено за день, км]]*0.01*$Y$2+Февраль[[#This Row],[Расход топлива на работу спецоборудования, литр]]),3)+V26,"") -> 0 | O26: =IFERROR(IF(Февраль[[#Totals],[Выдано топливо, литр]]=0,0,(ROUND(Февраль[[#This Row],[Расход топлива по норме, литр]]/IF(DAY(Февраль[Дата])<=18,$W$2,$W$3),0)))+T26,"") -> 0 | P26: =IFERROR(Февраль[[#This Row],[Фактический расход топлива, литр]]-Февраль[[#This Row],[Расход топлива по норме, литр]],"") -> 0 | W26: =Февраль[[#This Row],[Дата]] -> 2018-02-20
A27: =IFERROR(DATEVALUE((COUNT($A$6:A26)+1)&$P$1&$I$4),"") -> 2018-02-21 | C27: =IF(Февраль[[#This Row],[Дата]]="","",D26) -> 211745 | D27: 211745 | E27: =IFERROR(Февраль[[#This Row],[Показание одометра машины на конец дня, км]]-Февраль[[#This Row],[Показание одометра машины на начало дня, км]]+S27,"") -> 0 | G27: =IF(Февраль[[#This Row],[Дата]]="","",M26) -> 362 | H27: =IF(Февраль[[#This Row],[Дата]]="","",I26) -> 697 | I27: 697 | J27: =IFERROR(IF(U27="",Февраль[[#This Row],[Показание счетчика моточасов спецоборудования на конец дня, м/ч]],Февраль[[#This Row],[Показание счетчика моточасов спецоборудования на конец дня, м/ч]]+1)-Февраль[[#This Row],[Показание счетчика моточасов спецоборудования на начало дня, м/ч]],"") -> 0 | L27: =IF(Февраль[[#This Row],[Работа спецоборудования за день, м/ч]]="","",Февраль[[#This Row],[Работа спецоборудования за день, м/ч]]*$Z$2) -> 0 | M27: =IFERROR(IF(VLOOKUP(Февраль[Дата],S$2:U$3,3),IFERROR(IF(R27="",Февраль[[#This Row],[Выдано топливо, литр]],Февраль[[#This Row],[Выдано топливо, литр]]+R27)+Февраль[[#This Row],[Остаток топлива в баке на начало дня, литр]]-Февраль[[#This Row],[Фактический расход топлива, литр]],""),""),"") -> 362 | N27: =IFERROR(ROUND((Февраль[[#This Row],[Пройдено за день, км]]*0.01*$Y$2+Февраль[[#This Row],[Расход топлива на работу спецоборудования, литр]]),3)+V27,"") -> 0 | O27: =IFERROR(IF(Февраль[[#Totals],[Выдано топливо, литр]]=0,0,(ROUND(Февраль[[#This Row],[Расход топлива по норме, литр]]/IF(DAY(Февраль[Дата])<=18,$W$2,$W$3),0)))+T27,"") -> 0 | P27: =IFERROR(Февраль[[#This Row],[Фактический расход топлива, литр]]-Февраль[[#This Row],[Расход топлива по норме, литр]],"") -> 0 | W27: =Февраль[[#This Row],[Дата]] -> 2018-02-21
A28: =IFERROR(DATEVALUE((COUNT($A$6:A27)+1)&$P$1&$I$4),"") -> 2018-02-22 | C28: =IF(Февраль[[#This Row],[Дата]]="","",D27) -> 211745 | D28: 211745 | E28: =IFERROR(Февраль[[#This Row],[Показание одометра машины на конец дня, км]]-Февраль[[#This Row],[Показание одометра машины на начало дня, км]]+S28,"") -> 0 | G28: =IF(Февраль[[#This Row],[Дата]]="","",M27) -> 362 | H28: =IF(Февраль[[#This Row],[Дата]]="","",I27) -> 697 | I28: 697 | J28: =IFERROR(IF(U28="",Февраль[[#This Row],[Показание счетчика моточасов спецоборудования на конец дня, м/ч]],Февраль[[#This Row],[Показание счетчика моточасов спецоборудования на конец дня, м/ч]]+1)-Февраль[[#This Row],[Показание счетчика моточасов спецоборудования на начало дня, м/ч]],"") -> 0 | L28: =IF(Февраль[[#This Row],[Работа спецоборудования за день, м/ч]]="","",Февраль[[#This Row],[Работа спецоборудования за день, м/ч]]*$Z$2) -> 0 | M28: =IFERROR(IF(VLOOKUP(Февраль[Дата],S$2:U$3,3),IFERROR(IF(R28="",Февраль[[#This Row],[Выдано топливо, литр]],Февраль[[#This Row],[Выдано топливо, литр]]+R28)+Февраль[[#This Row],[Остаток топлива в баке на начало дня, литр]]-Февраль[[#This Row],[Фактический расход топлива, литр]],""),""),"") -> 362 | N28: =IFERROR(ROUND((Февраль[[#This Row],[Пройдено за день, км]]*0.01*$Y$2+Февраль[[#This Row],[Расход топлива на работу спецоборудования, литр]]),3)+V28,"") -> 0 | O28: =IFERROR(IF(Февраль[[#Totals],[Выдано топливо, литр]]=0,0,(ROUND(Февраль[[#This Row],[Расход топлива по норме, литр]]/IF(DAY(Февраль[Дата])<=18,$W$2,$W$3),0)))+T28,"") -> 0 | P28: =IFERROR(Февраль[[#This Row],[Фактический расход топлива, литр]]-Февраль[[#This Row],[Расход топлива по норме, литр]],"") -> 0 | W28: =Февраль[[#This Row],[Дата]] -> 2018-02-22
A29: =IFERROR(DATEVALUE((COUNT($A$6:A28)+1)&$P$1&$I$4),"") -> 2018-02-23 | C29: =IF(Февраль[[#This Row],[Дата]]="","",D28) -> 211745 | D29: 211745 | E29: =IFERROR(Февраль[[#This Row],[Показание одометра машины на конец дня, км]]-Февраль[[#This Row],[Показание одометра машины на начало дня, км]]+S29,"") -> 0 | G29: =IF(Февраль[[#This Row],[Дата]]="","",M28) -> 362 | H29: =IF(Февраль[[#This Row],[Дата]]="","",I28) -> 697 | I29: 697 | J29: =IFERROR(IF(U29="",Февраль[[#This Row],[Показание счетчика моточасов спецоборудования на конец дня, м/ч]],Февраль[[#This Row],[Показание счетчика моточасов спецоборудования на конец дня, м/ч]]+1)-Февраль[[#This Row],[Показание счетчика моточасов спецоборудования на начало дня, м/ч]],"") -> 0 | L29: =IF(Февраль[[#This Row],[Работа спецоборудования за день, м/ч]]="","",Февраль[[#This Row],[Работа спецоборудования за день, м/ч]]*$Z$2) -> 0 | M29: =IFERROR(IF(VLOOKUP(Февраль[Дата],S$2:U$3,3),IFERROR(IF(R29="",Февраль[[#This Row],[Выдано топливо, литр]],Февраль[[#This Row],[Выдано топливо, литр]]+R29)+Февраль[[#This Row],[Остаток топлива в баке на начало дня, литр]]-Февраль[[#This Row],[Фактический расход топлива, литр]],""),""),"") -> 362 | N29: =IFERROR(ROUND((Февраль[[#This Row],[Пройдено за день, км]]*0.01*$Y$2+Февраль[[#This Row],[Расход топлива на работу спецоборудования, литр]]),3)+V29,"") -> 0 | O29: =IFERROR(IF(Февраль[[#Totals],[Выдано топливо, литр]]=0,0,(ROUND(Февраль[[#This Row],[Расход топлива по норме, литр]]/IF(DAY(Февраль[Дата])<=18,$W$2,$W$3),0)))+T29,"") -> 0 | P29: =IFERROR(Февраль[[#This Row],[Фактический расход топлива, литр]]-Февраль[[#This Row],[Расход топлива по норме, литр]],"") -> 0 | W29: =Февраль[[#This Row],[Дата]] -> 2018-02-23
A30: =IFERROR(DATEVALUE((COUNT($A$6:A29)+1)&$P$1&$I$4),"") -> 2018-02-24 | C30: =IF(Февраль[[#This Row],[Дата]]="","",D29) -> 211745 | D30: 211745 | E30: =IFERROR(Февраль[[#This Row],[Показание одометра машины на конец дня, км]]-Февраль[[#This Row],[Показание одометра машины на начало дня, км]]+S30,"") -> 0 | G30: =IF(Февраль[[#This Row],[Дата]]="","",M29) -> 362 | H30: =IF(Февраль[[#This Row],[Дата]]="","",I29) -> 697 | I30: 697 | J30: =IFERROR(IF(U30="",Февраль[[#This Row],[Показание счетчика моточасов спецоборудования на конец дня, м/ч]],Февраль[[#This Row],[Показание счетчика моточасов спецоборудования на конец дня, м/ч]]+1)-Февраль[[#This Row],[Показание счетчика моточасов спецоборудования на начало дня, м/ч]],"") -> 0 | L30: =IF(Февраль[[#This Row],[Работа спецоборудования за день, м/ч]]="","",Февраль[[#This Row],[Работа спецоборудования за день, м/ч]]*$Z$2) -> 0 | M30: =IFERROR(IF(VLOOKUP(Февраль[Дата],S$2:U$3,3),IFERROR(IF(R30="",Февраль[[#This Row],[Выдано топливо, литр]],Февраль[[#This Row],[Выдано топливо, литр]]+R30)+Февраль[[#This Row],[Остаток топлива в баке на начало дня, литр]]-Февраль[[#This Row],[Фактический расход топлива, литр]],""),""),"") -> 362 | N30: =IFERROR(ROUND((Февраль[[#This Row],[Пройдено за день, км]]*0.01*$Y$2+Февраль[[#This Row],[Расход топлива на работу спецоборудования, литр]]),3)+V30,"") -> 0 | O30: =IFERROR(IF(Февраль[[#Totals],[Выдано топливо, литр]]=0,0,(ROUND(Февраль[[#This Row],[Расход топлива по норме, литр]]/IF(DAY(Февраль[Дата])<=18,$W$2,$W$3),0)))+T30,"") -> 0 | P30: =IFERROR(Февраль[[#This Row],[Фактический расход топлива, литр]]-Февраль[[#This Row],[Расход топлива по норме, литр]],"") -> 0 | W30: =Февраль[[#This Row],[Дата]] -> 2018-02-24
A31: =IFERROR(DATEVALUE((COUNT($A$6:A30)+1)&$P$1&$I$4),"") -> 2018-02-25 | C31: =IF(Февраль[[#This Row],[Дата]]="","",D30) -> 211745 | D31: 211745 | E31: =IFERROR(Февраль[[#This Row],[Показание одометра машины на конец дня, км]]-Февраль[[#This Row],[Показание одометра машины на начало дня, км]]+S31,"") -> 0 | G31: =IF(Февраль[[#This Row],[Дата]]="","",M30) -> 362 | H31: =IF(Февраль[[#This Row],[Дата]]="","",I30) -> 697 | I31: 697 | J31: =IFERROR(IF(U31="",Февраль[[#This Row],[Показание счетчика моточасов спецоборудования на конец дня, м/ч]],Февраль[[#This Row],[Показание счетчика моточасов спецоборудования на конец дня, м/ч]]+1)-Февраль[[#This Row],[Показание счетчика моточасов спецоборудования на начало дня, м/ч]],"") -> 0 | K31: 0 | L31: =IF(Февраль[[#This Row],[Работа спецоборудования за день, м/ч]]="","",Февраль[[#This Row],[Работа спецоборудования за день, м/ч]]*$Z$2) -> 0 | M31: =IFERROR(IF(VLOOKUP(Февраль[Дата],S$2:U$3,3),IFERROR(IF(R31="",Февраль[[#This Row],[Выдано топливо, литр]],Февраль[[#This Row],[Выдано топливо, литр]]+R31)+Февраль[[#This Row],[Остаток топлива в баке на начало дня, литр]]-Февраль[[#This Row],[Фактический расход топлива, литр]],""),""),"") -> 362 | N31: =IFERROR(ROUND((Февраль[[#This Row],[Пройдено за день, км]]*0.01*$Y$2+Февраль[[#This Row],[Расход топлива на работу спецоборудования, литр]]),3)+V31,"") -> 0 | O31: =IFERROR(IF(Февраль[[#Totals],[Выдано топливо, литр]]=0,0,(ROUND(Февраль[[#This Row],[Расход топлива по норме, литр]]/IF(DAY(Февраль[Дата])<=18,$W$2,$W$3),0)))+T31,"") -> 0 | P31: =IFERROR(Февраль[[#This Row],[Фактический расход топлива, литр]]-Февраль[[#This Row],[Расход топлива по норме, литр]],"") -> 0 | W31: =Февраль[[#This Row],[Дата]] -> 2018-02-25
A32: =IFERROR(DATEVALUE((COUNT($A$6:A31)+1)&$P$1&$I$4),"") -> 2018-02-26 | B32: Никляев В.А. | C32: =IF(Февраль[[#This Row],[Дата]]="","",D31) -> 211745 | D32: 211915 | E32: =IFERROR(Февраль[[#This Row],[Показание одометра машины на конец дня, км]]-Февраль[[#This Row],[Показание одометра машины на начало дня, км]]+S32,"") -> 170 | G32: =IF(Февраль[[#This Row],[Дата]]="","",M31) -> 362 | H32: =IF(Февраль[[#This Row],[Дата]]="","",I31) -> 697 | I32: 699 | J32: =IFERROR(IF(U32="",Февраль[[#This Row],[Показание счетчика моточасов спецоборудования на конец дня, м/ч]],Февраль[[#This Row],[Показание счетчика моточасов спецоборудования на конец дня, м/ч]]+1)-Февраль[[#This Row],[Показание счетчика моточасов спецоборудования на начало дня, м/ч]],"") -> 2 | K32: 1 | L32: =IF(Февраль[[#This Row],[Работа спецоборудования за день, м/ч]]="","",Февраль[[#This Row],[Работа спецоборудования за день, м/ч]]*$Z$2) -> 12.1 | M32: =IFERROR(IF(VLOOKUP(Февраль[Дата],S$2:U$3,3),IFERROR(IF(R32="",Февраль[[#This Row],[Выдано топливо, литр]],Февраль[[#This Row],[Выдано топливо, литр]]+R32)+Февраль[[#This Row],[Остаток топлива в баке на начало дня, литр]]-Февраль[[#This Row],[Фактический расход топлива, литр]],""),""),"") -> 270 | N32: =IFERROR(ROUND((Февраль[[#This Row],[Пройдено за день, км]]*0.01*$Y$2+Февраль[[#This Row],[Расход топлива на работу спецоборудования, литр]]),3)+V32,"") -> 99.728 | O32: =IFERROR(IF(Февраль[[#Totals],[Выдано топливо, литр]]=0,0,(ROUND(Февраль[[#This Row],[Расход топлива по норме, литр]]/IF(DAY(Февраль[Дата])<=18,$W$2,$W$3),0)))+T32,"") -> 92 | P32: =IFERROR(Февраль[[#This Row],[Фактический расход топлива, литр]]-Февраль[[#This Row],[Расход топлива по норме, литр]],"") -> -7.728 | W32: =Февраль[[#This Row],[Дата]] -> 2018-02-26
A33: =IFERROR(DATEVALUE((COUNT($A$6:A32)+1)&$P$1&$I$4),"") -> 2018-02-27 | B33: Никляев В.А. | C33: =IF(Февраль[[#This Row],[Дата]]="","",D32) -> 211915 | D33: 211991 | E33: =IFERROR(Февраль[[#This Row],[Показание одометра машины на конец дня, км]]-Февраль[[#This Row],[Показание одометра машины на начало дня, км]]+S33,"") -> 76 | G33: =IF(Февраль[[#This Row],[Дата]]="","",M32) -> 270 | H33: =IF(Февраль[[#This Row],[Дата]]="","",I32) -> 699 | I33: 703 | J33: =IFERROR(IF(U33="",Февраль[[#This Row],[Показание счетчика моточасов спецоборудования на конец дня, м/ч]],Февраль[[#This Row],[Показание счетчика моточасов спецоборудования на конец дня, м/ч]]+1)-Февраль[[#This Row],[Показание счетчика моточасов спецоборудования на начало дня, м/ч]],"") -> 4 | K33: 2 | L33: =IF(Февраль[[#This Row],[Работа спецоборудования за день, м/ч]]="","",Февраль[[#This Row],[Работа спецоборудования за день, м/ч]]*$Z$2) -> 24.2 | M33: =IFERROR(IF(VLOOKUP(Февраль[Дата],S$2:U$3,3),IFERROR(IF(R33="",Февраль[[#This Row],[Выдано топливо, литр]],Февраль[[#This Row],[Выдано топливо, литр]]+R33)+Февраль[[#This Row],[Остаток топлива в баке на начало дня, литр]]-Февраль[[#This Row],[Фактический расход топлива, литр]],""),""),"") -> 212 | N33: =IFERROR(ROUND((Февраль[[#This Row],[Пройдено за день, км]]*0.01*$Y$2+Февраль[[#This Row],[Расход топлива на работу спецоборудования, литр]]),3)+V33,"") -> 63.375 | O33: =IFERROR(IF(Февраль[[#Totals],[Выдано топливо, литр]]=0,0,(ROUND(Февраль[[#This Row],[Расход топлива по норме, литр]]/IF(DAY(Февраль[Дата])<=18,$W$2,$W$3),0)))+T33,"") -> 58 | P33: =IFERROR(Февраль[[#This Row],[Фактический расход топлива, литр]]-Февраль[[#This Row],[Расход топлива по норме, литр]],"") -> -5.375 | W33: =Февраль[[#This Row],[Дата]] -> 2018-02-27
A34: =IFERROR(DATEVALUE((COUNT($A$6:A33)+1)&$P$1&$I$4),"") -> 2018-02-28 | B34: Никляев В.А. | C34: =IF(Февраль[[#This Row],[Дата]]="","",D33) -> 211991 | D34: 212252 | E34: =IFERROR(Февраль[[#This Row],[Показание одометра машины на конец дня, км]]-Февраль[[#This Row],[Показание одометра машины на начало дня, км]]+S34,"") -> 261 | F34: 300 | G34: =IF(Февраль[[#This Row],[Дата]]="","",M33) -> 212 | H34: =IF(Февраль[[#This Row],[Дата]]="","",I33) -> 703 | I34: 708 | J34: =IFERROR(IF(U34="",Февраль[[#This Row],[Показание счетчика моточасов спецоборудования на конец дня, м/ч]],Февраль[[#This Row],[Показание счетчика моточасов спецоборудования на конец дня, м/ч]]+1)-Февраль[[#This Row],[Показание счетчика моточасов спецоборудования на начало дня, м/ч]],"") -> 5 | K34: 3 | L34: =IF(Февраль[[#This Row],[Работа спецоборудования за день, м/ч]]="","",Февраль[[#This Row],[Работа спецоборудования за день, м/ч]]*$Z$2) -> 30.25 | M34: =IFERROR(IF(VLOOKUP(Февраль[Дата],S$2:U$3,3),IFERROR(IF(R34="",Февраль[[#This Row],[Выдано топливо, литр]],Февраль[[#This Row],[Выдано топливо, литр]]+R34)+Февраль[[#This Row],[Остаток топлива в баке на начало дня, литр]]-Февраль[[#This Row],[Фактический расход топлива, литр]],""),""),"") -> 360 | N34: =IFERROR(ROUND((Февраль[[#This Row],[Пройдено за день, км]]*0.01*$Y$2+Февраль[[#This Row],[Расход топлива на работу спецоборудования, литр]]),3)+V34,"") -> 164.785 | O34: =IFERROR(IF(Февраль[[#Totals],[Выдано топливо, литр]]=0,0,(ROUND(Февраль[[#This Row],[Расход топлива по норме, литр]]/IF(DAY(Февраль[Дата])<=18,$W$2,$W$3),0)))+T34,"") -> 152 | P34: =IFERROR(Февраль[[#This Row],[Фактический расход топлива, литр]]-Февраль[[#This Row],[Расход топлива по норме, литр]],"") -> -12.785 | W34: =Февраль[[#This Row],[Дата]] -> 2018-02-28
A35: =IFERROR(DATEVALUE((COUNT($A$6:A34)+1)&$P$1&$I$4),"") ->  | C35: =IF(Февраль[[#This Row],[Дата]]="","",D34) ->  | E35: =IFERROR(Февраль[[#This Row],[Показание одометра машины на конец дня, км]]-Февраль[[#This Row],[Показание одометра машины на начало дня, км]]+S35,"") ->  | G35: =IF(Февраль[[#This Row],[Дата]]="","",M34) ->  | H35: =IF(Февраль[[#This Row],[Дата]]="","",I34) ->  | J35: =IFERROR(IF(U35="",Февраль[[#This Row],[Показание счетчика моточасов спецоборудования на конец дня, м/ч]],Февраль[[#This Row],[Показание счетчика моточасов спецоборудования на конец дня, м/ч]]+1)-Февраль[[#This Row],[Показание счетчика моточасов спецоборудования на начало дня, м/ч]],"") ->  | L35: =IF(Февраль[[#This Row],[Работа спецоборудования за день, м/ч]]="","",Февраль[[#This Row],[Работа спецоборудования за день, м/ч]]*$Z$2) ->  | M35: =IFERROR(IF(VLOOKUP(Февраль[Дата],S$2:U$3,3),IFERROR(IF(R35="",Февраль[[#This Row],[Выдано топливо, литр]],Февраль[[#This Row],[Выдано топливо, литр]]+R35)+Февраль[[#This Row],[Остаток топлива в баке на начало дня, литр]]-Февраль[[#This Row],[Фактический расход топлива, литр]],""),""),"") ->  | N35: =IFERROR(ROUND((Февраль[[#This Row],[Пройдено за день, км]]*0.01*$Y$2+Февраль[[#This Row],[Расход топлива на работу спецоборудования, литр]]),3)+V35,"") ->  | O35: =IFERROR(IF(Февраль[[#Totals],[Выдано топливо, литр]]=0,0,(ROUND(Февраль[[#This Row],[Расход топлива по норме, литр]]/IF(DAY(Февраль[Дата])<=18,$W$2,$W$3),0)))+T35,"") ->  | P35: =IFERROR(Февраль[[#This Row],[Фактический расход топлива, литр]]-Февраль[[#This Row],[Расход топлива по норме, литр]],"") ->  | W35: =Февраль[[#This Row],[Дата]] -> 
A36: =IFERROR(DATEVALUE((COUNT($A$6:A35)+1)&$P$1&$I$4),"") ->  | C36: =IF(Февраль[[#This Row],[Дата]]="","",D35) ->  | E36: =IFERROR(Февраль[[#This Row],[Показание одометра машины на конец дня, км]]-Февраль[[#This Row],[Показание одометра машины на начало дня, км]]+S36,"") ->  | G36: =IF(Февраль[[#This Row],[Дата]]="","",M35) ->  | H36: =IF(Февраль[[#This Row],[Дата]]="","",I35) ->  | J36: =IFERROR(IF(U36="",Февраль[[#This Row],[Показание счетчика моточасов спецоборудования на конец дня, м/ч]],Февраль[[#This Row],[Показание счетчика моточасов спецоборудования на конец дня, м/ч]]+1)-Февраль[[#This Row],[Показание счетчика моточасов спецоборудования на начало дня, м/ч]],"") ->  | L36: =IF(Февраль[[#This Row],[Работа спецоборудования за день, м/ч]]="","",Февраль[[#This Row],[Работа спецоборудования за день, м/ч]]*$Z$2) ->  | M36: =IFERROR(IF(VLOOKUP(Февраль[Дата],S$2:U$3,3),IFERROR(IF(R36="",Февраль[[#This Row],[Выдано топливо, литр]],Февраль[[#This Row],[Выдано топливо, литр]]+R36)+Февраль[[#This Row],[Остаток топлива в баке на начало дня, литр]]-Февраль[[#This Row],[Фактический расход топлива, литр]],""),""),"") ->  | N36: =IFERROR(ROUND((Февраль[[#This Row],[Пройдено за день, км]]*0.01*$Y$2+Февраль[[#This Row],[Расход топлива на работу спецоборудования, литр]]),3)+V36,"") ->  | O36: =IFERROR(IF(Февраль[[#Totals],[Выдано топливо, литр]]=0,0,(ROUND(Февраль[[#This Row],[Расход топлива по норме, литр]]/IF(DAY(Февраль[Дата])<=18,$W$2,$W$3),0)))+T36,"") ->  | P36: =IFERROR(Февраль[[#This Row],[Фактический расход топлива, литр]]-Февраль[[#This Row],[Расход топлива по норме, литр]],"") ->  | W36: =Февраль[[#This Row],[Дата]] -> 
A37: =IFERROR(DATEVALUE((COUNT($A$6:A36)+1)&$P$1&$I$4),"") ->  | C37: =IF(Февраль[[#This Row],[Дата]]="","",D36) ->  | E37: =IFERROR(Февраль[[#This Row],[Показание одометра машины на конец дня, км]]-Февраль[[#This Row],[Показание одометра машины на начало дня, км]]+S37,"") ->  | G37: =IF(Февраль[[#This Row],[Дата]]="","",M36) ->  | H37: =IF(Февраль[[#This Row],[Дата]]="","",I36) ->  | J37: =IFERROR(IF(U37="",Февраль[[#This Row],[Показание счетчика моточасов спецоборудования на конец дня, м/ч]],Февраль[[#This Row],[Показание счетчика моточасов спецоборудования на конец дня, м/ч]]+1)-Февраль[[#This Row],[Показание счетчика моточасов спецоборудования на начало дня, м/ч]],"") ->  | L37: =IF(Февраль[[#This Row],[Работа спецоборудования за день, м/ч]]="","",Февраль[[#This Row],[Работа спецоборудования за день, м/ч]]*$Z$2) ->  | M37: =IFERROR(IF(VLOOKUP(Февраль[Дата],S$2:U$3,3),IFERROR(IF(R37="",Февраль[[#This Row],[Выдано топливо, литр]],Февраль[[#This Row],[Выдано топливо, литр]]+R37)+Февраль[[#This Row],[Остаток топлива в баке на начало дня, литр]]-Февраль[[#This Row],[Фактический расход топлива, литр]],""),""),"") ->  | N37: =IFERROR(ROUND((Февраль[[#This Row],[Пройдено за день, км]]*0.01*$Y$2+Февраль[[#This Row],[Расход топлива на работу спецоборудования, литр]]),3)+V37,"") ->  | O37: =IFERROR(IF(Февраль[[#Totals],[Выдано топливо, литр]]=0,0,(ROUND(Февраль[[#This Row],[Расход топлива по норме, литр]]/IF(DAY(Февраль[Дата])<=18,$W$2,$W$3),0)))+T37,"") ->  | P37: =IFERROR(Февраль[[#This Row],[Фактический расход топлива, литр]]-Февраль[[#This Row],[Расход топлива по норме, литр]],"") ->  | W37: =Февраль[[#This Row],[Дата]] -> 
A38: Итог | E38: =SUBTOTAL(109,Февраль[Пройдено за день, км]) -> 1529 | F38: =SUBTOTAL(109,Февраль[Выдано топливо, литр]) -> 920 | J38: =SUBTOTAL(109,Февраль[Работа спецоборудования за день, м/ч]) -> 37 | K38: =SUBTOTAL(109,Февраль[Количество ходок]) -> 24 | L38: =SUBTOTAL(109,Февраль[Расход топлива на работу спецоборудования, литр]) -> 223.85 | N38: =SUBTOTAL(109,Февраль[Расход топлива по норме, литр]) -> 1011.989 | O38: =SUBTOTAL(109,Февраль[Фактический расход топлива, литр]) -> 1060 | P38: =SUBTOTAL(109,Февраль[Отклонение от нормы (Перерасход(+), экономия(-)), литр]) -> 48.011
K39: =SUMIFS(K7:K37,A7:A37,">="&$S$2,A7:A37,"<="&$T$2) -> 18
K40: =SUMIFS(K7:K37,A7:A37,">="&$S$3,A7:A37,"<="&$T$3) -> 6

Sheet Март
P1: Март | X1: Экономия | Y1: Базовая норма расхода на 100 км | Z1: Базовая норма расхода на 1 мото/час
A2: Общество с ограниченной ответственностью "Втормет Царицыно" | R2: 1-я половина | S2: =INDIRECT(TEXT(A7-1,"ММММ")&"!t3")+1 -> 2018-03-04 | T2: 2018-03-15 | U2: =ТС!E5 -> 500 | V2: =SUMIFS(Март[Выдано топливо, литр],Март[Дата],">="&$S$2,Март[Дата],"<="&$T$2)+IF(MONTH(T2)<>MONTH(S2),INDIRECT(TEXT(A7-1,"ММММ")&"!F38")-SUM(INDIRECT(TEXT(A7-1,"ММММ")&"!V1:V2"))) -> 620 | W2: =IF(V2=0,0,(SUMIFS(N7:N37,A7:A37,">="&S2,A7:A37,"<="&T2)+SUMIFS(INDIRECT(TEXT(A7-1,"ММММ")&"!N7:N37"),INDIRECT(TEXT(A7-1,"ММММ")&"!A7:A37"),">="&S2))/(V2-U2+IF(MONTH(T2)=MONTH(S2),G7,INDEX(INDIRECT(TEXT(A7-1,"ММММ")&"!G7:G37"),DAY(S2))))) -> 1.029220968 | X2: =SUMIFS(Март[Отклонение от нормы (Перерасход(+), экономия(-)), литр],Март[Дата],">="&$S$2,Март[Дата],"<="&$T$2) -> -16.117 | Y2: =IF(Y4="Зима",VLOOKUP(Z4,Расчет[[Номер гос.регистрации / Заводской номер]:[Итога норма а/м "ЛЕТО"]],8,FALSE),VLOOKUP(Z4,Расчет[[Номер гос.регистрации / Заводской номер]:[Итога норма а/м "ЛЕТО"]],9,FALSE)) -> 51.546 | Z2: =IF(Y4="Зима",VLOOKUP(Z4,Расчет[[Номер гос.регистрации / Заводской номер]:[Итога норма а/м "ЛЕТО"]],13,FALSE),VLOOKUP(Z4,Расчет[[Номер гос.регистрации / Заводской номер]:[Итога норма а/м "ЛЕТО"]],14,FALSE)) -> 6.05
A3: Отчет водителя ломовоза с манипулятором | R3: 2-я половина | S3: =T2+1 -> 2018-03-16 | T3: =INDEX(Март[Дата],COUNT(Март[Дата])) -> 2018-03-31 | U3: =ТС!E6 -> 500 | V3: =SUMIFS(Март[Выдано топливо, литр],Март[Дата],">="&$S$3,Март[Дата],"<="&$T$3)+IF(MONTH(T3)<>MONTH(S3),INDIRECT(TEXT(A8-1,"ММММ")&"!F38")-SUM(INDIRECT(TEXT(A8-1,"ММММ")&"!V1:V2"))) -> 300 | W3: =IF(V3=0,0,(SUMIFS(N7:N37,A7:A37,">="&S3,A7:A37,"<="&T3)+SUMIFS(INDIRECT(TEXT(A7-1,"ММММ")&"!N7:N37"),INDIRECT(TEXT(A7-1,"ММММ")&"!A7:A37"),">="&S3))/(V3-U3+IF(MONTH(T3)=MONTH(S3),G7,INDEX(INDIRECT(TEXT(A7-1,"ММММ")&"!G7:G37"),DAY(S3))))) -> -377.8764267 | X3: =SUMIFS(Март[Отклонение от нормы (Перерасход(+), экономия(-)), литр],Март[Дата],">="&$S$3,Март[Дата],"<="&$T$3) -> 113663.928
H4: за | I4: 2018 | O4: т056вв 197 | S4: =T3+1 -> 2018-04-01 | W4: =IFERROR(INDIRECT(TEXT(A7+40,"ММММ")&"!W2"),) -> 0 | Y4: Зима | Z4: Норма 1
A6: Дата | B6: ФИО водителя | C6: Показание одометра машины на начало дня, км | D6: Показание одометра машины на конец дня, км | E6: Пройдено за день, км | F6: Выдано топливо, литр | G6: Остаток топлива в баке на начало дня, литр | H6: Показание счетчика моточасов спецоборудования на начало дня, м/ч | I6: Показание счетчика моточасов спецоборудования на конец дня, м/ч | J6: Работа спецоборудования за день, м/ч | K6: Количество ходок | L6: Расход топлива на работу спецоборудования, литр | M6: Остаток топлива в баке на конец дня, литр | N6: Расход топлива по норме, литр | O6: Фактический расход топлива, литр | P6: Отклонение от нормы (Перерасход(+), экономия(-)), литр | R6: Выдано топливо, литр | S6: Пройдено за день, км | T6: Фактический расход топлива, литр | U6: Работа спецоборудования за день, м/ч | V6: Расход топлива по норме, литр | W6: Дата
A7: =IFERROR(DATEVALUE((COUNT($A$6:A6)+1)&$P$1&$I$4),"") -> 2018-03-01 | C7: =INDEX(Январь!D7:D37,COUNT(Январь!D7:D37)) -> 210723 | D7: 210723 | E7: =IFERROR(Март[[#This Row],[Показание одометра машины на конец дня, км]]-Март[[#This Row],[Показание одометра машины на начало дня, км]]+S7,"") -> 0 | G7: =U2 -> 500 | H7: =INDEX(Январь!I7:I37,COUNT(Январь!I7:I37)) -> 671 | I7: 671 | J7: =IFERROR(IF(U7="",Март[[#This Row],[Показание счетчика моточасов спецоборудования на конец дня, м/ч]],Март[[#This Row],[Показание счетчика моточасов спецоборудования на конец дня, м/ч]]+1)-Март[[#This Row],[Показание счетчика моточасов спецоборудования на начало дня, м/ч]],"") -> 0 | K7: 0 | L7: =IF(Март[[#This Row],[Работа спецоборудования за день, м/ч]]="","",Март[[#This Row],[Работа спецоборудования за день, м/ч]]*$Z$2) -> 0 | M7: =IFERROR(IF(VLOOKUP(Март[Дата],S$2:U$3,3),IFERROR(IF(R7="",Март[[#This Row],[Выдано топливо, литр]],Март[[#This Row],[Выдано топливо, литр]]+R7)+Март[[#This Row],[Остаток топлива в баке на начало дня, литр]]-Март[[#This Row],[Фактический расход топлива, литр]],""),""),"") ->  | N7: =IFERROR(ROUND((Март[[#This Row],[Пройдено за день, км]]*0.01*$Y$2+Март[[#This Row],[Расход топлива на работу спецоборудования, литр]]),3)+V7,"") -> 0 | O7: =IFERROR(IF(Март[[#Totals],[Выдано топливо, литр]]=0,0,(ROUND(Март[[#This Row],[Расход топлива по норме, литр]]/IF(DAY(Март[Дата])<=18,$W$2,$W$3),0)))+T7,"") -> 0 | P7: =IFERROR(Март[[#This Row],[Фактический расход топлива, литр]]-Март[[#This Row],[Расход топлива по норме, литр]],"") -> 0 | W7: =Март[[#This Row],[Дата]] -> 2018-03-01
A8: =IFERROR(DATEVALUE((COUNT($A$6:A7)+1)&$P$1&$I$4),"") -> 2018-03-02 | B8: Никляев В.А. | C8: =IF(Март[[#This Row],[Дата]]="","",D7) -> 210723 | D8: 210735 | E8: =IFERROR(Март[[#This Row],[Показание одометра машины на конец дня, км]]-Март[[#This Row],[Показание одометра машины на начало дня, км]]+S8,"") -> 12 | F8: 150 | G8: =IF(Март[[#This Row],[Дата]]="","",M7) ->  | H8: =IF(Март[[#This Row],[Дата]]="","",I7) -> 671 | I8: 672 | J8: =IFERROR(IF(U8="",Март[[#This Row],[Показание счетчика моточасов спецоборудования на конец дня, м/ч]],Март[[#This Row],[Показание счетчика моточасов спецоборудования на конец дня, м/ч]]+1)-Март[[#This Row],[Показание счетчика моточасов спецоборудования на начало дня, м/ч]],"") -> 1 | K8: 1 | L8: =IF(Март[[#This Row],[Работа спецоборудования за день, м/ч]]="","",Март[[#This Row],[Работа спецоборудования за день, м/ч]]*$Z$2) -> 6.05 | M8: =IFERROR(IF(VLOOKUP(Март[Дата],S$2:U$3,3),IFERROR(IF(R8="",Март[[#This Row],[Выдано топливо, литр]],Март[[#This Row],[Выдано топливо, литр]]+R8)+Март[[#This Row],[Остаток топлива в баке на начало дня, литр]]-Март[[#This Row],[Фактический расход топлива, литр]],""),""),"") ->  | N8: =IFERROR(ROUND((Март[[#This Row],[Пройдено за день, км]]*0.01*$Y$2+Март[[#This Row],[Расход топлива на работу спецоборудования, литр]]),3)+V8,"") -> 12.236 | O8: =IFERROR(IF(Март[[#Totals],[Выдано топливо, литр]]=0,0,(ROUND(Март[[#This Row],[Расход топлива по норме, литр]]/IF(DAY(Март[Дата])<=18,$W$2,$W$3),0)))+T8,"") -> 12 | P8: =IFERROR(Март[[#This Row],[Фактический расход топлива, литр]]-Март[[#This Row],[Расход топлива по норме, литр]],"") -> -0.236 | W8: =Март[[#This Row],[Дата]] -> 2018-03-02
A9: =IFERROR(DATEVALUE((COUNT($A$6:A8)+1)&$P$1&$I$4),"") -> 2018-03-03 | B9: Никляев В.А. | C9: =IF(Март[[#This Row],[Дата]]="","",D8) -> 210735 | D9: 210777 | E9: =IFERROR(Март[[#This Row],[Показание одометра машины на конец дня, км]]-Март[[#This Row],[Показание одометра машины на начало дня, км]]+S9,"") -> 42 | G9: =IF(Март[[#This Row],[Дата]]="","",M8) ->  | H9: =IF(Март[[#This Row],[Дата]]="","",I8) -> 672 | I9: 674 | J9: =IFERROR(IF(U9="",Март[[#This Row],[Показание счетчика моточасов спецоборудования на конец дня, м/ч]],Март[[#This Row],[Показание счетчика моточасов спецоборудования на конец дня, м/ч]]+1)-Март[[#This Row],[Показание счетчика моточасов спецоборудования на начало дня, м/ч]],"") -> 2 | K9: 1 | L9: =IF(Март[[#This Row],[Работа спецоборудования за день, м/ч]]="","",Март[[#This Row],[Работа спецоборудования за день, м/ч]]*$Z$2) -> 12.1 | M9: =IFERROR(IF(VLOOKUP(Март[Дата],S$2:U$3,3),IFERROR(IF(R9="",Март[[#This Row],[Выдано топливо, литр]],Март[[#This Row],[Выдано топливо, литр]]+R9)+Март[[#This Row],[Остаток топлива в баке на начало дня, литр]]-Март[[#This Row],[Фактический расход топлива, литр]],""),""),"") ->  | N9: =IFERROR(ROUND((Март[[#This Row],[Пройдено за день, км]]*0.01*$Y$2+Март[[#This Row],[Расход топлива на работу спецоборудования, литр]]),3)+V9,"") -> 33.748 | O9: =IFERROR(IF(Март[[#Totals],[Выдано топливо, литр]]=0,0,(ROUND(Март[[#This Row],[Расход топлива по норме, литр]]/IF(DAY(Март[Дата])<=18,$W$2,$W$3),0)))+T9,"") -> 33 | P9: =IFERROR(Март[[#This Row],[Фактический расход топлива, литр]]-Март[[#This Row],[Расход топлива по норме, литр]],"") -> -0.748 | V9: -0.001 | W9: =Март[[#This Row],[Дата]] -> 2018-03-03
A10: =IFERROR(DATEVALUE((COUNT($A$6:A9)+1)&$P$1&$I$4),"") -> 2018-03-04 | B10: Никляев В.А. | C10: =IF(Март[[#This Row],[Дата]]="","",D9) -> 210777 | D10: 210864 | E10: =IFERROR(Март[[#This Row],[Показание одометра машины на конец дня, км]]-Март[[#This Row],[Показание одометра машины на начало дня, км]]+S10,"") -> 87 | G10: =IF(Март[[#This Row],[Дата]]="","",M9) ->  | H10: =IF(Март[[#This Row],[Дата]]="","",I9) -> 674 | I10: 676 | J10: =IFERROR(IF(U10="",Март[[#This Row],[Показание счетчика моточасов спецоборудования на конец дня, м/ч]],Март[[#This Row],[Показание счетчика моточасов спецоборудования на конец дня, м/ч]]+1)-Март[[#This Row],[Показание счетчика моточасов спецоборудования на начало дня, м/ч]],"") -> 2 | K10: 2 | L10: =IF(Март[[#This Row],[Работа спецоборудования за день, м/ч]]="","",Март[[#This Row],[Работа спецоборудования за день, м/ч]]*$Z$2) -> 12.1 | M10: =IFERROR(IF(VLOOKUP(Март[Дата],S$2:U$3,3),IFERROR(IF(R10="",Март[[#This Row],[Выдано топливо, литр]],Март[[#This Row],[Выдано топливо, литр]]+R10)+Март[[#This Row],[Остаток топлива в баке на начало дня, литр]]-Март[[#This Row],[Фактический расход топлива, литр]],""),""),"") ->  | N10: =IFERROR(ROUND((Март[[#This Row],[Пройдено за день, км]]*0.01*$Y$2+Март[[#This Row],[Расход топлива на работу спецоборудования, литр]]),3)+V10,"") -> 56.945 | O10: =IFERROR(IF(Март[[#Totals],[Выдано топливо, литр]]=0,0,(ROUND(Март[[#This Row],[Расход топлива по норме, литр]]/IF(DAY(Март[Дата])<=18,$W$2,$W$3),0)))+T10,"") -> 55 | P10: =IFERROR(Март[[#This Row],[Фактический расход топлива, литр]]-Март[[#This Row],[Расход топлива по норме, литр]],"") -> -1.945 | W10: =Март[[#This Row],[Дата]] -> 2018-03-04
A11: =IFERROR(DATEVALUE((COUNT($A$6:A10)+1)&$P$1&$I$4),"") -> 2018-03-05 | C11: =IF(Март[[#This Row],[Дата]]="","",D10) -> 210864 | D11: 210864 | E11: =IFERROR(Март[[#This Row],[Показание одометра машины на конец дня, км]]-Март[[#This Row],[Показание одометра машины на начало дня, км]]+S11,"") -> 0 | G11: =IF(Март[[#This Row],[Дата]]="","",M10) ->  | H11: =IF(Март[[#This Row],[Дата]]="","",I10) -> 676 | I11: 676 | J11: =IFERROR(IF(U11="",Март[[#This Row],[Показание счетчика моточасов спецоборудования на конец дня, м/ч]],Март[[#This Row],[Показание счетчика моточасов спецоборудования на конец дня, м/ч]]+1)-Март[[#This Row],[Показание счетчика моточасов спецоборудования на начало дня, м/ч]],"") -> 0 | K11: 0 | L11: =IF(Март[[#This Row],[Работа спецоборудования за день, м/ч]]="","",Март[[#This Row],[Работа спецоборудования за день, м/ч]]*$Z$2) -> 0 | M11: =IFERROR(IF(VLOOKUP(Март[Дата],S$2:U$3,3),IFERROR(IF(R11="",Март[[#This Row],[Выдано топливо, литр]],Март[[#This Row],[Выдано топливо, литр]]+R11)+Март[[#This Row],[Остаток топлива в баке на начало дня, литр]]-Март[[#This Row],[Фактический расход топлива, литр]],""),""),"") ->  | N11: =IFERROR(ROUND((Март[[#This Row],[Пройдено за день, км]]*0.01*$Y$2+Март[[#This Row],[Расход топлива на работу спецоборудования, литр]]),3)+V11,"") -> 0 | O11: =IFERROR(IF(Март[[#Totals],[Выдано топливо, литр]]=0,0,(ROUND(Март[[#This Row],[Расход топлива по норме, литр]]/IF(DAY(Март[Дата])<=18,$W$2,$W$3),0)))+T11,"") -> 0 | P11: =IFERROR(Март[[#This Row],[Фактический расход топлива, литр]]-Март[[#This Row],[Расход топлива по норме, литр]],"") -> 0 | W11: =Март[[#This Row],[Дата]] -> 2018-03-05
A12: =IFERROR(DATEVALUE((COUNT($A$6:A11)+1)&$P$1&$I$4),"") -> 2018-03-06 | B12: Никляев В.А. | C12: =IF(Март[[#This Row],[Дата]]="","",D11) -> 210864 | D12: 210888 | E12: =IFERROR(Март[[#This Row],[Показание одометра машины на конец дня, км]]-Март[[#This Row],[Показание одометра машины на начало дня, км]]+S12,"") -> 24 | G12: =IF(Март[[#This Row],[Дата]]="","",M11) ->  | H12: =IF(Март[[#This Row],[Дата]]="","",I11) -> 676 | I12: 678 | J12: =IFERROR(IF(U12="",Март[[#This Row],[Показание счетчика моточасов спецоборудования на конец дня, м/ч]],Март[[#This Row],[Показание счетчика моточасов спецоборудования на конец дня, м/ч]]+1)-Март[[#This Row],[Показание счетчика моточасов спецоборудования на начало дня, м/ч]],"") -> 2 | K12: 1 | L12: =IF(Март[[#This Row],[Работа спецоборудования за день, м/ч]]="","",Март[[#This Row],[Работа спецоборудования за день, м/ч]]*$Z$2) -> 12.1 | M12: =IFERROR(IF(VLOOKUP(Март[Дата],S$2:U$3,3),IFERROR(IF(R12="",Март[[#This Row],[Выдано топливо, литр]],Март[[#This Row],[Выдано топливо, литр]]+R12)+Март[[#This Row],[Остаток топлива в баке на начало дня, литр]]-Март[[#This Row],[Фактический расход топлива, литр]],""),""),"") ->  | N12: =IFERROR(ROUND((Март[[#This Row],[Пройдено за день, км]]*0.01*$Y$2+Март[[#This Row],[Расход топлива на работу спецоборудования, литр]]),3)+V12,"") -> 24.471 | O12: =IFERROR(IF(Март[[#Totals],[Выдано топливо, литр]]=0,0,(ROUND(Март[[#This Row],[Расход топлива по норме, литр]]/IF(DAY(Март[Дата])<=18,$W$2,$W$3),0)))+T12,"") -> 24 | P12: =IFERROR(Март[[#This Row],[Фактический расход топлива, литр]]-Март[[#This Row],[Расход топлива по норме, литр]],"") -> -0.471 | W12: =Март[[#This Row],[Дата]] -> 2018-03-06
A13: =IFERROR(DATEVALUE((COUNT($A$6:A12)+1)&$P$1&$I$4),"") -> 2018-03-07 | B13: Никляев В.А. | C13: =IF(Март[[#This Row],[Дата]]="","",D12) -> 210888 | D13: 210900 | E13: =IFERROR(Март[[#This Row],[Показание одометра машины на конец дня, км]]-Март[[#This Row],[Показание одометра машины на начало дня, км]]+S13,"") -> 12 | G13: =IF(Март[[#This Row],[Дата]]="","",M12) ->  | H13: =IF(Март[[#This Row],[Дата]]="","",I12) -> 678 | I13: 679 | J13: =IFERROR(IF(U13="",Март[[#This Row],[Показание счетчика моточасов спецоборудования на конец дня, м/ч]],Март[[#This Row],[Показание счетчика моточасов спецоборудования на конец дня, м/ч]]+1)-Март[[#This Row],[Показание счетчика моточасов спецоборудования на начало дня, м/ч]],"") -> 1 | K13: 1 | L13: =IF(Март[[#This Row],[Работа спецоборудования за день, м/ч]]="","",Март[[#This Row],[Работа спецоборудования за день, м/ч]]*$Z$2) -> 6.05 | M13: =IFERROR(IF(VLOOKUP(Март[Дата],S$2:U$3,3),IFERROR(IF(R13="",Март[[#This Row],[Выдано топливо, литр]],Март[[#This Row],[Выдано топливо, литр]]+R13)+Март[[#This Row],[Остаток топлива в баке на начало дня, литр]]-Март[[#This Row],[Фактический расход топлива, литр]],""),""),"") ->  | N13: =IFERROR(ROUND((Март[[#This Row],[Пройдено за день, км]]*0.01*$Y$2+Март[[#This Row],[Расход топлива на работу спецоборудования, литр]]),3)+V13,"") -> 12.236 | O13: =IFERROR(IF(Март[[#Totals],[Выдано топливо, литр]]=0,0,(ROUND(Март[[#This Row],[Расход топлива по норме, литр]]/IF(DAY(Март[Дата])<=18,$W$2,$W$3),0)))+T13,"") -> 12 | P13: =IFERROR(Март[[#This Row],[Фактический расход топлива, литр]]-Март[[#This Row],[Расход топлива по норме, литр]],"") -> -0.236 | W13: =Март[[#This Row],[Дата]] -> 2018-03-07
A14: =IFERROR(DATEVALUE((COUNT($A$6:A13)+1)&$P$1&$I$4),"") -> 2018-03-08 | B14: Никляев В.А. | C14: =IF(Март[[#This Row],[Дата]]="","",D13) -> 210900 | D14: 211028 | E14: =IFERROR(Март[[#This Row],[Показание одометра машины на конец дня, км]]-Март[[#This Row],[Показание одометра машины на начало дня, км]]+S14,"") -> 128 | G14: =IF(Март[[#This Row],[Дата]]="","",M13) ->  | H14: =IF(Март[[#This Row],[Дата]]="","",I13) -> 679 | I14: 683 | J14: =IFERROR(IF(U14="",Март[[#This Row],[Показание счетчика моточасов спецоборудования на конец дня, м/ч]],Март[[#This Row],[Показание счетчика моточасов спецоборудования на конец дня, м/ч]]+1)-Март[[#This Row],[Показание счетчика моточасов спецоборудования на начало дня, м/ч]],"") -> 4 | K14: 2 | L14: =IF(Март[[#This Row],[Работа спецоборудования за день, м/ч]]="","",Март[[#This Row],[Работа спецоборудования за день, м/ч]]*$Z$2) -> 24.2 | M14: =IFERROR(IF(VLOOKUP(Март[Дата],S$2:U$3,3),IFERROR(IF(R14="",Март[[#This Row],[Выдано топливо, литр]],Март[[#This Row],[Выдано топливо, литр]]+R14)+Март[[#This Row],[Остаток топлива в баке на начало дня, литр]]-Март[[#This Row],[Фактический расход топлива, литр]],""),""),"") ->  | N14: =IFERROR(ROUND((Март[[#This Row],[Пройдено за день, км]]*0.01*$Y$2+Март[[#This Row],[Расход топлива на работу спецоборудования, литр]]),3)+V14,"") -> 90.179 | O14: =IFERROR(IF(Март[[#Totals],[Выдано топливо, литр]]=0,0,(ROUND(Март[[#This Row],[Расход топлива по норме, литр]]/IF(DAY(Март[Дата])<=18,$W$2,$W$3),0)))+T14,"") -> 88 | P14: =IFERROR(Март[[#This Row],[Фактический расход топлива, литр]]-Март[[#This Row],[Расход топлива по норме, литр]],"") -> -2.179 | W14: =Март[[#This Row],[Дата]] -> 2018-03-08
A15: =IFERROR(DATEVALUE((COUNT($A$6:A14)+1)&$P$1&$I$4),"") -> 2018-03-09 | B15: Никляев В.А. | C15: =IF(Март[[#This Row],[Дата]]="","",D14) -> 211028 | D15: 211140 | E15: =IFERROR(Март[[#This Row],[Показание одометра машины на конец дня, км]]-Март[[#This Row],[Показание одометра машины на начало дня, км]]+S15,"") -> 112 | G15: =IF(Март[[#This Row],[Дата]]="","",M14) ->  | H15: =IF(Март[[#This Row],[Дата]]="","",I14) -> 683 | I15: 685 | J15: =IFERROR(IF(U15="",Март[[#This Row],[Показание счетчика моточасов спецоборудования на конец дня, м/ч]],Март[[#This Row],[Показание счетчика моточасов спецоборудования на конец дня, м/ч]]+1)-Март[[#This Row],[Показание счетчика моточасов спецоборудования на начало дня, м/ч]],"") -> 2 | K15: 2 | L15: =IF(Март[[#This Row],[Работа спецоборудования за день, м/ч]]="","",Март[[#This Row],[Работа спецоборудования за день, м/ч]]*$Z$2) -> 12.1 | M15: =IFERROR(IF(VLOOKUP(Март[Дата],S$2:U$3,3),IFERROR(IF(R15="",Март[[#This Row],[Выдано топливо, литр]],Март[[#This Row],[Выдано топливо, литр]]+R15)+Март[[#This Row],[Остаток топлива в баке на начало дня, литр]]-Март[[#This Row],[Фактический расход топлива, литр]],""),""),"") ->  | N15: =IFERROR(ROUND((Март[[#This Row],[Пройдено за день, км]]*0.01*$Y$2+Март[[#This Row],[Расход топлива на работу спецоборудования, литр]]),3)+V15,"") -> 69.832 | O15: =IFERROR(IF(Март[[#Totals],[Выдано топливо, литр]]=0,0,(ROUND(Март[[#This Row],[Расход топлива по норме, литр]]/IF(DAY(Март[Дата])<=18,$W$2,$W$3),0)))+T15,"") -> 68 | P15: =IFERROR(Март[[#This Row],[Фактический расход топлива, литр]]-Март[[#This Row],[Расход топлива по норме, литр]],"") -> -1.832 | W15: =Март[[#This Row],[Дата]] -> 2018-03-09
A16: =IFERROR(DATEVALUE((COUNT($A$6:A15)+1)&$P$1&$I$4),"") -> 2018-03-10 | B16: Никляев В.А. | C16: =IF(Март[[#This Row],[Дата]]="","",D15) -> 211140 | D16: 211246 | E16: =IFERROR(Март[[#This Row],[Показание одометра машины на конец дня, км]]-Март[[#This Row],[Показание одометра машины на начало дня, км]]+S16,"") -> 106 | G16: =IF(Март[[#This Row],[Дата]]="","",M15) ->  | H16: =IF(Март[[#This Row],[Дата]]="","",I15) -> 685 | I16: 687 | J16: =IFERROR(IF(U16="",Март[[#This Row],[Показание счетчика моточасов спецоборудования на конец дня, м/ч]],Март[[#This Row],[Показание счетчика моточасов спецоборудования на конец дня, м/ч]]+1)-Март[[#This Row],[Показание счетчика моточасов спецоборудования на начало дня, м/ч]],"") -> 2 | K16: 1 | L16: =IF(Март[[#This Row],[Работа спецоборудования за день, м/ч]]="","",Март[[#This Row],[Работа спецоборудования за день, м/ч]]*$Z$2) -> 12.1 | M16: =IFERROR(IF(VLOOKUP(Март[Дата],S$2:U$3,3),IFERROR(IF(R16="",Март[[#This Row],[Выдано топливо, литр]],Март[[#This Row],[Выдано топливо, литр]]+R16)+Март[[#This Row],[Остаток топлива в баке на начало дня, литр]]-Март[[#This Row],[Фактический расход топлива, литр]],""),""),"") ->  | N16: =IFERROR(ROUND((Март[[#This Row],[Пройдено за день, км]]*0.01*$Y$2+Март[[#This Row],[Расход топлива на работу спецоборудования, литр]]),3)+V16,"") -> 66.739 | O16: =IFERROR(IF(Март[[#Totals],[Выдано топливо, литр]]=0,0,(ROUND(Март[[#This Row],[Расход топлива по норме, литр]]/IF(DAY(Март[Дата])<=18,$W$2,$W$3),0)))+T16,"") -> 65 | P16: =IFERROR(Март[[#This Row],[Фактический расход топлива, литр]]-Март[[#This Row],[Расход топлива по норме, литр]],"") -> -1.739 | W16: =Март[[#This Row],[Дата]] -> 2018-03-10
A17: =IFERROR(DATEVALUE((COUNT($A$6:A16)+1)&$P$1&$I$4),"") -> 2018-03-11 | C17: =IF(Март[[#This Row],[Дата]]="","",D16) -> 211246 | D17: 211246 | E17: =IFERROR(Март[[#This Row],[Показание одометра машины на конец дня, км]]-Март[[#This Row],[Показание одометра машины на начало дня, км]]+S17,"") -> 0 | G17: =IF(Март[[#This Row],[Дата]]="","",M16) ->  | H17: =IF(Март[[#This Row],[Дата]]="","",I16) -> 687 | I17: 687 | J17: =IFERROR(IF(U17="",Март[[#This Row],[Показание счетчика моточасов спецоборудования на конец дня, м/ч]],Март[[#This Row],[Показание счетчика моточасов спецоборудования на конец дня, м/ч]]+1)-Март[[#This Row],[Показание счетчика моточасов спецоборудования на начало дня, м/ч]],"") -> 0 | K17: 0 | L17: =IF(Март[[#This Row],[Работа спецоборудования за день, м/ч]]="","",Март[[#This Row],[Работа спецоборудования за день, м/ч]]*$Z$2) -> 0 | M17: =IFERROR(IF(VLOOKUP(Март[Дата],S$2:U$3,3),IFERROR(IF(R17="",Март[[#This Row],[Выдано топливо, литр]],Март[[#This Row],[Выдано топливо, литр]]+R17)+Март[[#This Row],[Остаток топлива в баке на начало дня, литр]]-Март[[#This Row],[Фактический расход топлива, литр]],""),""),"") ->  | N17: =IFERROR(ROUND((Март[[#This Row],[Пройдено за день, км]]*0.01*$Y$2+Март[[#This Row],[Расход топлива на работу спецоборудования, литр]]),3)+V17,"") -> 0 | O17: =IFERROR(IF(Март[[#Totals],[Выдано топливо, литр]]=0,0,(ROUND(Март[[#This Row],[Расход топлива по норме, литр]]/IF(DAY(Март[Дата])<=18,$W$2,$W$3),0)))+T17,"") -> 0 | P17: =IFERROR(Март[[#This Row],[Фактический расход топлива, литр]]-Март[[#This Row],[Расход топлива по норме, литр]],"") -> 0 | W17: =Март[[#This Row],[Дата]] -> 2018-03-11
A18: =IFERROR(DATEVALUE((COUNT($A$6:A17)+1)&$P$1&$I$4),"") -> 2018-03-12 | B18: Никляев В.А. | C18: =IF(Март[[#This Row],[Дата]]="","",D17) -> 211246 | D18: 211429 | E18: =IFERROR(Март[[#This Row],[Показание одометра машины на конец дня, км]]-Март[[#This Row],[Показание одометра машины на начало дня, км]]+S18,"") -> 183 | F18: 320 | G18: =IF(Март[[#This Row],[Дата]]="","",M17) ->  | H18: =IF(Март[[#This Row],[Дата]]="","",I17) -> 687 | I18: 691 | J18: =IFERROR(IF(U18="",Март[[#This Row],[Показание счетчика моточасов спецоборудования на конец дня, м/ч]],Март[[#This Row],[Показание счетчика моточасов спецоборудования на конец дня, м/ч]]+1)-Март[[#This Row],[Показание счетчика моточасов спецоборудования на начало дня, м/ч]],"") -> 4 | K18: 3 | L18: =IF(Март[[#This Row],[Работа спецоборудования за день, м/ч]]="","",Март[[#This Row],[Работа спецоборудования за день, м/ч]]*$Z$2) -> 24.2 | M18: =IFERROR(IF(VLOOKUP(Март[Дата],S$2:U$3,3),IFERROR(IF(R18="",Март[[#This Row],[Выдано топливо, литр]],Март[[#This Row],[Выдано топливо, литр]]+R18)+Март[[#This Row],[Остаток топлива в баке на начало дня, литр]]-Март[[#This Row],[Фактический расход топлива, литр]],""),""),"") ->  | N18: =IFERROR(ROUND((Март[[#This Row],[Пройдено за день, км]]*0.01*$Y$2+Март[[#This Row],[Расход топлива на работу спецоборудования, литр]]),3)+V18,"") -> 118.529 | O18: =IFERROR(IF(Март[[#Totals],[Выдано топливо, литр]]=0,0,(ROUND(Март[[#This Row],[Расход топлива по норме, литр]]/IF(DAY(Март[Дата])<=18,$W$2,$W$3),0)))+T18,"") -> 115 | P18: =IFERROR(Март[[#This Row],[Фактический расход топлива, литр]]-Март[[#This Row],[Расход топлива по норме, литр]],"") -> -3.529 | W18: =Март[[#This Row],[Дата]] -> 2018-03-12
A19: =IFERROR(DATEVALUE((COUNT($A$6:A18)+1)&$P$1&$I$4),"") -> 2018-03-13 | C19: =IF(Март[[#This Row],[Дата]]="","",D18) -> 211429 | D19: 211429 | E19: =IFERROR(Март[[#This Row],[Показание одометра машины на конец дня, км]]-Март[[#This Row],[Показание одометра машины на начало дня, км]]+S19,"") -> 0 | G19: =IF(Март[[#This Row],[Дата]]="","",M18) ->  | H19: =IF(Март[[#This Row],[Дата]]="","",I18) -> 691 | I19: 691 | J19: =IFERROR(IF(U19="",Март[[#This Row],[Показание счетчика моточасов спецоборудования на конец дня, м/ч]],Март[[#This Row],[Показание счетчика моточасов спецоборудования на конец дня, м/ч]]+1)-Март[[#This Row],[Показание счетчика моточасов спецоборудования на начало дня, м/ч]],"") -> 0 | K19: 0 | L19: =IF(Март[[#This Row],[Работа спецоборудования за день, м/ч]]="","",Март[[#This Row],[Работа спецоборудования за день, м/ч]]*$Z$2) -> 0 | M19: =IFERROR(IF(VLOOKUP(Март[Дата],S$2:U$3,3),IFERROR(IF(R19="",Март[[#This Row],[Выдано топливо, литр]],Март[[#This Row],[Выдано топливо, литр]]+R19)+Март[[#This Row],[Остаток топлива в баке на начало дня, литр]]-Март[[#This Row],[Фактический расход топлива, литр]],""),""),"") ->  | N19: =IFERROR(ROUND((Март[[#This Row],[Пройдено за день, км]]*0.01*$Y$2+Март[[#This Row],[Расход топлива на работу спецоборудования, литр]]),3)+V19,"") -> 0 | O19: =IFERROR(IF(Март[[#Totals],[Выдано топливо, литр]]=0,0,(ROUND(Март[[#This Row],[Расход топлива по норме, литр]]/IF(DAY(Март[Дата])<=18,$W$2,$W$3),0)))+T19,"") -> 0 | P19: =IFERROR(Март[[#This Row],[Фактический расход топлива, литр]]-Март[[#This Row],[Расход топлива по норме, литр]],"") -> 0 | W19: =Март[[#This Row],[Дата]] -> 2018-03-13
A20: =IFERROR(DATEVALUE((COUNT($A$6:A19)+1)&$P$1&$I$4),"") -> 2018-03-14 | B20: Никляев В.А. | C20: =IF(Март[[#This Row],[Дата]]="","",D19) -> 211429 | D20: 211665 | E20: =IFERROR(Март[[#This Row],[Показание одометра машины на конец дня, км]]-Март[[#This Row],[Показание одометра машины на начало дня, км]]+S20,"") -> 236 | G20: =IF(Март[[#This Row],[Дата]]="","",M19) ->  | H20: =IF(Март[[#This Row],[Дата]]="","",I19) -> 691 | I20: 695 | J20: =IFERROR(IF(U20="",Март[[#This Row],[Показание счетчика моточасов спецоборудования на конец дня, м/ч]],Март[[#This Row],[Показание счетчика моточасов спецоборудования на конец дня, м/ч]]+1)-Март[[#This Row],[Показание счетчика моточасов спецоборудования на начало дня, м/ч]],"") -> 4 | K20: 2 | L20: =IF(Март[[#This Row],[Работа спецоборудования за день, м/ч]]="","",Март[[#This Row],[Работа спецоборудования за день, м/ч]]*$Z$2) -> 24.2 | M20: =IFERROR(IF(VLOOKUP(Март[Дата],S$2:U$3,3),IFERROR(IF(R20="",Март[[#This Row],[Выдано топливо, литр]],Март[[#This Row],[Выдано топливо, литр]]+R20)+Март[[#This Row],[Остаток топлива в баке на начало дня, литр]]-Март[[#This Row],[Фактический расход топлива, литр]],""),""),"") ->  | N20: =IFERROR(ROUND((Март[[#This Row],[Пройдено за день, км]]*0.01*$Y$2+Март[[#This Row],[Расход топлива на работу спецоборудования, литр]]),3)+V20,"") -> 145.849 | O20: =IFERROR(IF(Март[[#Totals],[Выдано топливо, литр]]=0,0,(ROUND(Март[[#This Row],[Расход топлива по норме, литр]]/IF(DAY(Март[Дата])<=18,$W$2,$W$3),0)))+T20,"") -> 142 | P20: =IFERROR(Март[[#This Row],[Фактический расход топлива, литр]]-Март[[#This Row],[Расход топлива по норме, литр]],"") -> -3.849 | W20: =Март[[#This Row],[Дата]] -> 2018-03-14
A21: =IFERROR(DATEVALUE((COUNT($A$6:A20)+1)&$P$1&$I$4),"") -> 2018-03-15 | B21: Никляев В.А. | C21: =IF(Март[[#This Row],[Дата]]="","",D20) -> 211665 | D21: 211745 | E21: =IFERROR(Март[[#This Row],[Показание одометра машины на конец дня, км]]-Март[[#This Row],[Показание одометра машины на начало дня, км]]+S21,"") -> 80 | F21: 300 | G21: =IF(Март[[#This Row],[Дата]]="","",M20) ->  | H21: =IF(Март[[#This Row],[Дата]]="","",I20) -> 695 | I21: 697 | J21: =IFERROR(IF(U21="",Март[[#This Row],[Показание счетчика моточасов спецоборудования на конец дня, м/ч]],Март[[#This Row],[Показание счетчика моточасов спецоборудования на конец дня, м/ч]]+1)-Март[[#This Row],[Показание счетчика моточасов спецоборудования на начало дня, м/ч]],"") -> 2 | K21: 2 | L21: =IF(Март[[#This Row],[Работа спецоборудования за день, м/ч]]="","",Март[[#This Row],[Работа спецоборудования за день, м/ч]]*$Z$2) -> 12.1 | M21: =IFERROR(IF(VLOOKUP(Март[Дата],S$2:U$3,3),IFERROR(IF(R21="",Март[[#This Row],[Выдано топливо, литр]],Март[[#This Row],[Выдано топливо, литр]]+R21)+Март[[#This Row],[Остаток топлива в баке на начало дня, литр]]-Март[[#This Row],[Фактический расход топлива, литр]],""),""),"") ->  | N21: =IFERROR(ROUND((Март[[#This Row],[Пройдено за день, км]]*0.01*$Y$2+Март[[#This Row],[Расход топлива на работу спецоборудования, литр]]),3)+V21,"") -> 53.337 | O21: =IFERROR(IF(Март[[#Totals],[Выдано топливо, литр]]=0,0,(ROUND(Март[[#This Row],[Расход топлива по норме, литр]]/IF(DAY(Март[Дата])<=18,$W$2,$W$3),0)))+T21,"") -> 53 | P21: =IFERROR(Март[[#This Row],[Фактический расход топлива, литр]]-Март[[#This Row],[Расход топлива по норме, литр]],"") -> -0.337 | T21: 1 | W21: =Март[[#This Row],[Дата]] -> 2018-03-15
A22: =IFERROR(DATEVALUE((COUNT($A$6:A21)+1)&$P$1&$I$4),"") -> 2018-03-16 | C22: =IF(Март[[#This Row],[Дата]]="","",D21) -> 211745 | D22: 211745 | E22: =IFERROR(Март[[#This Row],[Показание одометра машины на конец дня, км]]-Март[[#This Row],[Показание одометра машины на начало дня, км]]+S22,"") -> 0 | G22: =IF(Март[[#This Row],[Дата]]="","",M21) ->  | H22: =IF(Март[[#This Row],[Дата]]="","",I21) -> 697 | I22: 697 | J22: =IFERROR(IF(U22="",Март[[#This Row],[Показание счетчика моточасов спецоборудования на конец дня, м/ч]],Март[[#This Row],[Показание счетчика моточасов спецоборудования на конец дня, м/ч]]+1)-Март[[#This Row],[Показание счетчика моточасов спецоборудования на начало дня, м/ч]],"") -> 0 | L22: =IF(Март[[#This Row],[Работа спецоборудования за день, м/ч]]="","",Март[[#This Row],[Работа спецоборудования за день, м/ч]]*$Z$2) -> 0 | M22: =IFERROR(IF(VLOOKUP(Март[Дата],S$2:U$3,3),IFERROR(IF(R22="",Март[[#This Row],[Выдано топливо, литр]],Март[[#This Row],[Выдано топливо, литр]]+R22)+Март[[#This Row],[Остаток топлива в баке на начало дня, литр]]-Март[[#This Row],[Фактический расход топлива, литр]],""),""),"") ->  | N22: =IFERROR(ROUND((Март[[#This Row],[Пройдено за день, км]]*0.01*$Y$2+Март[[#This Row],[Расход топлива на работу спецоборудования, литр]]),3)+V22,"") -> 0 | O22: =IFERROR(IF(Март[[#Totals],[Выдано топливо, литр]]=0,0,(ROUND(Март[[#This Row],[Расход топлива по норме, литр]]/IF(DAY(Март[Дата])<=18,$W$2,$W$3),0)))+T22,"") -> 0 | P22: =IFERROR(Март[[#This Row],[Фактический расход топлива, литр]]-Март[[#This Row],[Расход топлива по норме, литр]],"") -> 0 | W22: =Март[[#This Row],[Дата]] -> 2018-03-16
A23: =IFERROR(DATEVALUE((COUNT($A$6:A22)+1)&$P$1&$I$4),"") -> 2018-03-17 | C23: =IF(Март[[#This Row],[Дата]]="","",D22) -> 211745 | D23: 211745 | E23: =IFERROR(Март[[#This Row],[Показание одометра машины на конец дня, км]]-Март[[#This Row],[Показание одометра машины на начало дня, км]]+S23,"") -> 0 | G23: =IF(Март[[#This Row],[Дата]]="","",M22) ->  | H23: =IF(Март[[#This Row],[Дата]]="","",I22) -> 697 | I23: 697 | J23: =IFERROR(IF(U23="",Март[[#This Row],[Показание счетчика моточасов спецоборудования на конец дня, м/ч]],Март[[#This Row],[Показание счетчика моточасов спецоборудования на конец дня, м/ч]]+1)-Март[[#This Row],[Показание счетчика моточасов спецоборудования на начало дня, м/ч]],"") -> 0 | L23: =IF(Март[[#This Row],[Работа спецоборудования за день, м/ч]]="","",Март[[#This Row],[Работа спецоборудования за день, м/ч]]*$Z$2) -> 0 | M23: =IFERROR(IF(VLOOKUP(Март[Дата],S$2:U$3,3),IFERROR(IF(R23="",Март[[#This Row],[Выдано топливо, литр]],Март[[#This Row],[Выдано топливо, литр]]+R23)+Март[[#This Row],[Остаток топлива в баке на начало дня, литр]]-Март[[#This Row],[Фактический расход топлива, литр]],""),""),"") ->  | N23: =IFERROR(ROUND((Март[[#This Row],[Пройдено за день, км]]*0.01*$Y$2+Март[[#This Row],[Расход топлива на работу спецоборудования, литр]]),3)+V23,"") -> 0 | O23: =IFERROR(IF(Март[[#Totals],[Выдано топливо, литр]]=0,0,(ROUND(Март[[#This Row],[Расход топлива по норме, литр]]/IF(DAY(Март[Дата])<=18,$W$2,$W$3),0)))+T23,"") -> 0 | P23: =IFERROR(Март[[#This Row],[Фактический расход топлива, литр]]-Март[[#This Row],[Расход топлива по норме, литр]],"") -> 0 | W23: =Март[[#This Row],[Дата]] -> 2018-03-17
A24: =IFERROR(DATEVALUE((COUNT($A$6:A23)+1)&$P$1&$I$4),"") -> 2018-03-18 | C24: =IF(Март[[#This Row],[Дата]]="","",D23) -> 211745 | D24: 211745 | E24: =IFERROR(Март[[#This Row],[Показание одометра машины на конец дня, км]]-Март[[#This Row],[Показание одометра машины на начало дня, км]]+S24,"") -> 0 | G24: =IF(Март[[#This Row],[Дата]]="","",M23) ->  | H24: =IF(Март[[#This Row],[Дата]]="","",I23) -> 697 | I24: 697 | J24: =IFERROR(IF(U24="",Март[[#This Row],[Показание счетчика моточасов спецоборудования на конец дня, м/ч]],Март[[#This Row],[Показание счетчика моточасов спецоборудования на конец дня, м/ч]]+1)-Март[[#This Row],[Показание счетчика моточасов спецоборудования на начало дня, м/ч]],"") -> 0 | L24: =IF(Март[[#This Row],[Работа спецоборудования за день, м/ч]]="","",Март[[#This Row],[Работа спецоборудования за день, м/ч]]*$Z$2) -> 0 | M24: =IFERROR(IF(VLOOKUP(Март[Дата],S$2:U$3,3),IFERROR(IF(R24="",Март[[#This Row],[Выдано топливо, литр]],Март[[#This Row],[Выдано топливо, литр]]+R24)+Март[[#This Row],[Остаток топлива в баке на начало дня, литр]]-Март[[#This Row],[Фактический расход топлива, литр]],""),""),"") ->  | N24: =IFERROR(ROUND((Март[[#This Row],[Пройдено за день, км]]*0.01*$Y$2+Март[[#This Row],[Расход топлива на работу спецоборудования, литр]]),3)+V24,"") -> 0 | O24: =IFERROR(IF(Март[[#Totals],[Выдано топливо, литр]]=0,0,(ROUND(Март[[#This Row],[Расход топлива по норме, литр]]/IF(DAY(Март[Дата])<=18,$W$2,$W$3),0)))+T24,"") -> 0 | P24: =IFERROR(Март[[#This Row],[Фактический расход топлива, литр]]-Март[[#This Row],[Расход топлива по норме, литр]],"") -> 0 | W24: =Март[[#This Row],[Дата]] -> 2018-03-18
A25: =IFERROR(DATEVALUE((COUNT($A$6:A24)+1)&$P$1&$I$4),"") -> 2018-03-19 | C25: =IF(Март[[#This Row],[Дата]]="","",D24) -> 211745 | D25: 211745 | E25: =IFERROR(Март[[#This Row],[Показание одометра машины на конец дня, км]]-Март[[#This Row],[Показание одометра машины на начало дня, км]]+S25,"") -> 0 | G25: =IF(Март[[#This Row],[Дата]]="","",M24) ->  | H25: =IF(Март[[#This Row],[Дата]]="","",I24) -> 697 | I25: 697 | J25: =IFERROR(IF(U25="",Март[[#This Row],[Показание счетчика моточасов спецоборудования на конец дня, м/ч]],Март[[#This Row],[Показание счетчика моточасов спецоборудования на конец дня, м/ч]]+1)-Март[[#This Row],[Показание счетчика моточасов спецоборудования на начало дня, м/ч]],"") -> 0 | L25: =IF(Март[[#This Row],[Работа спецоборудования за день, м/ч]]="","",Март[[#This Row],[Работа спецоборудования за день, м/ч]]*$Z$2) -> 0 | M25: =IFERROR(IF(VLOOKUP(Март[Дата],S$2:U$3,3),IFERROR(IF(R25="",Март[[#This Row],[Выдано топливо, литр]],Март[[#This Row],[Выдано топливо, литр]]+R25)+Март[[#This Row],[Остаток топлива в баке на начало дня, литр]]-Март[[#This Row],[Фактический расход топлива, литр]],""),""),"") ->  | N25: =IFERROR(ROUND((Март[[#This Row],[Пройдено за день, км]]*0.01*$Y$2+Март[[#This Row],[Расход топлива на работу спецоборудования, литр]]),3)+V25,"") -> 0 | O25: =IFERROR(IF(Март[[#Totals],[Выдано топливо, литр]]=0,0,(ROUND(Март[[#This Row],[Расход топлива по норме, литр]]/IF(DAY(Март[Дата])<=18,$W$2,$W$3),0)))+T25,"") -> 0 | P25: =IFERROR(Март[[#This Row],[Фактический расход топлива, литр]]-Март[[#This Row],[Расход топлива по норме, литр]],"") -> 0 | W25: =Март[[#This Row],[Дата]] -> 2018-03-19
A26: =IFERROR(DATEVALUE((COUNT($A$6:A25)+1)&$P$1&$I$4),"") -> 2018-03-20 | C26: =IF(Март[[#This Row],[Дата]]="","",D25) -> 211745 | D26: 211745 | E26: =IFERROR(Март[[#This Row],[Показание одометра машины на конец дня, км]]-Март[[#This Row],[Показание одометра машины на начало дня, км]]+S26,"") -> 0 | G26: =IF(Март[[#This Row],[Дата]]="","",M25) ->  | H26: =IF(Март[[#This Row],[Дата]]="","",I25) -> 697 | I26: 697 | J26: =IFERROR(IF(U26="",Март[[#This Row],[Показание счетчика моточасов спецоборудования на конец дня, м/ч]],Март[[#This Row],[Показание счетчика моточасов спецоборудования на конец дня, м/ч]]+1)-Март[[#This Row],[Показание счетчика моточасов спецоборудования на начало дня, м/ч]],"") -> 0 | L26: =IF(Март[[#This Row],[Работа спецоборудования за день, м/ч]]="","",Март[[#This Row],[Работа спецоборудования за день, м/ч]]*$Z$2) -> 0 | M26: =IFERROR(IF(VLOOKUP(Март[Дата],S$2:U$3,3),IFERROR(IF(R26="",Март[[#This Row],[Выдано топливо, литр]],Март[[#This Row],[Выдано топливо, литр]]+R26)+Март[[#This Row],[Остаток топлива в баке на начало дня, литр]]-Март[[#This Row],[Фактический расход топлива, литр]],""),""),"") ->  | N26: =IFERROR(ROUND((Март[[#This Row],[Пройдено за день, км]]*0.01*$Y$2+Март[[#This Row],[Расход топлива на работу спецоборудования, литр]]),3)+V26,"") -> 0 | O26: =IFERROR(IF(Март[[#Totals],[Выдано топливо, литр]]=0,0,(ROUND(Март[[#This Row],[Расход топлива по норме, литр]]/IF(DAY(Март[Дата])<=18,$W$2,$W$3),0)))+T26,"") -> 0 | P26: =IFERROR(Март[[#This Row],[Фактический расход топлива, литр]]-Март[[#This Row],[Расход топлива по норме, литр]],"") -> 0 | W26: =Март[[#This Row],[Дата]] -> 2018-03-20
A27: =IFERROR(DATEVALUE((COUNT($A$6:A26)+1)&$P$1&$I$4),"") -> 2018-03-21 | C27: =IF(Март[[#This Row],[Дата]]="","",D26) -> 211745 | D27: 211745 | E27: =IFERROR(Март[[#This Row],[Показание одометра машины на конец дня, км]]-Март[[#This Row],[Показание одометра машины на начало дня, км]]+S27,"") -> 0 | G27: =IF(Март[[#This Row],[Дата]]="","",M26) ->  | H27: =IF(Март[[#This Row],[Дата]]="","",I26) -> 697 | I27: 697 | J27: =IFERROR(IF(U27="",Март[[#This Row],[Показание счетчика моточасов спецоборудования на конец дня, м/ч]],Март[[#This Row],[Показание счетчика моточасов спецоборудования на конец дня, м/ч]]+1)-Март[[#This Row],[Показание счетчика моточасов спецоборудования на начало дня, м/ч]],"") -> 0 | L27: =IF(Март[[#This Row],[Работа спецоборудования за день, м/ч]]="","",Март[[#This Row],[Работа спецоборудования за день, м/ч]]*$Z$2) -> 0 | M27: =IFERROR(IF(VLOOKUP(Март[Дата],S$2:U$3,3),IFERROR(IF(R27="",Март[[#This Row],[Выдано топливо, литр]],Март[[#This Row],[Выдано топливо, литр]]+R27)+Март[[#This Row],[Остаток топлива в баке на начало дня, литр]]-Март[[#This Row],[Фактический расход топлива, литр]],""),""),"") ->  | N27: =IFERROR(ROUND((Март[[#This Row],[Пройдено за день, км]]*0.01*$Y$2+Март[[#This Row],[Расход топлива на работу спецоборудования, литр]]),3)+V27,"") -> 0 | O27: =IFERROR(IF(Март[[#Totals],[Выдано топливо, литр]]=0,0,(ROUND(Март[[#This Row],[Расход топлива по норме, литр]]/IF(DAY(Март[Дата])<=18,$W$2,$W$3),0)))+T27,"") -> 0 | P27: =IFERROR(Март[[#This Row],[Фактический расход топлива, литр]]-Март[[#This Row],[Расход топлива по норме, литр]],"") -> 0 | W27: =Март[[#This Row],[Дата]] -> 2018-03-21
A28: =IFERROR(DATEVALUE((COUNT($A$6:A27)+1)&$P$1&$I$4),"") -> 2018-03-22 | C28: =IF(Март[[#This Row],[Дата]]="","",D27) -> 211745 | D28: 211745 | E28: =IFERROR(Март[[#This Row],[Показание одометра машины на конец дня, км]]-Март[[#This Row],[Показание одометра машины на начало дня, км]]+S28,"") -> 0 | G28: =IF(Март[[#This Row],[Дата]]="","",M27) ->  | H28: =IF(Март[[#This Row],[Дата]]="","",I27) -> 697 | I28: 697 | J28: =IFERROR(IF(U28="",Март[[#This Row],[Показание счетчика моточасов спецоборудования на конец дня, м/ч]],Март[[#This Row],[Показание счетчика моточасов спецоборудования на конец дня, м/ч]]+1)-Март[[#This Row],[Показание счетчика моточасов спецоборудования на начало дня, м/ч]],"") -> 0 | L28: =IF(Март[[#This Row],[Работа спецоборудования за день, м/ч]]="","",Март[[#This Row],[Работа спецоборудования за день, м/ч]]*$Z$2) -> 0 | M28: =IFERROR(IF(VLOOKUP(Март[Дата],S$2:U$3,3),IFERROR(IF(R28="",Март[[#This Row],[Выдано топливо, литр]],Март[[#This Row],[Выдано топливо, литр]]+R28)+Март[[#This Row],[Остаток топлива в баке на начало дня, литр]]-Март[[#This Row],[Фактический расход топлива, литр]],""),""),"") ->  | N28: =IFERROR(ROUND((Март[[#This Row],[Пройдено за день, км]]*0.01*$Y$2+Март[[#This Row],[Расход топлива на работу спецоборудования, литр]]),3)+V28,"") -> 0 | O28: =IFERROR(IF(Март[[#Totals],[Выдано топливо, литр]]=0,0,(ROUND(Март[[#This Row],[Расход топлива по норме, литр]]/IF(DAY(Март[Дата])<=18,$W$2,$W$3),0)))+T28,"") -> 0 | P28: =IFERROR(Март[[#This Row],[Фактический расход топлива, литр]]-Март[[#This Row],[Расход топлива по норме, литр]],"") -> 0 | W28: =Март[[#This Row],[Дата]] -> 2018-03-22
A29: =IFERROR(DATEVALUE((COUNT($A$6:A28)+1)&$P$1&$I$4),"") -> 2018-03-23 | C29: =IF(Март[[#This Row],[Дата]]="","",D28) -> 211745 | D29: 211745 | E29: =IFERROR(Март[[#This Row],[Показание одометра машины на конец дня, км]]-Март[[#This Row],[Показание одометра машины на начало дня, км]]+S29,"") -> 0 | G29: =IF(Март[[#This Row],[Дата]]="","",M28) ->  | H29: =IF(Март[[#This Row],[Дата]]="","",I28) -> 697 | I29: 697 | J29: =IFERROR(IF(U29="",Март[[#This Row],[Показание счетчика моточасов спецоборудования на конец дня, м/ч]],Март[[#This Row],[Показание счетчика моточасов спецоборудования на конец дня, м/ч]]+1)-Март[[#This Row],[Показание счетчика моточасов спецоборудования на начало дня, м/ч]],"") -> 0 | L29: =IF(Март[[#This Row],[Работа спецоборудования за день, м/ч]]="","",Март[[#This Row],[Работа спецоборудования за день, м/ч]]*$Z$2) -> 0 | M29: =IFERROR(IF(VLOOKUP(Март[Дата],S$2:U$3,3),IFERROR(IF(R29="",Март[[#This Row],[Выдано топливо, литр]],Март[[#This Row],[Выдано топливо, литр]]+R29)+Март[[#This Row],[Остаток топлива в баке на начало дня, литр]]-Март[[#This Row],[Фактический расход топлива, литр]],""),""),"") ->  | N29: =IFERROR(ROUND((Март[[#This Row],[Пройдено за день, км]]*0.01*$Y$2+Март[[#This Row],[Расход топлива на работу спецоборудования, литр]]),3)+V29,"") -> 0 | O29: =IFERROR(IF(Март[[#Totals],[Выдано топливо, литр]]=0,0,(ROUND(Март[[#This Row],[Расход топлива по норме, литр]]/IF(DAY(Март[Дата])<=18,$W$2,$W$3),0)))+T29,"") -> 0 | P29: =IFERROR(Март[[#This Row],[Фактический расход топлива, литр]]-Март[[#This Row],[Расход топлива по норме, литр]],"") -> 0 | W29: =Март[[#This Row],[Дата]] -> 2018-03-23
A30: =IFERROR(DATEVALUE((COUNT($A$6:A29)+1)&$P$1&$I$4),"") -> 2018-03-24 | C30: =IF(Март[[#This Row],[Дата]]="","",D29) -> 211745 | D30: 211745 | E30: =IFERROR(Март[[#This Row],[Показание одометра машины на конец дня, км]]-Март[[#This Row],[Показание одометра машины на начало дня, км]]+S30,"") -> 0 | G30: =IF(Март[[#This Row],[Дата]]="","",M29) ->  | H30: =IF(Март[[#This Row],[Дата]]="","",I29) -> 697 | I30: 697 | J30: =IFERROR(IF(U30="",Март[[#This Row],[Показание счетчика моточасов спецоборудования на конец дня, м/ч]],Март[[#This Row],[Показание счетчика моточасов спецоборудования на конец дня, м/ч]]+1)-Март[[#This Row],[Показание счетчика моточасов спецоборудования на начало дня, м/ч]],"") -> 0 | L30: =IF(Март[[#This Row],[Работа спецоборудования за день, м/ч]]="","",Март[[#This Row],[Работа спецоборудования за день, м/ч]]*$Z$2) -> 0 | M30: =IFERROR(IF(VLOOKUP(Март[Дата],S$2:U$3,3),IFERROR(IF(R30="",Март[[#This Row],[Выдано топливо, литр]],Март[[#This Row],[Выдано топливо, литр]]+R30)+Март[[#This Row],[Остаток топлива в баке на начало дня, литр]]-Март[[#This Row],[Фактический расход топлива, литр]],""),""),"") ->  | N30: =IFERROR(ROUND((Март[[#This Row],[Пройдено за день, км]]*0.01*$Y$2+Март[[#This Row],[Расход топлива на работу спецоборудования, литр]]),3)+V30,"") -> 0 | O30: =IFERROR(IF(Март[[#Totals],[Выдано топливо, литр]]=0,0,(ROUND(Март[[#This Row],[Расход топлива по норме, литр]]/IF(DAY(Март[Дата])<=18,$W$2,$W$3),0)))+T30,"") -> 0 | P30: =IFERROR(Март[[#This Row],[Фактический расход топлива, литр]]-Март[[#This Row],[Расход топлива по норме, литр]],"") -> 0 | W30: =Март[[#This Row],[Дата]] -> 2018-03-24
A31: =IFERROR(DATEVALUE((COUNT($A$6:A30)+1)&$P$1&$I$4),"") -> 2018-03-25 | C31: =IF(Март[[#This Row],[Дата]]="","",D30) -> 211745 | D31: 211745 | E31: =IFERROR(Март[[#This Row],[Показание одометра машины на конец дня, км]]-Март[[#This Row],[Показание одометра машины на начало дня, км]]+S31,"") -> 0 | G31: =IF(Март[[#This Row],[Дата]]="","",M30) ->  | H31: =IF(Март[[#This Row],[Дата]]="","",I30) -> 697 | I31: 697 | J31: =IFERROR(IF(U31="",Март[[#This Row],[Показание счетчика моточасов спецоборудования на конец дня, м/ч]],Март[[#This Row],[Показание счетчика моточасов спецоборудования на конец дня, м/ч]]+1)-Март[[#This Row],[Показание счетчика моточасов спецоборудования на начало дня, м/ч]],"") -> 0 | K31: 0 | L31: =IF(Март[[#This Row],[Работа спецоборудования за день, м/ч]]="","",Март[[#This Row],[Работа спецоборудования за день, м/ч]]*$Z$2) -> 0 | M31: =IFERROR(IF(VLOOKUP(Март[Дата],S$2:U$3,3),IFERROR(IF(R31="",Март[[#This Row],[Выдано топливо, литр]],Март[[#This Row],[Выдано топливо, литр]]+R31)+Март[[#This Row],[Остаток топлива в баке на начало дня, литр]]-Март[[#This Row],[Фактический расход топлива, литр]],""),""),"") ->  | N31: =IFERROR(ROUND((Март[[#This Row],[Пройдено за день, км]]*0.01*$Y$2+Март[[#This Row],[Расход топлива на работу спецоборудования, литр]]),3)+V31,"") -> 0 | O31: =IFERROR(IF(Март[[#Totals],[Выдано топливо, литр]]=0,0,(ROUND(Март[[#This Row],[Расход топлива по норме, литр]]/IF(DAY(Март[Дата])<=18,$W$2,$W$3),0)))+T31,"") -> 0 | P31: =IFERROR(Март[[#This Row],[Фактический расход топлива, литр]]-Март[[#This Row],[Расход топлива по норме, литр]],"") -> 0 | W31: =Март[[#This Row],[Дата]] -> 2018-03-25
A32: =IFERROR(DATEVALUE((COUNT($A$6:A31)+1)&$P$1&$I$4),"") -> 2018-03-26 | B32: Никляев В.А. | C32: =IF(Март[[#This Row],[Дата]]="","",D31) -> 211745 | D32: 211915 | E32: =IFERROR(Март[[#This Row],[Показание одометра машины на конец дня, км]]-Март[[#This Row],[Показание одометра машины на начало дня, км]]+S32,"") -> 170 | G32: =IF(Март[[#This Row],[Дата]]="","",M31) ->  | H32: =IF(Март[[#This Row],[Дата]]="","",I31) -> 697 | I32: 699 | J32: =IFERROR(IF(U32="",Март[[#This Row],[Показание счетчика моточасов спецоборудования на конец дня, м/ч]],Март[[#This Row],[Показание счетчика моточасов спецоборудования на конец дня, м/ч]]+1)-Март[[#This Row],[Показание счетчика моточасов спецоборудования на начало дня, м/ч]],"") -> 2 | K32: 1 | L32: =IF(Март[[#This Row],[Работа спецоборудования за день, м/ч]]="","",Март[[#This Row],[Работа спецоборудования за день, м/ч]]*$Z$2) -> 12.1 | M32: =IFERROR(IF(VLOOKUP(Март[Дата],S$2:U$3,3),IFERROR(IF(R32="",Март[[#This Row],[Выдано топливо, литр]],Март[[#This Row],[Выдано топливо, литр]]+R32)+Март[[#This Row],[Остаток топлива в баке на начало дня, литр]]-Март[[#This Row],[Фактический расход топлива, литр]],""),""),"") ->  | N32: =IFERROR(ROUND((Март[[#This Row],[Пройдено за день, км]]*0.01*$Y$2+Март[[#This Row],[Расход топлива на работу спецоборудования, литр]]),3)+V32,"") -> 99.728 | O32: =IFERROR(IF(Март[[#Totals],[Выдано топливо, литр]]=0,0,(ROUND(Март[[#This Row],[Расход топлива по норме, литр]]/IF(DAY(Март[Дата])<=18,$W$2,$W$3),0)))+T32,"") -> 0 | P32: =IFERROR(Март[[#This Row],[Фактический расход топлива, литр]]-Март[[#This Row],[Расход топлива по норме, литр]],"") -> -99.728 | W32: =Март[[#This Row],[Дата]] -> 2018-03-26
A33: =IFERROR(DATEVALUE((COUNT($A$6:A32)+1)&$P$1&$I$4),"") -> 2018-03-27 | B33: Никляев В.А. | C33: =IF(Март[[#This Row],[Дата]]="","",D32) -> 211915 | D33: 211991 | E33: =IFERROR(Март[[#This Row],[Показание одометра машины на конец дня, км]]-Март[[#This Row],[Показание одометра машины на начало дня, км]]+S33,"") -> 76 | G33: =IF(Март[[#This Row],[Дата]]="","",M32) ->  | H33: =IF(Март[[#This Row],[Дата]]="","",I32) -> 699 | I33: 703 | J33: =IFERROR(IF(U33="",Март[[#This Row],[Показание счетчика моточасов спецоборудования на конец дня, м/ч]],Март[[#This Row],[Показание счетчика моточасов спецоборудования на конец дня, м/ч]]+1)-Март[[#This Row],[Показание счетчика моточасов спецоборудования на начало дня, м/ч]],"") -> 4 | K33: 2 | L33: =IF(Март[[#This Row],[Работа спецоборудования за день, м/ч]]="","",Март[[#This Row],[Работа спецоборудования за день, м/ч]]*$Z$2) -> 24.2 | M33: =IFERROR(IF(VLOOKUP(Март[Дата],S$2:U$3,3),IFERROR(IF(R33="",Март[[#This Row],[Выдано топливо, литр]],Март[[#This Row],[Выдано топливо, литр]]+R33)+Март[[#This Row],[Остаток топлива в баке на начало дня, литр]]-Март[[#This Row],[Фактический расход топлива, литр]],""),""),"") ->  | N33: =IFERROR(ROUND((Март[[#This Row],[Пройдено за день, км]]*0.01*$Y$2+Март[[#This Row],[Расход топлива на работу спецоборудования, литр]]),3)+V33,"") -> 63.375 | O33: =IFERROR(IF(Март[[#Totals],[Выдано топливо, литр]]=0,0,(ROUND(Март[[#This Row],[Расход топлива по норме, литр]]/IF(DAY(Март[Дата])<=18,$W$2,$W$3),0)))+T33,"") -> 0 | P33: =IFERROR(Март[[#This Row],[Фактический расход топлива, литр]]-Март[[#This Row],[Расход топлива по норме, литр]],"") -> -63.375 | W33: =Март[[#This Row],[Дата]] -> 2018-03-27
A34: =IFERROR(DATEVALUE((COUNT($A$6:A33)+1)&$P$1&$I$4),"") -> 2018-03-28 | B34: Никляев В.А. | C34: =IF(Март[[#This Row],[Дата]]="","",D33) -> 211991 | D34: 212252 | E34: =IFERROR(Март[[#This Row],[Показание одометра машины на конец дня, км]]-Март[[#This Row],[Показание одометра машины на начало дня, км]]+S34,"") -> 261 | F34: 300 | G34: =IF(Март[[#This Row],[Дата]]="","",M33) ->  | H34: =IF(Март[[#This Row],[Дата]]="","",I33) -> 703 | I34: 708 | J34: =IFERROR(IF(U34="",Март[[#This Row],[Показание счетчика моточасов спецоборудования на конец дня, м/ч]],Март[[#This Row],[Показание счетчика моточасов спецоборудования на конец дня, м/ч]]+1)-Март[[#This Row],[Показание счетчика моточасов спецоборудования на начало дня, м/ч]],"") -> 5 | K34: 3 | L34: =IF(Март[[#This Row],[Работа спецоборудования за день, м/ч]]="","",Март[[#This Row],[Работа спецоборудования за день, м/ч]]*$Z$2) -> 30.25 | M34: =IFERROR(IF(VLOOKUP(Март[Дата],S$2:U$3,3),IFERROR(IF(R34="",Март[[#This Row],[Выдано топливо, литр]],Март[[#This Row],[Выдано топливо, литр]]+R34)+Март[[#This Row],[Остаток топлива в баке на начало дня, литр]]-Март[[#This Row],[Фактический расход топлива, литр]],""),""),"") ->  | N34: =IFERROR(ROUND((Март[[#This Row],[Пройдено за день, км]]*0.01*$Y$2+Март[[#This Row],[Расход топлива на работу спецоборудования, литр]]),3)+V34,"") -> 164.785 | O34: =IFERROR(IF(Март[[#Totals],[Выдано топливо, литр]]=0,0,(ROUND(Март[[#This Row],[Расход топлива по норме, литр]]/IF(DAY(Март[Дата])<=18,$W$2,$W$3),0)))+T34,"") -> 0 | P34: =IFERROR(Март[[#This Row],[Фактический расход топлива, литр]]-Март[[#This Row],[Расход топлива по норме, литр]],"") -> -164.785 | W34: =Март[[#This Row],[Дата]] -> 2018-03-28
A35: =IFERROR(DATEVALUE((COUNT($A$6:A34)+1)&$P$1&$I$4),"") -> 2018-03-29 | C35: =IF(Март[[#This Row],[Дата]]="","",D34) -> 212252 | E35: =IFERROR(Март[[#This Row],[Показание одометра машины на конец дня, км]]-Март[[#This Row],[Показание одометра машины на начало дня, км]]+S35,"") -> -212252 | G35: =IF(Март[[#This Row],[Дата]]="","",M34) ->  | H35: =IF(Март[[#This Row],[Дата]]="","",I34) -> 708 | J35: =IFERROR(IF(U35="",Март[[#This Row],[Показание счетчика моточасов спецоборудования на конец дня, м/ч]],Март[[#This Row],[Показание счетчика моточасов спецоборудования на конец дня, м/ч]]+1)-Март[[#This Row],[Показание счетчика моточасов спецоборудования на начало дня, м/ч]],"") -> -708 | L35: =IF(Март[[#This Row],[Работа спецоборудования за день, м/ч]]="","",Март[[#This Row],[Работа спецоборудования за день, м/ч]]*$Z$2) -> -4283.4 | M35: =IFERROR(IF(VLOOKUP(Март[Дата],S$2:U$3,3),IFERROR(IF(R35="",Март[[#This Row],[Выдано топливо, литр]],Март[[#This Row],[Выдано топливо, литр]]+R35)+Март[[#This Row],[Остаток топлива в баке на начало дня, литр]]-Март[[#This Row],[Фактический расход топлива, литр]],""),""),"") ->  | N35: =IFERROR(ROUND((Март[[#This Row],[Пройдено за день, км]]*0.01*$Y$2+Март[[#This Row],[Расход топлива на работу спецоборудования, литр]]),3)+V35,"") -> -113690.816 | O35: =IFERROR(IF(Март[[#Totals],[Выдано топливо, литр]]=0,0,(ROUND(Март[[#This Row],[Расход топлива по норме, литр]]/IF(DAY(Март[Дата])<=18,$W$2,$W$3),0)))+T35,"") -> 301 | P35: =IFERROR(Март[[#This Row],[Фактический расход топлива, литр]]-Март[[#This Row],[Расход топлива по норме, литр]],"") -> 113991.816 | W35: =Март[[#This Row],[Дата]] -> 2018-03-29
A36: =IFERROR(DATEVALUE((COUNT($A$6:A35)+1)&$P$1&$I$4),"") -> 2018-03-30 | C36: =IF(Март[[#This Row],[Дата]]="","",D35) -> 0 | E36: =IFERROR(Март[[#This Row],[Показание одометра машины на конец дня, км]]-Март[[#This Row],[Показание одометра машины на начало дня, км]]+S36,"") -> 0 | G36: =IF(Март[[#This Row],[Дата]]="","",M35) ->  | H36: =IF(Март[[#This Row],[Дата]]="","",I35) -> 0 | J36: =IFERROR(IF(U36="",Март[[#This Row],[Показание счетчика моточасов спецоборудования на конец дня, м/ч]],Март[[#This Row],[Показание счетчика моточасов спецоборудования на конец дня, м/ч]]+1)-Март[[#This Row],[Показание счетчика моточасов спецоборудования на начало дня, м/ч]],"") -> 0 | L36: =IF(Март[[#This Row],[Работа спецоборудования за день, м/ч]]="","",Март[[#This Row],[Работа спецоборудования за день, м/ч]]*$Z$2) -> 0 | M36: =IFERROR(IF(VLOOKUP(Март[Дата],S$2:U$3,3),IFERROR(IF(R36="",Март[[#This Row],[Выдано топливо, литр]],Март[[#This Row],[Выдано топливо, литр]]+R36)+Март[[#This Row],[Остаток топлива в баке на начало дня, литр]]-Март[[#This Row],[Фактический расход топлива, литр]],""),""),"") ->  | N36: =IFERROR(ROUND((Март[[#This Row],[Пройдено за день, км]]*0.01*$Y$2+Март[[#This Row],[Расход топлива на работу спецоборудования, литр]]),3)+V36,"") -> 0 | O36: =IFERROR(IF(Март[[#Totals],[Выдано топливо, литр]]=0,0,(ROUND(Март[[#This Row],[Расход топлива по норме, литр]]/IF(DAY(Март[Дата])<=18,$W$2,$W$3),0)))+T36,"") -> 0 | P36: =IFERROR(Март[[#This Row],[Фактический расход топлива, литр]]-Март[[#This Row],[Расход топлива по норме, литр]],"") -> 0 | W36: =Март[[#This Row],[Дата]] -> 2018-03-30
A37: =IFERROR(DATEVALUE((COUNT($A$6:A36)+1)&$P$1&$I$4),"") -> 2018-03-31 | C37: =IF(Март[[#This Row],[Дата]]="","",D36) -> 0 | E37: =IFERROR(Март[[#This Row],[Показание одометра машины на конец дня, км]]-Март[[#This Row],[Показание одометра машины на начало дня, км]]+S37,"") -> 0 | G37: =IF(Март[[#This Row],[Дата]]="","",M36) ->  | H37: =IF(Март[[#This Row],[Дата]]="","",I36) -> 0 | J37: =IFERROR(IF(U37="",Март[[#This Row],[Показание счетчика моточасов спецоборудования на конец дня, м/ч]],Март[[#This Row],[Показание счетчика моточасов спецоборудования на конец дня, м/ч]]+1)-Март[[#This Row],[Показание счетчика моточасов спецоборудования на начало дня, м/ч]],"") -> 0 | L37: =IF(Март[[#This Row],[Работа спецоборудования за день, м/ч]]="","",Март[[#This Row],[Работа спецоборудования за день, м/ч]]*$Z$2) -> 0 | M37: =IFERROR(IF(VLOOKUP(Март[Дата],S$2:U$3,3),IFERROR(IF(R37="",Март[[#This Row],[Выдано топливо, литр]],Март[[#This Row],[Выдано топливо, литр]]+R37)+Март[[#This Row],[Остаток топлива в баке на начало дня, литр]]-Март[[#This Row],[Фактический расход топлива, литр]],""),""),"") ->  | N37: =IFERROR(ROUND((Март[[#This Row],[Пройдено за день, км]]*0.01*$Y$2+Март[[#This Row],[Расход топлива на работу спецоборудования, литр]]),3)+V37,"") -> 0 | O37: =IFERROR(IF(Март[[#Totals],[Выдано топливо, литр]]=0,0,(ROUND(Март[[#This Row],[Расход топлива по норме, литр]]/IF(DAY(Март[Дата])<=18,$W$2,$W$3),0)))+T37,"") -> 0 | P37: =IFERROR(Март[[#This Row],[Фактический расход топлива, литр]]-Март[[#This Row],[Расход топлива по норме, литр]],"") -> 0 | W37: =Март[[#This Row],[Дата]] -> 2018-03-31
A38: Итог | E38: =SUBTOTAL(109,Март[Пройдено за день, км]) -> -210723 | F38: =SUBTOTAL(109,Март[Выдано топливо, литр]) -> 1070 | J38: =SUBTOTAL(109,Март[Работа спецоборудования за день, м/ч]) -> -671 | K38: =SUBTOTAL(109,Март[Количество ходок]) -> 24 | L38: =SUBTOTAL(109,Март[Расход топлива на работу спецоборудования, литр]) -> -4059.55 | N38: =SUBTOTAL(109,Март[Расход топлива по норме, литр]) -> -112678.827 | O38: =SUBTOTAL(109,Март[Фактический расход топлива, литр]) -> 968 | P38: =SUBTOTAL(109,Март[Отклонение от нормы (Перерасход(+), экономия(-)), литр]) -> 113646.827
K39: =SUMIFS(K7:K37,A7:A37,">="&$S$2,A7:A37,"<="&$T$2) -> 16
K40: =SUMIFS(K7:K37,A7:A37,">="&$S$3,A7:A37,"<="&$T$3) -> 6

Sheet ТС
G1: Зима : | H1: 01.11 - 31.03 | L1: Зима : | M1: 01.11 - 31.03 | P1: Расчет максимальной нормы расхода ДТ (литр/100км)
G2: Лето: | H2: 01.04 - 30.10 | L2: Лето: | M2: 01.04 - 30.10
G3: доп.коэфф-т к норме | L3: доп.коэфф-т к норме
A4: № п/п | B4: Номер гос.регистрации / Заводской номер | C4: Километраж, км | D4: Спецоборудование, м/ч | E4: Топливо, л | F4: Базовая норма расхода на 100 км | G4: Зима | H4: Лето | I4: Итога норма а/м ЗИМА | J4: Итога норма а/м ЛЕТО | K4: Базовая норма расхода на 1 мото/час | L4: "Зима" | M4: "Лето" | N4: Итога норма а/м "ЗИМА" | O4: Итога норма а/м "ЛЕТО" | P4: Норма на 100 км, литров | Q4: движение с манипулятором | R4: Тоннаж | S4: Литры | T4: На движение с грузом | U4: Тоннаж1 | V4: К-т загрузки | W4: ИТОГ | X4: 25% за работу в городе с населением свыше 3 млн. человек | Y4: 10 % за работу зимой
A5: 1 | B5: Норма 1 | C5: 209024 | D5: 620 | E5: 500 | F5: 46.86 | G5: 10 | H5: -9.1 | I5: =F5*(100+G5)% -> 51.546 | J5: =F5*(100+H5)% -> 42.59574 | K5: 5.5 | L5: 10 | M5: 0 | N5: =K5*(100+L5)% -> 6.05 | O5: =K5*(100+M5)% -> 5.5 | P5: 32.2 | Q5: =R5*S5 -> 2.938 | R5: 2.26 | S5: 1.3 | T5: =U5*V5*S5 -> 5.2 | U5: 8 | V5: 0.5 | W5: =P5+Q5+T5 -> 40.338 | X5: =W5*25%+W5 -> 50.4225 | Y5: =W5*10%+X5 -> 54.4563
A6: 2 | B6: Норма 2 | E6: 500 | F6: =F5-F5*5% -> 44.517 | G6: 10 | H6: -9.1 | I6: 48.9687 | J6: 40.465953 | K6: =K5-K5*5% -> 5.225 | L6: 10 | M6: 0 | N6: 5.7475 | O6: 5.225 | P6: 32.2 | Q6: 2.938 | R6: 2.26 | S6: 1.3 | T6: 5.2 | U6: 8 | V6: 0.5 | W6: 40.338 | X6: 50.4225 | Y6: 54.4563
A7: 3 | B7: Норма 3 | E7: 500 | F7: =F5-F5*10% -> 42.174 | G7: 10 | H7: -9.1 | I7: 46.3914 | J7: 38.336166 | K7: =K5-K5*10% -> 4.95 | L7: 10 | M7: 0 | N7: 5.445 | O7: 4.95 | P7: 32.2 | Q7: 2.938 | R7: 2.26 | S7: 1.3 | T7: 5.2 | U7: 8 | V7: 0.5 | W7: 40.338 | X7: 50.4225 | Y7: 54.4563
B11: Зима
B12: Лето
B14: Январь
B15: Февраль
B16: Март
B17: Апрель
B18: Май
B19: Июнь
B20: Июль
B21: Август
B22: Сентябрь
B23: Октябрь
B24: Ноябрь
B25: Декабрь
B27: Норма 1
B28: Норма 2
B29: Норма 3

Sheet Отчет журнал
A1: Общество с ограниченной ответственностью "Втормет Царицыно"
A2: Отчет водителя ломовоза с манипулятором
I3: за | J3: 2018
A5: Дата | B5: ФИО водителя | C5: Номер гос.регистрации | D5: Показание одометра машины на начало дня, км | E5: Показание одометра машины на конец дня, км | F5: Пройдено за день, км | G5: Выдано топливо, литр | H5: Остаток топлива в баке на начало дня, литр | I5: Показание счетчика моточасов спецоборудования на начало дня, м/ч | J5: Показание счетчика моточасов спецоборудования на конец дня, м/ч | K5: Работа спецоборудования за день, м/ч | L5: Количество ходок | M5: Расход топлива на работу спецоборудования, литр | N5: Остаток топлива в баке на конец дня, литр | O5: Расход топлива по норме, литр | P5: Фактический расход топлива, литр | Q5: Отклонение от нормы (Перерасход(+), экономия(-)), литр
A6: 2018-01-01 | B6: Никляев В.А. | C6: т056вв 197 | D6: 209024 | E6: 209024 | F6: =E6-D6 -> 0 | G6: 0 | H6: 500 | I6: 620 | J6: 620 | K6: =J6-I6 -> 0 | M6: =K6*#REF! ->  | N6: =G6+H6-P6 -> 500 | O6: =ROUND((F6*0.01*#REF!+M6),3) ->  | P6: =IF($I$10=0,0,(ROUND(O6/$T$6,0))) -> 0 | Q6: =P6-O6 -> 
A7: 2018-01-01 | B7: Супрун С.В. | C7: к190вк 799 | D7: 156340 | E7: 157300 | F7: 960 | G7: 150 | H7: =N6 -> 500 | I7: =J6 -> 620 | J7: 540 | K7: =J7-I7 -> -80 | M7: =K7*#REF! ->  | N7: =G7+H7-P7 -> 650 | O7: =ROUND((F7*0.01*#REF!+M7),3) ->  | P7: =IF($I$10=0,0,(ROUND(O7/$T$6,0))) -> 0
A8: 2018-01-01 | B8: Щинов М. | C8: х733ун 197 | D8: 164230 | E8: 164590 | F8: 360 | G8: 50 | H8: 650 | I8: =J7 -> 540 | J8: 620 | K8: 80 | M8: =K8*#REF! ->  | N8: 700 | O8: =ROUND((F8*0.01*#REF!+M8),3) ->  | P8: =IF($I$10=0,0,(ROUND(O8/$T$6,0))) -> 0

Sheet Сотрудники
A1: Водители ломовоза с манипулятором
A3: № п/п | B3: Ф.И.О.
A4: 1 | B4: Никляев В.А.
A5: 2 | B5: Ильин А.Г.
A6: 3 | B6: Малышев О.С.
A7: 4 | B7: Кобалян М.В.
A8: 5
A9: 6
A10: 7
A11: 8
A12: 9
A13: 10
A14: 11
A15: 12
A16: 13
A17: 14
A18: 15
A19: 16
A20: 17
A21: 18
A22: 19
A23: 20
